Ref No,Fund Type,Dept,Cost Centre Description    ,Description    ,Creditor Name    ,GL Code Net Amount,Payment date        
2,Revenue,CAHD,Bed Purchasing - South,Permanent Residential,.,2112.00, 17-Jan-2017
3,Revenue,CAHD,South Glos Users in South Glos Homes,Permanent Nursing,.,2410.71, 17-Jan-2017
4,Revenue,CAHD,South Glos Users in South Glos Homes,Permanent Nursing,.,625.00, 17-Jan-2017
5,Revenue,CAHD,Bed Purchasing - North,Permanent Nursing,.,3252.00, 17-Jan-2017
6,Revenue,CAHD,Bed Purchasing - South,Permanent Nursing,.,3252.00, 17-Jan-2017
7,Revenue,CAHD,South Glos Users in South Glos Homes,Permanent Nursing,.,625.00, 17-Jan-2017
8,Revenue,CAHD,Bed Purchasing - North,Permanent Nursing,.,3252.00, 17-Jan-2017
9,Revenue,CAHD,South Glos Users in South Glos Homes,Permanent Nursing,.,625.00, 17-Jan-2017
10,Revenue,CAHD,South Glos Users in South Glos Homes,Permanent Nursing,.,2075.89, 17-Jan-2017
11,Revenue,CAHD,South Glos Users in South Glos Homes,Permanent Nursing,.,1517.86, 17-Jan-2017
12,Revenue,CAHD,South Glos Users in South Glos Homes,Permanent Nursing,.,625.00, 17-Jan-2017
13,Revenue,CAHD,South Glos Users in South Glos Homes,Permanent Nursing,.,625.00, 17-Jan-2017
14,Revenue,CAHD,Bed Purchasing - South,Permanent Nursing,.,3252.00, 17-Jan-2017
15,Revenue,CAHD,South Glos Users in South Glos Homes,Permanent Nursing,.,625.00, 17-Jan-2017
16,Revenue,CAHD,South Glos Users in South Glos Homes,Permanent Nursing,.,1718.75, 17-Jan-2017
17,Revenue,CAHD,South Glos Users in South Glos Homes,Permanent Nursing,.,625.00, 17-Jan-2017
18,Revenue,CAHD,South Glos Users in South Glos Homes,Permanent Nursing,.,625.00, 17-Jan-2017
19,Revenue,CAHD,Bed Purchasing - North,Permanent Residential,.,4200.00, 17-Jan-2017
20,Revenue,CAHD,South Glos Users in South Glos Homes,Permanent Nursing,.,2299.11, 17-Jan-2017
21,Revenue,CAHD,South Glos Users in South Glos Homes,Permanent Nursing,.,625.00, 17-Jan-2017
22,Revenue,CAHD,Bed Purchasing - North,Fees & Charges Income - General,.,1759.56, 17-Jan-2017
23,Revenue,CAHD,Bed Purchasing - North,Fees & Charges Income - General,.,951.39, 17-Jan-2017
24,Revenue,CAHD,Bed Purchasing - South,Permanent Nursing,.,3575.00, 17-Jan-2017
25,Revenue,CAHD,South Glos Users in South Glos Homes,Permanent Nursing,.,625.00, 17-Jan-2017
26,Revenue,CAHD,Bed Purchasing - North,Permanent Nursing,.,4975.00, 17-Jan-2017
27,Revenue,CAHD,South Glos Users in South Glos Homes,Permanent Nursing,.,3102.68, 17-Jan-2017
28,Revenue,CAHD,South Glos Users in South Glos Homes,Permanent Nursing,.,625.00, 17-Jan-2017
29,Revenue,CAHD,Bed Purchasing - Southmead Hospital,Permanent Nursing,.,3775.00, 17-Jan-2017
30,Revenue,CAHD,South Glos Users in South Glos Homes,Permanent Nursing,.,625.00, 17-Jan-2017
31,Revenue,CAHD,South Glos Users in South Glos Homes,Permanent Nursing,.,2656.25, 17-Jan-2017
32,Revenue,CAHD,South Glos Users in South Glos Homes,Permanent Nursing,.,625.00, 17-Jan-2017
33,Revenue,CAHD,South Glos Users in South Glos Homes,Permanent Nursing,.,625.00, 17-Jan-2017
34,Revenue,CAHD,South Glos Users in South Glos Homes,Permanent Nursing,.,2232.14, 17-Jan-2017
35,Revenue,CAHD,South Glos Users in South Glos Homes,Permanent Nursing,.,625.00, 17-Jan-2017
36,Revenue,CAHD,South Glos Users in South Glos Homes,Permanent Nursing,.,625.00, 17-Jan-2017
37,Revenue,CAHD,South Glos Users in South Glos Homes,Permanent Nursing,.,625.00, 17-Jan-2017
38,Revenue,CAHD,South Glos Users in South Glos Homes,Permanent Nursing,.,625.00, 17-Jan-2017
39,Revenue,CAHD,South Glos Users in South Glos Homes,Permanent Nursing,.,625.00, 17-Jan-2017
40,Revenue,CAHD,South Glos Users in South Glos Homes,Permanent Nursing,.,625.00, 17-Jan-2017
41,Revenue,CAHD,South Glos Users in South Glos Homes,Permanent Nursing,.,625.00, 17-Jan-2017
42,Revenue,CAHD,South Glos Users in South Glos Homes,Permanent Nursing,.,625.00, 17-Jan-2017
43,Revenue,CAHD,South Glos Users in South Glos Homes,Permanent Nursing,.,825.89, 17-Jan-2017
44,Revenue,CAHD,South Glos Users in South Glos Homes,Permanent Nursing,.,2187.50, 17-Jan-2017
45,Revenue,CAHD,South Glos Users in South Glos Homes,Permanent Nursing,.,625.00, 17-Jan-2017
46,Revenue,CAHD,South Glos Users in South Glos Homes,Permanent Nursing,.,3147.32, 17-Jan-2017
47,Revenue,CAHD,South Glos Users in South Glos Homes,Permanent Nursing,.,625.00, 17-Jan-2017
48,Revenue,CAHD,South Glos Users in South Glos Homes,Permanent Nursing,.,625.00, 17-Jan-2017
49,Revenue,CAHD,South Glos Users in South Glos Homes,Permanent Nursing,.,625.00, 17-Jan-2017
50,Revenue,CAHD,South Glos Users in South Glos Homes,Permanent Nursing,.,2433.04, 17-Jan-2017
51,Revenue,CAHD,South Glos Users in South Glos Homes,Permanent Nursing,.,625.00, 17-Jan-2017
52,Revenue,CAHD,South Glos Users in South Glos Homes,Permanent Nursing,.,3236.61, 17-Jan-2017
53,Revenue,CAHD,South Glos Users in South Glos Homes,Permanent Nursing,.,625.00, 17-Jan-2017
54,Revenue,CAHD,South Glos Users in South Glos Homes,Permanent Nursing,.,825.89, 17-Jan-2017
55,Revenue,CAHD,South Glos Users in South Glos Homes,Permanent Nursing,.,1941.96, 17-Jan-2017
56,Revenue,CAHD,South Glos Users in South Glos Homes,Permanent Nursing,.,625.00, 17-Jan-2017
57,Revenue,CAHD,Bed Purchasing - South,Permanent Nursing,.,3775.00, 17-Jan-2017
58,Revenue,CAHD,Bed Purchasing - South,Permanent Nursing,.,2561.61, 17-Jan-2017
59,Revenue,CAHD,Bed Purchasing - North,Permanent Nursing,.,3075.00, 17-Jan-2017
60,Revenue,CAHD,South Glos Users in South Glos Homes,Permanent Nursing,.,625.00, 17-Jan-2017
61,Revenue,CAHD,Bed Purchasing - North,Permanent Nursing,.,3252.00, 17-Jan-2017
62,Revenue,CAHD,South Glos Users in South Glos Homes,Permanent Nursing,.,625.00, 17-Jan-2017
63,Revenue,CAHD,South Glos Users in South Glos Homes,Permanent Nursing,.,1517.86, 17-Jan-2017
64,Revenue,CAHD,South Glos Users in South Glos Homes,Permanent Nursing,.,625.00, 17-Jan-2017
65,Revenue,CAHD,18-25 Year Olds,Permanent Residential,1 St Georges House,13858.04, 17-Jan-2017
66,Revenue,CAHD,Home Care - Elderly - North,Supported Living,2430 The Quadrant,5041.76, 17-Jan-2017
67,Revenue,CAHD,Home Care - Elderly - North,Supported Living,2430 The Quadrant,5041.76, 17-Jan-2017
68,Revenue,CAHD,Home Care - Elderly - South,Day Care / Social Activities,3 Trees Community Support Ltd,92.20, 09-Jan-2017
69,Revenue,CAHD,Home Care - Elderly - North,Day Care / Social Activities,3 Trees Community Support Ltd,1341.51, 09-Jan-2017
70,Revenue,CAHD,Home Care - Elderly - North,Other Small Contracts,3 Trees Community Support Ltd,700.72, 09-Jan-2017
71,Revenue,CAHD,Home Care - Elderly - North,Supported Living,3 Trees Community Support Ltd,8817.27, 09-Jan-2017
72,Revenue,CAHD,Home Care - Elderly - South,Day Care / Social Activities,3 Trees Community Support Ltd,92.20, 10-Jan-2017
73,Revenue,CAHD,Home Care - Elderly - North,Day Care / Social Activities,3 Trees Community Support Ltd,1004.98, 10-Jan-2017
74,Revenue,CAHD,Home Care - Elderly - North,Other Small Contracts,3 Trees Community Support Ltd,700.72, 10-Jan-2017
75,Revenue,CAHD,Home Care - Elderly - North,Supported Living,3 Trees Community Support Ltd,8640.79, 10-Jan-2017
76,Revenue,CAHD,Home Care - Elderly - North,Day Care / Social Activities,3 Trees Community Support Ltd,543.98, 10-Jan-2017
77,Revenue,CAHD,Home Care - Elderly - North,Other Small Contracts,3 Trees Community Support Ltd,571.64, 10-Jan-2017
78,Revenue,CAHD,Home Care - Elderly - North,Supported Living,3 Trees Community Support Ltd,7295.05, 10-Jan-2017
79,Revenue,CAHD,Home Care - Elderly - South,Day Care / Social Activities,3 Trees Community Support Ltd,92.20, 17-Jan-2017
80,Revenue,CAHD,Home Care - Elderly - North,Day Care / Social Activities,3 Trees Community Support Ltd,1134.06, 17-Jan-2017
81,Revenue,CAHD,Home Care - Elderly - North,Other Small Contracts,3 Trees Community Support Ltd,700.72, 17-Jan-2017
82,Revenue,CAHD,Home Care - Elderly - North,Supported Living,3 Trees Community Support Ltd,8343.10, 17-Jan-2017
83,Revenue,CAHD,Home Care - Elderly - South,Day Care / Social Activities,3 Trees Community Support Ltd,92.20, 24-Jan-2017
84,Revenue,CAHD,Home Care - Elderly - North,Day Care / Social Activities,3 Trees Community Support Ltd,1355.34, 24-Jan-2017
85,Revenue,CAHD,Home Care - Elderly - North,Other Small Contracts,3 Trees Community Support Ltd,700.72, 24-Jan-2017
86,Revenue,CAHD,Home Care - Elderly - North,Supported Living,3 Trees Community Support Ltd,8635.95, 24-Jan-2017
87,Revenue,CAHD,Home Care - Elderly - South,Day Care / Social Activities,3 Trees Community Support Ltd,92.20, 31-Jan-2017
88,Revenue,CAHD,Home Care - Elderly - North,Day Care / Social Activities,3 Trees Community Support Ltd,1355.34, 31-Jan-2017
89,Revenue,CAHD,Home Care - Elderly - North,Other Small Contracts,3 Trees Community Support Ltd,700.72, 31-Jan-2017
90,Revenue,CAHD,Home Care - Elderly - North,Supported Living,3 Trees Community Support Ltd,8642.14, 31-Jan-2017
91,Revenue,CAHD,Bed Purchasing - South,Permanent Residential,5Th Floor Harlech Court,16863.44, 17-Jan-2017
92,Revenue,CAHD,18-25 Year Olds,Permanent Residential,5Th Floor Harlech Court,14432.04, 17-Jan-2017
93,Revenue,CAHD,18-25 Year Olds,Permanent Residential,5Th Floor Harlech Court,14570.60, 17-Jan-2017
94,Revenue,CAHD,18-25 Year Olds,Permanent Residential,5Th Floor Harlech Court,12962.24, 17-Jan-2017
95,Revenue,CAHD,Bed Purchasing - North,Permanent Residential,5Th Floor Harlech Court,15666.92, 17-Jan-2017
96,Revenue,CAHD,Bed Purchasing - North,Permanent Residential,5Th Floor Harlech Court,13923.28, 17-Jan-2017
97,Revenue,CAHD,Jointly Funded H&SC Packages,Permanent Residential,5Th Floor Harlech Court,3445.36, 17-Jan-2017
98,Revenue,CAHD,18-25 Year Olds,Permanent Residential,5Th Floor Harlech Court,16489.68, 17-Jan-2017
99,Revenue,CAHD,Bed Purchasing - South,Permanent Residential,5Th Floor Harlech Court,9857.44, 17-Jan-2017
100,Revenue,CAHD,Bed purchasing - S28A Under 65 - South,Permanent Residential,5Th Floor Harlech Court,10316.44, 17-Jan-2017
101,Revenue,CAHD,Bed Purchasing - South,Permanent Residential,5Th Floor Harlech Court,10819.48, 17-Jan-2017
102,Revenue,CAHD,Bed Purchasing - Southmead Hospital,Permanent Residential,Abbots Leigh Nursing,935.00, 17-Jan-2017
103,Revenue,CAHD,Bed Purchasing - North,Permanent Nursing,ABI Development Limited,7494.40, 17-Jan-2017
104,Revenue,CAHD,Home Care - Elderly - North,Day Care / Social Activities,About Me Care and Support Limited,519.36, 25-Jan-2017
105,Revenue,CAHD,Information Systems - Software,Software Support & Maintenance,Abritas Ltd,21159.00, 24-Jan-2017
106,Revenue,CAHD,Training - Adult Services,Training Expenses,Acorn Health & Safety Limited,465.00, 17-Jan-2017
107,Revenue,CAHD,CSC - Agency Fostering,Foster Parent Allowances,Action for Children,3352.43, 09-Jan-2017
108,Revenue,CAHD,CSC - Agency Fostering,Foster Parent Allowances,Action for Children,3244.29, 10-Jan-2017
109,Revenue,CAHD,Tenancy Start Up Scheme,Other Supplies & Services,AEOB House People Ltd,1012.50, 25-Jan-2017
110,Revenue,CAHD,CSC - Allowances,Membership Fees,After Adoption,4190.00, 10-Jan-2017
111,Revenue,CAHD,Home Care - Elderly - South,Other Small Contracts,Agincare UK Limited,1978.00, 17-Jan-2017
112,Revenue,CAHD,Home Care - Elderly - North,Other Small Contracts,Agincare UK Limited,855.70, 17-Jan-2017
113,Revenue,CAHD,Home Care - Elderly - South,Other Small Contracts,Agincare UK Limited,1978.00, 30-Jan-2017
114,Revenue,CAHD,Home Care - Elderly - North,Other Small Contracts,Agincare UK Limited,301.00, 30-Jan-2017
115,Revenue,CAHD,Prison Assessments & Costs,Other Supplies & Services,Agincare UK Limited,6057.84, 13-Jan-2017
116,Revenue,CAHD,Prison Assessments & Costs,Other Supplies & Services,Agincare UK Limited,6024.95, 17-Jan-2017
117,Revenue,CAHD,Home Care - Elderly - North,Day Care / Social Activities,Agincare UK Nutfield,176.30, 24-Jan-2017
118,Revenue,CAHD,Home Care - Elderly - North,Other Small Contracts,Agincare UK Nutfield,1947.90, 24-Jan-2017
119,Revenue,CAHD,Home care - Elderly MH - South,Other Small Contracts,Agincare UK Nutfield,68.80, 24-Jan-2017
120,Revenue,CAHD,Home Care - Elderly - North,Day Care / Social Activities,Agincare UK Nutfield,172.00, 23-Jan-2017
121,Revenue,CAHD,Home Care - Elderly - North,Other Small Contracts,Agincare UK Nutfield,1956.50, 23-Jan-2017
122,Revenue,CAHD,Home care - Elderly MH - South,Other Small Contracts,Agincare UK Nutfield,68.80, 23-Jan-2017
123,Revenue,CAHD,Home Care - Elderly - North,Day Care / Social Activities,Agincare UK Nutfield,172.00, 30-Jan-2017
124,Revenue,CAHD,Home Care - Elderly - North,Other Small Contracts,Agincare UK Nutfield,1509.30, 30-Jan-2017
125,Revenue,CAHD,Home care - Elderly MH - South,Other Small Contracts,Agincare UK Nutfield,51.60, 30-Jan-2017
126,Revenue,CAHD,Home Care - Elderly - North,Day Care / Social Activities,Agincare UK Nutfield,172.00, 30-Jan-2017
127,Revenue,CAHD,Home Care - Elderly - North,Other Small Contracts,Agincare UK Nutfield,1780.20, 30-Jan-2017
128,Revenue,CAHD,Home care - Elderly MH - South,Other Small Contracts,Agincare UK Nutfield,64.50, 30-Jan-2017
129,Revenue,CAHD,Home Care - Elderly - North,Day Care / Social Activities,Agincare UK Nutfield,193.50, 30-Jan-2017
130,Revenue,CAHD,Home Care - Elderly - North,Other Small Contracts,Agincare UK Nutfield,1763.00, 30-Jan-2017
131,Revenue,CAHD,Home care - Elderly MH - South,Other Small Contracts,Agincare UK Nutfield,68.80, 30-Jan-2017
132,Revenue,CAHD,Home Care - Elderly - South,Supported Living,Alexandra Homes (Bristol) Limited,787.75, 12-Jan-2017
133,Revenue,CAHD,Home Care - Elderly - South,Other Small Contracts,AliMo Care Ltd,1604.46, 06-Jan-2017
134,Revenue,CAHD,Home Care - Elderly - South,Other Small Contracts,AliMo Care Ltd,1675.18, 13-Jan-2017
135,Revenue,CAHD,Home Care - Elderly - South,Other Small Contracts,AliMo Care Ltd,1648.66, 20-Jan-2017
136,Revenue,CAHD,Home Care - Elderly - South,Other Small Contracts,AliMo Care Ltd,1653.08, 31-Jan-2017
137,Revenue,CAHD,Mental Health and Emotional Wellbeing,External Lecturers Fees,Alpha Wellbeing Associates Limited,730.00, 23-Jan-2017
138,Revenue,CAHD,Bed Purchasing - South,Permanent Nursing,Ambleside Nusing Home,2098.88, 17-Jan-2017
139,Revenue,CAHD,Bed Purchasing - Southmead Hospital,Permanent Nursing,Amerind Grove Nursing Home,2537.76, 17-Jan-2017
140,Revenue,CAHD,Bed Purchasing - Southmead Hospital,Permanent Nursing,Amerind Grove Nursing Home,2234.08, 17-Jan-2017
141,Revenue,CAHD,CSC - Agency Fostering,Foster Parent Allowances,Amicus Foster Care Ltd,5398.14, 11-Jan-2017
142,Revenue,CAHD,CSC - Agency Fostering,Foster Parent Allowances,Amicus Foster Care Ltd,4805.31, 18-Jan-2017
143,Revenue,CAHD,CSC - Agency Fostering,Foster Parent Allowances,Amicus Foster Care Ltd,4805.31, 20-Jan-2017
144,Revenue,CAHD,Direct Payments - Phys Dis - North,Grants to Voluntary Bodies,Aquarium Card Management Solutions Ltd,2251.00, 30-Jan-2017
145,Revenue,CAHD,Bed Purchasing - North,Permanent Residential,Ark Care Homes Ltd,10895.08, 17-Jan-2017
146,Revenue,CAHD,S117 Placements PCT,Permanent Residential,Ash View House,7148.68, 17-Jan-2017
147,Revenue,CAHD,18-25 Year Olds,Permanent Residential,Ash View House,6716.52, 17-Jan-2017
148,Revenue,CAHD,Section 117 Placements MH Younger,Permanent Residential,Ash View House,4658.52, 17-Jan-2017
149,Revenue,CAHD,Jointly Funded H&SC Packages,Permanent Residential,Ash View House,1996.52, 17-Jan-2017
150,Revenue,CAHD,Bed purchasing - Elderly S117 - South,Permanent Residential,Ash View House,6331.72, 17-Jan-2017
151,Revenue,CAHD,Bed Purchasing - North,Permanent Residential,Aspects 2 Limited,6841.76, 17-Jan-2017
152,Revenue,CAHD,Independent Special Placements - Pre 16,Other Private Contractors,Aurora Hedgeway School,3788.58, 23-Jan-2017
153,Revenue,CAHD,Independent Special Placements - Pre 16,Other Private Contractors,Aurora Hedgeway School,3778.67, 23-Jan-2017
154,Revenue,CAHD,Independent Special Placements - Pre 16,Other Private Contractors,Aurora Hedgeway School,3796.92, 23-Jan-2017
155,Revenue,CAHD,Independent Special Placements - Pre 16,Other Private Contractors,Aurora Hedgeway School,3788.58, 23-Jan-2017
156,Revenue,CAHD,Independent Special Placements - Pre 16,Other Private Contractors,Aurora Hedgeway School,3788.58, 23-Jan-2017
157,Revenue,CAHD,Bed Purchasing - South,Permanent Residential,Autism Specialised Care Homes,6155.84, 17-Jan-2017
158,Revenue,CAHD,Children & Young People�s Health,Other Small Contracts,Barnardos,25131.00, 20-Jan-2017
159,Revenue,CAHD,Pensions - Non DSG,Annual Pension,Bath & North East Somerset Council,5860.45, 09-Jan-2017
160,Revenue,CAHD,Purchase of RAC places,Other L.A.'s - General,Bath & North East Somerset Council,4607.20, 27-Jan-2017
161,Revenue,CAHD,Purchase of RAC places,Other L.A.'s - General,Bath & North East Somerset Council,3139.76, 27-Jan-2017
162,Revenue,CAHD,Pensions - Non DSG,Annual Pension,Bath & North East Somerset Council,113404.16, 23-Jan-2017
163,Revenue,CAHD,CSC - Legal Fees,Legal Fees,Battrick Clark Solicitors,642.68, 23-Jan-2017
164,Revenue,CAHD,CSC - LAT/FPT/CHAD Admin Costs,Catering,Bawa Healthcare & Leisure,590.83, 19-Jan-2017
165,Revenue,CAHD,CSC - LAT/FPT/CHAD Admin Costs,Premises Hire,Bawa Healthcare & Leisure,479.17, 19-Jan-2017
166,Revenue,CAHD,Early Years Development,Conference Expenses,Bawa Healthcare & Leisure,2130.00, 18-Jan-2017
167,Revenue,CAHD,Bed Purchasing - Southmead Hospital,Permanent Nursing,Bayview Nursing & Residential Home,2026.76, 17-Jan-2017
168,Revenue,CAHD,Pathway 3 - (Complex Beds),Permanent Nursing,Beaufort Care Ltd,5271.00, 11-Jan-2017
169,Revenue,CAHD,Pathway 3 - (Complex Beds),Permanent Nursing,Beaufort Care Ltd,5271.00, 11-Jan-2017
170,Revenue,CAHD,Pathway 3 - (Complex Beds),Permanent Nursing,Beaufort Care Ltd,5271.00, 23-Jan-2017
171,Revenue,CAHD,Bed Purchasing - North,Permanent Residential,Beaufort House,2412.00, 17-Jan-2017
172,Revenue,CAHD,Bed Purchasing - North,Permanent Residential,Beaufort House,2432.64, 17-Jan-2017
173,Revenue,CAHD,Bed Purchasing - South,Permanent Residential,Beaufort House,2400.00, 17-Jan-2017
174,Revenue,CAHD,Bed Purchasing - South,Permanent Residential,Beaufort House,2309.36, 17-Jan-2017
175,Revenue,CAHD,Bed Purchasing - Southmead Hospital,Permanent Residential,Beaufort House,2432.64, 17-Jan-2017
176,Revenue,CAHD,Bed Purchasing - North,Permanent Residential,Beaufort House,2376.92, 17-Jan-2017
177,Revenue,CAHD,Bed Purchasing - North,Permanent Residential,Beaufort House,2376.92, 17-Jan-2017
178,Revenue,CAHD,Bed Purchasing - North,Permanent Residential,Beaufort House,2554.28, 17-Jan-2017
179,Revenue,CAHD,Bed Purchasing - Southmead Hospital,Permanent Residential,Beaufort House,2432.64, 17-Jan-2017
180,Revenue,CAHD,Bed Purchasing - South,Permanent Residential,Bedrock Lodge,3583.08, 17-Jan-2017
181,Revenue,CAHD,Bed Purchasing - South,Permanent Residential,Bedrock Lodge,3527.36, 17-Jan-2017
182,Revenue,CAHD,Section 117 Placements MH Younger,Permanent Residential,Bedrock Lodge,1925.00, 17-Jan-2017
183,Revenue,CAHD,South Glos Users in South Glos Homes,Permanent Nursing,Beech House,625.00, 17-Jan-2017
184,Revenue,CAHD,Bed Purchasing - South,Permanent Residential,Beech House,2800.00, 17-Jan-2017
185,Revenue,CAHD,South Glos Users in South Glos Homes,Permanent Nursing,Beech House,625.00, 17-Jan-2017
186,Revenue,CAHD,Bed Purchasing - North,Permanent Nursing,Beech House,2675.00, 17-Jan-2017
187,Revenue,CAHD,South Glos Users in South Glos Homes,Permanent Nursing,Beech House,625.00, 17-Jan-2017
188,Revenue,CAHD,South Glos Users in South Glos Homes,Permanent Nursing,Beech House,625.00, 17-Jan-2017
189,Revenue,CAHD,South Glos Users in South Glos Homes,Permanent Nursing,Beech House,625.00, 17-Jan-2017
190,Revenue,CAHD,South Glos Users in South Glos Homes,Permanent Nursing,Beech House,625.00, 17-Jan-2017
191,Revenue,CAHD,Bed Purchasing - North,Permanent Nursing,Beech House,2992.16, 17-Jan-2017
192,Revenue,CAHD,South Glos Users in South Glos Homes,Permanent Nursing,Beech House,625.00, 17-Jan-2017
193,Revenue,CAHD,Bed Purchasing - North,Permanent Residential,Beech House,2800.00, 17-Jan-2017
194,Revenue,CAHD,South Glos Users in South Glos Homes,Permanent Nursing,Beech House,625.00, 17-Jan-2017
195,Revenue,CAHD,South Glos Users in South Glos Homes,Permanent Nursing,Beech House,625.00, 17-Jan-2017
196,Revenue,CAHD,South Glos Users in South Glos Homes,Permanent Nursing,Beech House,625.00, 17-Jan-2017
197,Revenue,CAHD,South Glos Users in South Glos Homes,Permanent Nursing,Beech House,625.00, 17-Jan-2017
198,Revenue,CAHD,South Glos Users in South Glos Homes,Permanent Nursing,Beech House,625.00, 17-Jan-2017
199,Revenue,CAHD,South Glos Users in South Glos Homes,Permanent Nursing,Beech House,625.00, 17-Jan-2017
200,Revenue,CAHD,South Glos Users in South Glos Homes,Permanent Nursing,Beech House,625.00, 17-Jan-2017
201,Revenue,CAHD,South Glos Users in South Glos Homes,Permanent Nursing,Beech House,625.00, 17-Jan-2017
202,Revenue,CAHD,South Glos Users in South Glos Homes,Permanent Nursing,Beech House,625.00, 17-Jan-2017
203,Revenue,CAHD,Bed Purchasing - North,Respite Planned - Residential,Beech House,4007.14, 17-Jan-2017
204,Revenue,CAHD,Bed Purchasing - North,Respite Planned - Residential,Beech House,1335.71, 17-Jan-2017
205,Revenue,CAHD,South Glos Users in South Glos Homes,Permanent Nursing,Beech House,625.00, 17-Jan-2017
206,Revenue,CAHD,South Glos Users in South Glos Homes,Permanent Nursing,Beech House,625.00, 17-Jan-2017
207,Revenue,CAHD,Bed Purchasing - North,Permanent Nursing,Beech House,3129.00, 17-Jan-2017
208,Revenue,CAHD,South Glos Users in South Glos Homes,Permanent Nursing,Beech House,625.00, 17-Jan-2017
209,Revenue,CAHD,South Glos Users in South Glos Homes,Permanent Nursing,Beech House,625.00, 17-Jan-2017
210,Revenue,CAHD,South Glos Users in South Glos Homes,Permanent Nursing,Beech House,625.00, 17-Jan-2017
211,Revenue,CAHD,South Glos Users in South Glos Homes,Permanent Nursing,Beech House,1383.93, 17-Jan-2017
212,Revenue,CAHD,South Glos Users in South Glos Homes,Permanent Nursing,Beech House,625.00, 17-Jan-2017
213,Revenue,CAHD,South Glos Users in South Glos Homes,Permanent Nursing,Beech House,625.00, 17-Jan-2017
214,Revenue,CAHD,South Glos Users in South Glos Homes,Permanent Nursing,Beech House,625.00, 17-Jan-2017
215,Revenue,CAHD,South Glos Users in South Glos Homes,Permanent Nursing,Beech House,625.00, 17-Jan-2017
216,Revenue,CAHD,Statemented Support Payments to OLAs,Other L.A.'s - General,Beechen Cliff School,716.64, 30-Jan-2017
217,Revenue,CAHD,Independent Special Placements - Post 16,Other Private Contractors,Belgrave School,4736.00, 13-Jan-2017
218,Revenue,CAHD,Independent Special Placements - Pre 16,Other Private Contractors,Belgrave School,6298.00, 13-Jan-2017
219,Revenue,CAHD,Independent Special Placements - Pre 16,Other Private Contractors,Belgrave School,4633.33, 13-Jan-2017
220,Revenue,CAHD,Independent Special Placements - Pre 16,Other Private Contractors,Belgrave School,4916.00, 13-Jan-2017
221,Revenue,CAHD,Home Care - Elderly - North,Other Small Contracts,Bibby Factors Bristol Limited,7887.22, 19-Jan-2017
222,Revenue,CAHD,Home Care - Elderly - North,Other Small Contracts,Bibby Factors Bristol Limited,7723.44, 19-Jan-2017
223,Revenue,CAHD,Home Care - Elderly - North,Other Small Contracts,Bibby Factors Bristol Limited,7061.39, 19-Jan-2017
224,Revenue,CAHD,Home Care - Elderly - North,Other Small Contracts,Bibby Factors Bristol Limited,6944.94, 19-Jan-2017
225,Revenue,CAHD,Bed Purchasing - North,Permanent Nursing,Blossom Field,3478.68, 17-Jan-2017
226,Revenue,CAHD,South Glos Users in South Glos Homes,Permanent Nursing,Blossom Field,625.00, 17-Jan-2017
227,Revenue,CAHD,Bed Purchasing - North,Permanent Nursing,Blossom Field,762.81, 17-Jan-2017
228,Revenue,CAHD,Bed Purchasing - Elderly S117- North,Permanent Nursing,Blossom Field,3494.32, 17-Jan-2017
229,Revenue,CAHD,South Glos Users in South Glos Homes,Permanent Nursing,Blossom Field,625.00, 17-Jan-2017
230,Revenue,CAHD,South Glos Users in South Glos Homes,Permanent Nursing,Blossom Field,625.00, 17-Jan-2017
231,Revenue,CAHD,Bed Purchasing - North,Permanent Nursing,Blossom Field,3775.00, 17-Jan-2017
232,Revenue,CAHD,Bed Purchasing - North,Permanent Nursing,Blossom Field,1752.68, 17-Jan-2017
233,Revenue,CAHD,Bed Purchasing - Southmead Hospital,Permanent Nursing,Blossom Field,4800.00, 17-Jan-2017
234,Revenue,CAHD,South Glos Users in South Glos Homes,Permanent Nursing,Blossom Field,625.00, 17-Jan-2017
235,Revenue,CAHD,Bed Purchasing - North,Permanent Nursing,Blossom Field,3762.48, 17-Jan-2017
236,Revenue,CAHD,South Glos Users in South Glos Homes,Permanent Nursing,Blossom Field,625.00, 17-Jan-2017
237,Revenue,CAHD,South Glos Users in South Glos Homes,Permanent Nursing,Blossom Field,625.00, 17-Jan-2017
238,Revenue,CAHD,South Glos Users in South Glos Homes,Permanent Nursing,Blossom Field,625.00, 17-Jan-2017
239,Revenue,CAHD,South Glos Users in South Glos Homes,Permanent Nursing,Blossom Field,625.00, 17-Jan-2017
240,Revenue,CAHD,South Glos Users in South Glos Homes,Permanent Nursing,Blossom Field,625.00, 17-Jan-2017
241,Revenue,CAHD,South Glos Users in South Glos Homes,Permanent Nursing,Blossom Field,625.00, 17-Jan-2017
242,Revenue,CAHD,South Glos Users in South Glos Homes,Permanent Nursing,Blossom Field,3125.00, 17-Jan-2017
243,Revenue,CAHD,South Glos Users in South Glos Homes,Permanent Nursing,Blossom Field,625.00, 17-Jan-2017
244,Revenue,CAHD,Bed purchasing - Elderly S117 - South,Permanent Nursing,Blossom Field,4459.84, 17-Jan-2017
245,Revenue,CAHD,South Glos Users in South Glos Homes,Permanent Nursing,Blossom Field,625.00, 17-Jan-2017
246,Revenue,CAHD,South Glos Users in South Glos Homes,Permanent Nursing,Blossom Field,625.00, 17-Jan-2017
247,Revenue,CAHD,South Glos Users in South Glos Homes,Permanent Nursing,Blossom Field,625.00, 17-Jan-2017
248,Revenue,CAHD,South Glos Users in South Glos Homes,Permanent Nursing,Blossom Field,625.00, 17-Jan-2017
249,Revenue,CAHD,Bed purchasing - Elderly S117 - South,Permanent Nursing,Blossom Field,4411.20, 17-Jan-2017
250,Revenue,CAHD,South Glos Users in South Glos Homes,Permanent Nursing,Blossom Field,625.00, 17-Jan-2017
251,Revenue,CAHD,South Glos Users in South Glos Homes,Permanent Nursing,Blossom Field,625.00, 17-Jan-2017
252,Revenue,CAHD,South Glos Users in South Glos Homes,Permanent Nursing,Blossom Field,625.00, 17-Jan-2017
253,Revenue,CAHD,South Glos Users in South Glos Homes,Permanent Nursing,Blossom Field,625.00, 17-Jan-2017
254,Revenue,CAHD,South Glos Users in South Glos Homes,Permanent Nursing,Blossom Field,625.00, 17-Jan-2017
255,Revenue,CAHD,South Glos Users in South Glos Homes,Permanent Nursing,Blossom Field,625.00, 17-Jan-2017
256,Revenue,CAHD,South Glos Users in South Glos Homes,Permanent Nursing,Blossom Field,625.00, 17-Jan-2017
257,Revenue,CAHD,South Glos Users in South Glos Homes,Permanent Nursing,Blossom Field,625.00, 17-Jan-2017
258,Revenue,CAHD,South Glos Users in South Glos Homes,Permanent Nursing,Blossom Field,625.00, 17-Jan-2017
259,Revenue,CAHD,South Glos Users in South Glos Homes,Permanent Nursing,Blossom Field,625.00, 17-Jan-2017
260,Revenue,CAHD,South Glos Users in South Glos Homes,Permanent Nursing,Blossom Field,625.00, 17-Jan-2017
261,Revenue,CAHD,Bed Purchasing - North,Permanent Nursing,Blossom Field,3494.32, 17-Jan-2017
262,Revenue,CAHD,South Glos Users in South Glos Homes,Permanent Nursing,Blossom Field,625.00, 17-Jan-2017
263,Revenue,CAHD,Bed Purchasing - North,Permanent Nursing,Blossom Field,3438.84, 17-Jan-2017
264,Revenue,CAHD,South Glos Users in South Glos Homes,Permanent Nursing,Blossom Field,625.00, 17-Jan-2017
265,Revenue,CAHD,South Glos Users in South Glos Homes,Permanent Nursing,Blossom Field,625.00, 17-Jan-2017
266,Revenue,CAHD,South Glos Users in South Glos Homes,Permanent Nursing,Blossom Field,625.00, 17-Jan-2017
267,Revenue,CAHD,South Glos Users in South Glos Homes,Permanent Nursing,Blossom Fields,625.00, 09-Jan-2017
268,Revenue,CAHD,South Glos Users in South Glos Homes,Permanent Nursing,Blossom Fields,625.00, 09-Jan-2017
269,Revenue,CAHD,South Glos Users in South Glos Homes,Permanent Nursing,Blossom Fields,625.00, 09-Jan-2017
270,Revenue,CAHD,Bed Purchasing - North,Permanent Nursing,Blossom Fields,1860.16, 09-Jan-2017
271,Revenue,CAHD,Bed Purchasing - Southmead Hospital,Permanent Nursing,Blossom Fields,2129.20, 09-Jan-2017
272,Revenue,CAHD,Bed Purchasing - North,Permanent Nursing,Blossom Fields,2652.00, 09-Jan-2017
273,Revenue,CAHD,EY- 3 & 4 year old payments to providers,Preventative Assistance,Bluebells Pre School,540.60, 24-Jan-2017
274,Revenue,CAHD,Home Care - Elderly - South,Other Small Contracts,Bluebird Care (South Gloucestershire),602.40, 16-Jan-2017
275,Revenue,CAHD,Home Care - Elderly - North,Other Small Contracts,Bluebird Care (South Gloucestershire),1191.94, 16-Jan-2017
276,Revenue,CAHD,Home Care - Elderly - South,Other Small Contracts,Bluebird Care (South Gloucestershire),582.32, 30-Jan-2017
277,Revenue,CAHD,Home Care - Elderly - North,Other Small Contracts,Bluebird Care (South Gloucestershire),1077.60, 30-Jan-2017
278,Revenue,CAHD,Home Care - Elderly - South,Other Small Contracts,Bluebird Care (South Gloucestershire),602.40, 24-Jan-2017
279,Revenue,CAHD,Home Care - Elderly - North,Other Small Contracts,Bluebird Care (South Gloucestershire),1188.04, 24-Jan-2017
280,Revenue,CAHD,Training - Adult Services,Training Expenses,Bob Dawson,975.00, 13-Jan-2017
281,Revenue,CAHD,CSC - Vinney Green Secure Unit,"Provisions (Food, etc)",Booker Cash & Carry,653.65, 17-Jan-2017
282,Revenue,CAHD,Bed purchasing - S28A Under 65 - South,Permanent Residential,Bradbury House,4791.88, 17-Jan-2017
283,Revenue,CAHD,Bed Purchasing - South,Permanent Residential,Bradbury House,8267.72, 17-Jan-2017
284,Revenue,CAHD,Bed purchasing - S28A Under 65 - South,Permanent Residential,Bradbury House,7061.04, 17-Jan-2017
285,Revenue,CAHD,18-25 Year Olds,Permanent Residential,Bradbury House,9382.12, 17-Jan-2017
286,Revenue,CAHD,Bed purchasing - Elderly S117 - South,Permanent Residential,Bradbury House,8462.56, 17-Jan-2017
287,Revenue,CAHD,Jointly Funded H&SC Packages,Permanent Residential,Bradbury House,3144.08, 17-Jan-2017
288,Revenue,CAHD,Home Care - Elderly - North,Other Small Contracts,Bramble Home Care Limited,1120.56, 05-Jan-2017
289,Revenue,CAHD,CSC - Residential Placements,Permanent Residential,Branas ISAF Ltd,4500.00, 26-Jan-2017
290,Revenue,CAHD,CSC - Residential Placements,Permanent Residential,Branas ISAF Ltd,20357.14, 26-Jan-2017
291,Revenue,CAHD,CSC - Residential Placements,Permanent Residential,Branas ISAF Ltd,19928.57, 13-Jan-2017
292,Revenue,CAHD,CSC - Residential Placements,Permanent Residential,Branas ISAF Ltd,21035.71, 13-Jan-2017
293,Revenue,CAHD,South Glos Users in South Glos Homes,Permanent Nursing,Brandon Trust,625.00, 17-Jan-2017
294,Revenue,CAHD,South Glos Users in South Glos Homes,Permanent Nursing,Brandon Trust,625.00, 17-Jan-2017
295,Revenue,CAHD,South Glos Users in South Glos Homes,Permanent Nursing,Brandon Trust,625.00, 17-Jan-2017
296,Revenue,CAHD,Bed Purchasing - South,Permanent Nursing,Brandon Trust,5537.76, 17-Jan-2017
297,Revenue,CAHD,South Glos Users in South Glos Homes,Permanent Nursing,Brandon Trust,625.00, 17-Jan-2017
298,Revenue,CAHD,Bed Purchasing - South,Permanent Residential,Brandon Trust,10847.76, 17-Jan-2017
299,Revenue,CAHD,Bed Purchasing - South,Permanent Residential,Brandon Trust,4495.92, 17-Jan-2017
300,Revenue,CAHD,Bed Purchasing - Southmead Hospital,Permanent Nursing,Brandon Trust,5487.72, 17-Jan-2017
301,Revenue,CAHD,South Glos Users in South Glos Homes,Permanent Nursing,Brandon Trust,625.00, 17-Jan-2017
302,Revenue,CAHD,Bed Purchasing - South,Permanent Nursing,Brandon Trust,5487.72, 17-Jan-2017
303,Revenue,CAHD,South Glos Users in South Glos Homes,Permanent Nursing,Brandon Trust,625.00, 17-Jan-2017
304,Revenue,CAHD,Bed purchasing - S28A Under 65 - South,Permanent Nursing,Brandon Trust,5817.92, 17-Jan-2017
305,Revenue,CAHD,South Glos Users in South Glos Homes,Permanent Nursing,Brandon Trust,625.00, 17-Jan-2017
306,Revenue,CAHD,Bed purchasing - S28A Under 65 - South,Permanent Residential,Brandon Trust,5714.96, 17-Jan-2017
307,Revenue,CAHD,Bed Purchasing - LD S28A- Over 65- South,Permanent Nursing,Brandon Trust,5817.92, 17-Jan-2017
308,Revenue,CAHD,South Glos Users in South Glos Homes,Permanent Nursing,Brandon Trust,625.00, 17-Jan-2017
309,Revenue,CAHD,Bed Purchasing - LD S28A- Over 65- South,Permanent Nursing,Brandon Trust,5487.72, 17-Jan-2017
310,Revenue,CAHD,South Glos Users in South Glos Homes,Permanent Nursing,Brandon Trust,625.00, 17-Jan-2017
311,Revenue,CAHD,Bed Purchasing - South,Permanent Residential,Brandon Trust,3708.68, 17-Jan-2017
312,Revenue,CAHD,Bed purchasing - S28A Under 65 - South,Permanent Residential,Brandon Trust,5657.72, 17-Jan-2017
313,Revenue,CAHD,Bed purchasing - S28A Under 65 - South,Permanent Residential,Brandon Trust,5714.76, 17-Jan-2017
314,Revenue,CAHD,South Glos Users in South Glos Homes,Permanent Nursing,Brandon Trust,625.00, 17-Jan-2017
315,Revenue,CAHD,Bed purchasing - S28A Under 65 - South,Permanent Nursing,Brandon Trust,5817.92, 17-Jan-2017
316,Revenue,CAHD,South Glos Users in South Glos Homes,Permanent Nursing,Brandon Trust,625.00, 17-Jan-2017
317,Revenue,CAHD,Bed purchasing -S28A  Under 65 - North,Permanent Nursing,Brandon Trust,5267.04, 17-Jan-2017
318,Revenue,CAHD,Bed purchasing - S28A Under 65 - South,Permanent Residential,Brandon Trust,5714.76, 17-Jan-2017
319,Revenue,CAHD,Bed Purchasing - LD S28A- Over 65- South,Permanent Residential,Brandon Trust,5372.72, 17-Jan-2017
320,Revenue,CAHD,Social Lettings Agency,Fees - General,Individual,11.41, 03-Jan-2017
321,Revenue,CAHD,Social Lettings Agency,Other Supplies & Services,Individual,746.54, 03-Jan-2017
322,Revenue,CAHD,Bed Purchasing - Southmead Hospital,Permanent Residential,Bridge House Care Home,2392.00, 17-Jan-2017
323,Revenue,CAHD,Bed Purchasing - North,Permanent Residential,Bridge House Care Home,2351.56, 17-Jan-2017
324,Revenue,CAHD,Bed purchasing - Elderly S117 - South,Respite Planned - Residential,Bridge House Care Home,2392.00, 17-Jan-2017
325,Revenue,CAHD,Bed Purchasing - North,Permanent Residential,Bridge House Care Home,2163.68, 17-Jan-2017
326,Revenue,CAHD,Bed Purchasing - North,Permanent Residential,Bridge House Care Home,2274.48, 17-Jan-2017
327,Revenue,CAHD,Training Budget - Children`s Social Serv,Training Expenses,Bridget Rothwell,3000.00, 06-Jan-2017
328,Revenue,CAHD,Bed Purchasing - North,Permanent Residential,Bridgwater Court,10192.44, 17-Jan-2017
329,Revenue,CAHD,Bed Purchasing - South,Permanent Residential,Brightbow,2654.68, 17-Jan-2017
330,Revenue,CAHD,MH Purchasing - Younger,Permanent Residential,Brightbow,2179.12, 17-Jan-2017
331,Revenue,CAHD,Statemented Support Academies,Schools Funding,Bristol & South Gloucestershire UTC,649.97, 30-Jan-2017
332,Revenue,CAHD,CSC - Care Leavers Support Costs,Personal Needs of Clients,Bristol Children`s contact Services Ltd DO NOT,24380.00, 10-Jan-2017
333,Revenue,CAHD,CSC - Care Leavers Support Costs,Personal Needs of Clients,Bristol Children`s contact Services Ltd DO NOT,29060.00, 17-Jan-2017
334,Revenue,CAHD,CSC - LAT Placements,Other Transport Costs,Bristol Children`s contact Services Ltd DO NOT,737.64, 31-Jan-2017
335,Revenue,CAHD,NTS Grant - Trainee Social Wor,Training Expenses,Bristol City Council,36000.00, 19-Jan-2017
336,Revenue,CAHD,NTS Grant - Trainee Social Wor,Training Expenses,Bristol City Council,11500.00, 17-Jan-2017
337,Revenue,CAHD,Placements OLA Special Schools and RB,Other L.A.'s - General,Bristol City Council - Schools,2148.00, 30-Jan-2017
338,Revenue,CAHD,Placements OLA Special Schools and RB,Other L.A.'s - General,Bristol City Council - Schools,2750.50, 30-Jan-2017
339,Revenue,CAHD,Placements OLA Special Schools and RB,Other L.A.'s - General,Bristol City Council - Schools,1444.92, 30-Jan-2017
340,Revenue,CAHD,Statemented Support Payments to OLAs,Other L.A.'s - General,Bristol City Council - Schools,1374.97, 30-Jan-2017
341,Revenue,CAHD,Statemented Support Payments to OLAs,Other L.A.'s - General,Bristol City Council - Schools,5458.19, 30-Jan-2017
342,Revenue,CAHD,Placements OLA Special Schools and RB,Other L.A.'s - General,Bristol City Council - Schools,2750.50, 30-Jan-2017
343,Revenue,CAHD,Placements OLA Special Schools and RB,Other L.A.'s - General,Bristol City Council - Schools,1398.00, 30-Jan-2017
344,Revenue,CAHD,Placements OLA Special Schools and RB,Other L.A.'s - General,Bristol City Council - Schools,833.33, 30-Jan-2017
345,Revenue,CAHD,Placements OLA Special Schools and RB,Other L.A.'s - General,Bristol City Council - Schools,1333.33, 30-Jan-2017
346,Revenue,CAHD,Placements OLA Special Schools and RB,Other L.A.'s - General,Bristol City Council - Schools,3583.83, 30-Jan-2017
347,Revenue,CAHD,Placements OLA Special Schools and RB,Other L.A.'s - General,Bristol City Council - Schools,2750.50, 30-Jan-2017
348,Revenue,CAHD,Placements OLA Special Schools and RB,Other L.A.'s - General,Bristol City Council - Schools,2750.50, 30-Jan-2017
349,Revenue,CAHD,Placements OLA Special Schools and RB,Other L.A.'s - General,Bristol City Council - Schools,1477.33, 30-Jan-2017
350,Revenue,CAHD,Placements OLA Special Schools and RB,Other L.A.'s - General,Bristol City Council - Schools,977.33, 30-Jan-2017
351,Revenue,CAHD,Placements OLA Special Schools and RB,Other L.A.'s - General,Bristol City Council - Schools,1477.33, 30-Jan-2017
352,Revenue,CAHD,Placements OLA Special Schools and RB,Other L.A.'s - General,Bristol City Council - Schools,833.33, 30-Jan-2017
353,Revenue,CAHD,Placements OLA Special Schools and RB,Other L.A.'s - General,Bristol City Council - Schools,2750.50, 30-Jan-2017
354,Revenue,CAHD,Statemented Support Payments to OLAs,Other L.A.'s - General,Bristol City Council - Schools,641.64, 30-Jan-2017
355,Revenue,CAHD,Placements OLA Special Schools and RB,Other L.A.'s - General,Bristol City Council - Schools,866.50, 30-Jan-2017
356,Revenue,CAHD,Statemented Support Payments to OLAs,Other L.A.'s - General,Bristol City Council - Schools,966.60, 30-Jan-2017
357,Revenue,CAHD,Placements OLA Special Schools and RB,Other L.A.'s - General,Bristol City Council - Schools,4335.04, 30-Jan-2017
358,Revenue,CAHD,Placements OLA Special Schools and RB,Other L.A.'s - General,Bristol City Council - Schools,2750.50, 30-Jan-2017
359,Revenue,CAHD,Placements OLA Special Schools and RB,Other L.A.'s - General,Bristol City Council - Schools,1398.00, 30-Jan-2017
360,Revenue,CAHD,Placements OLA Special Schools and RB,Other L.A.'s - General,Bristol City Council - Schools,2750.50, 30-Jan-2017
361,Revenue,CAHD,Placements OLA Special Schools and RB,Other L.A.'s - General,Bristol City Council - Schools,2200.40, 30-Jan-2017
362,Revenue,CAHD,Placements OLA Special Schools and RB,Other L.A.'s - General,Bristol City Council - Schools,2227.33, 30-Jan-2017
363,Revenue,CAHD,Placements OLA Special Schools and RB,Other L.A.'s - General,Bristol City Council - Schools,2750.50, 30-Jan-2017
364,Revenue,CAHD,Placements OLA Special Schools and RB,Other L.A.'s - General,Bristol City Council - Schools,3060.67, 30-Jan-2017
365,Revenue,CAHD,Placements OLA Special Schools and RB,Other L.A.'s - General,Bristol City Council - Schools,944.92, 30-Jan-2017
366,Revenue,CAHD,Home Care - Elderly - North,Day Care / Social Activities,Bristol Community Links North,983.52, 17-Jan-2017
367,Revenue,CAHD,Home Care - Elderly - North,Day Care / Social Activities,Bristol Community Links North,2335.86, 17-Jan-2017
368,Revenue,CAHD,CSC - Vinney Green Secure Unit,R & M by Departments,Bristol Electrical Wholesale Limited,707.70, 10-Jan-2017
369,Revenue,CAHD,CSC - Vinney Green Secure Unit,R & M by Departments,Bristol Electrical Wholesale Limited,562.00, 10-Jan-2017
370,Revenue,CAHD,Statemented Support Payments to OLAs,Other L.A.'s - General,Bristol Free School,933.30, 30-Jan-2017
371,Revenue,CAHD,Bed and Breakfast,Storage & Removal,Bristol Removals LTD,420.00, 20-Jan-2017
372,Revenue,CAHD,Home Care - Elderly - North,Day Care / Social Activities,Britannia House,937.28, 17-Jan-2017
373,Revenue,CAHD,18-25 Year Olds,Day Care / Social Activities,Britannia House,702.96, 17-Jan-2017
374,Revenue,CAHD,Home Care - Elderly - North,Day Care / Social Activities,Britannia House,702.96, 17-Jan-2017
375,Revenue,CAHD,Home Care - Elderly - North,Day Care / Social Activities,Britannia House,937.28, 17-Jan-2017
376,Revenue,CAHD,Home Care - Elderly - South,Day Care / Social Activities,Britannia House,937.28, 17-Jan-2017
377,Revenue,CAHD,Home Care - Elderly - South,Day Care / Social Activities,Britannia House,702.96, 17-Jan-2017
378,Revenue,CAHD,Home Care - Elderly - South,Day Care / Social Activities,Britannia House,702.96, 17-Jan-2017
379,Revenue,CAHD,Sexual Health,Other Small Contracts,Brook Advisory Centre (Avon),27870.00, 05-Jan-2017
380,Revenue,CAHD,Home Care - Elderly - North,Private & Voluntary Home Care,Brunelcare,23822.65, 09-Jan-2017
381,Revenue,CAHD,Home Care - Elderly - North,Private & Voluntary Home Care,Brunelcare,23822.65, 16-Jan-2017
382,Revenue,CAHD,Pathway 1 - Re-Ablement Home Care,Private & Voluntary Home Care,Brunelcare,23822.65, 23-Jan-2017
383,Revenue,CAHD,Pathway 1 - Re-Ablement Home Care,Private & Voluntary Home Care,Brunelcare,24132.35, 30-Jan-2017
384,Revenue,CAHD,Bed Purchasing - Southmead Hospital,Permanent Nursing,Brunelcare,2747.64, 17-Jan-2017
385,Revenue,CAHD,Bed Purchasing - North,Permanent Nursing,Brunelcare,755.10, 17-Jan-2017
386,Revenue,CAHD,Bed Purchasing - South,Permanent Nursing,Brunelcare,999.14, 17-Jan-2017
387,Revenue,CAHD,Bed purchasing - Elderly S117 - South,Permanent Nursing,Brunelcare,2359.14, 17-Jan-2017
388,Revenue,CAHD,South Glos Users in South Glos Homes,Permanent Nursing,Brunelcare,691.96, 17-Jan-2017
389,Revenue,CAHD,Bed Purchasing - Elderly S117- North,Permanent Nursing,Brunelcare,3179.71, 17-Jan-2017
390,Revenue,CAHD,Bed Purchasing - South,Permanent Nursing,Brunelcare,749.36, 17-Jan-2017
391,Revenue,CAHD,Bed Purchasing - Southmead Hospital,Respite Emergency - Nursing,Brunelcare,1929.70, 17-Jan-2017
392,Revenue,CAHD,Bed Purchasing - Elderly S117- North,Permanent Nursing,Brunelcare,3179.71, 17-Jan-2017
393,Revenue,CAHD,South Glos Users in South Glos Homes,Permanent Nursing,Brunelcare,691.96, 17-Jan-2017
394,Revenue,CAHD,Bed Purchasing - Southmead Hospital,Permanent Nursing,Brunelcare,1444.07, 17-Jan-2017
395,Revenue,CAHD,South Glos Users in South Glos Homes,Permanent Nursing,Brunelcare,691.96, 17-Jan-2017
396,Revenue,CAHD,Bed Purchasing - South,Permanent Nursing,Brunelcare,2385.49, 17-Jan-2017
397,Revenue,CAHD,South Glos Users in South Glos Homes,Permanent Nursing,Brunelcare,691.96, 17-Jan-2017
398,Revenue,CAHD,Bed Purchasing - South,Permanent Nursing,Brunelcare,2409.41, 17-Jan-2017
399,Revenue,CAHD,South Glos Users in South Glos Homes,Permanent Nursing,Brunelcare,691.96, 17-Jan-2017
400,Revenue,CAHD,Bed purchasing - Elderly S117 - South,Permanent Nursing,Brunelcare,3179.71, 17-Jan-2017
401,Revenue,CAHD,South Glos Users in South Glos Homes,Permanent Nursing,Brunelcare,691.96, 17-Jan-2017
402,Revenue,CAHD,Bed Purchasing - North,Permanent Nursing,Brunelcare,2529.78, 17-Jan-2017
403,Revenue,CAHD,South Glos Users in South Glos Homes,Permanent Nursing,Brunelcare,691.96, 17-Jan-2017
404,Revenue,CAHD,Bed Purchasing - Southmead Hospital,Permanent Nursing,Brunelcare,2430.09, 17-Jan-2017
405,Revenue,CAHD,South Glos Users in South Glos Homes,Permanent Nursing,Brunelcare,691.96, 17-Jan-2017
406,Revenue,CAHD,Bed Purchasing - North,Permanent Nursing,Brunelcare,2552.72, 17-Jan-2017
407,Revenue,CAHD,South Glos Users in South Glos Homes,Permanent Nursing,Brunelcare,691.96, 17-Jan-2017
408,Revenue,CAHD,Bed Purchasing - North,Permanent Nursing,Brunelcare,2600.90, 17-Jan-2017
409,Revenue,CAHD,South Glos Users in South Glos Homes,Permanent Nursing,Brunelcare,691.96, 17-Jan-2017
410,Revenue,CAHD,Bed Purchasing - Southmead Hospital,Permanent Nursing,Brunelcare,2600.90, 17-Jan-2017
411,Revenue,CAHD,Bed Purchasing - Southmead Hospital,Permanent Nursing,Brunelcare,972.14, 17-Jan-2017
412,Revenue,CAHD,Bed Purchasing - Southmead Hospital,Permanent Nursing,Brunelcare,1025.71, 17-Jan-2017
413,Revenue,CAHD,Bed Purchasing - Southmead Hospital,Permanent Nursing,Brunelcare,755.10, 17-Jan-2017
414,Revenue,CAHD,South Glos Users in South Glos Homes,Permanent Nursing,Brunelcare,691.96, 17-Jan-2017
415,Revenue,CAHD,Bed Purchasing - Elderly S117- North,Permanent Nursing,Brunelcare,3179.71, 17-Jan-2017
416,Revenue,CAHD,Bed Purchasing - North,Respite Planned - Nursing,Brunelcare,1025.71, 17-Jan-2017
417,Revenue,CAHD,Bed Purchasing - North,Respite Planned - Nursing,Brunelcare,1641.14, 17-Jan-2017
418,Revenue,CAHD,South Glos Users in South Glos Homes,Permanent Nursing,Brunelcare,1473.21, 17-Jan-2017
419,Revenue,CAHD,South Glos Users in South Glos Homes,Permanent Nursing,Brunelcare,2700.89, 17-Jan-2017
420,Revenue,CAHD,Pathway 2 - (Interim Beds),Permanent Nursing,Brunelcare,51086.88, 18-Jan-2017
421,Revenue,CAHD,Pathway 2 - (Interim Beds),Permanent Nursing,Brunelcare,51086.88, 26-Jan-2017
422,Revenue,CAHD,Pathway 2 - (Interim Beds),Permanent Nursing,Brunelcare,15407.00, 23-Jan-2017
423,Revenue,CAHD,Home Care - Elderly - South,Other Small Contracts,Brunelcare,2201.16, 10-Jan-2017
424,Revenue,CAHD,Home Care - Elderly - North,Other Small Contracts,Brunelcare,1370.20, 10-Jan-2017
425,Revenue,CAHD,Home Care - Elderly - South,Other Small Contracts,Brunelcare,2187.90, 10-Jan-2017
426,Revenue,CAHD,Home Care - Elderly - North,Other Small Contracts,Brunelcare,1303.90, 10-Jan-2017
427,Revenue,CAHD,Woodleaze,Agency Staff (Admin/Support Staff) Pay,BS Project Services Limited,665.20, 06-Jan-2017
428,Revenue,CAHD,Woodleaze,Agency Staff (Admin/Support Staff) Pay,BS Project Services Limited,498.90, 18-Jan-2017
429,Revenue,CAHD,Woodleaze,Agency Staff (Admin/Support Staff) Pay,BS Project Services Limited,665.20, 26-Jan-2017
430,Revenue,CAHD,Bed Purchasing - North,Permanent Nursing,Bupa Care Services  Bridge House,1740.00, 17-Jan-2017
431,Revenue,CAHD,Jointly Funded H&SC Packages,Permanent Nursing,Bupa Care Services  Bridge House,4344.04, 17-Jan-2017
432,Revenue,CAHD,South Glos Users in all other LA Homes,Permanent Nursing,Bupa Care Services  Bridge House,860.16, 17-Jan-2017
433,Revenue,CAHD,CSC - Vinney Green Secure Unit,R & M by Departments,C A T Technical Services Limited,1648.00, 17-Jan-2017
434,Revenue,CAHD,CSC - Asylum Seekers - Unaccompanied,Other Public Bodies,Cabot Learning Federation,3300.00, 31-Jan-2017
435,Revenue,CAHD,CSC - Asylum Seekers - Unaccompanied,Other Public Bodies,Cabot Learning Federation,8427.96, 25-Jan-2017
436,Revenue,CAHD,Statemented Support Payments to OLAs,Other L.A.'s - General,Cabot Learning Federation,1099.97, 30-Jan-2017
437,Revenue,CAHD,Statemented Support Payments to OLAs,Other L.A.'s - General,Cabot Learning Federation,524.97, 30-Jan-2017
438,Revenue,CAHD,Statemented Support Academies,Schools Funding,Cabot Learning Federation,641.64, 30-Jan-2017
439,Revenue,CAHD,Statemented Support Academies,Schools Funding,Cabot Learning Federation,691.64, 30-Jan-2017
440,Revenue,CAHD,Statemented Support Payments to OLAs,Other L.A.'s - General,Cabot Learning Federation,2083.19, 30-Jan-2017
441,Revenue,CAHD,Statemented Support Academies,Schools Funding,Cabot Learning Federation,691.64, 30-Jan-2017
442,Revenue,CAHD,Statemented Support Academies,Schools Funding,Cabot Learning Federation,624.97, 30-Jan-2017
443,Revenue,CAHD,Statemented Support Academies,Schools Funding,Cabot Learning Federation,558.30, 30-Jan-2017
444,Revenue,CAHD,Statemented Support Academies,Schools Funding,Cabot Learning Federation,583.30, 30-Jan-2017
445,Revenue,CAHD,Statemented Support Academies,Schools Funding,Cabot Learning Federation,583.30, 30-Jan-2017
446,Revenue,CAHD,Statemented Support Academies,Schools Funding,Cabot Learning Federation,1408.30, 30-Jan-2017
447,Revenue,CAHD,Statemented Support Academies,Schools Funding,Cabot Learning Federation,599.97, 30-Jan-2017
448,Revenue,CAHD,Statemented Support Academies,Schools Funding,Cabot Learning Federation,724.97, 30-Jan-2017
449,Revenue,CAHD,Statemented Support Academies,Schools Funding,Cabot Learning Federation,691.64, 30-Jan-2017
450,Revenue,CAHD,Statemented Support Academies,Schools Funding,Cabot Learning Federation,583.30, 30-Jan-2017
451,Revenue,CAHD,Statemented Support Academies,Schools Funding,Cabot Learning Federation,1316.64, 30-Jan-2017
452,Revenue,CAHD,Statemented Support Academies,Schools Funding,Cabot Learning Federation,624.97, 30-Jan-2017
453,Revenue,CAHD,Statemented Support Academies,Schools Funding,Cabot Learning Federation,899.97, 30-Jan-2017
454,Revenue,CAHD,Statemented Support Academies,Schools Funding,Cabot Learning Federation,683.30, 30-Jan-2017
455,Revenue,CAHD,Statemented Support Academies,Schools Funding,Cabot Learning Federation,958.30, 30-Jan-2017
456,Revenue,CAHD,Statemented Support Academies,Schools Funding,Cabot Learning Federation,749.97, 30-Jan-2017
457,Revenue,CAHD,Statemented Support Academies,Schools Funding,Cabot Learning Federation,933.30, 30-Jan-2017
458,Revenue,CAHD,Statemented Support Academies,Schools Funding,Cabot Learning Federation,549.97, 30-Jan-2017
459,Revenue,CAHD,Statemented Support Payments to OLAs,Other L.A.'s - General,Cabot Learning Federation,583.30, 30-Jan-2017
460,Revenue,CAHD,Statemented Support Academies,Schools Funding,Cabot Learning Federation,841.64, 30-Jan-2017
461,Revenue,CAHD,Statemented Support Academies,Schools Funding,Cabot Learning Federation,1308.30, 30-Jan-2017
462,Revenue,CAHD,CAHC - Complaints & Advocacy Service,Complaints External Expenses,Caitriona Tobin,1309.25, 09-Jan-2017
463,Revenue,CAHD,Independent Special Placements - Pre 16,Other Private Contractors,Calder House School,5400.00, 30-Jan-2017
464,Revenue,CAHD,Post 16 High Needs Placements,Other Private Contractors,Cambian Whinfell School Ltd,28012.92, 09-Jan-2017
465,Revenue,CAHD,Post 16 High Needs Placements,Other Private Contractors,Cambian Whinfell School Ltd,17739.75, 09-Jan-2017
466,Revenue,CAHD,Post 16 High Needs Placements,Other Private Contractors,Cambian Whinfell School Ltd,15657.35, 09-Jan-2017
467,Revenue,CAHD,Home Care - Elderly - North,Day Care / Social Activities,Camphill Communities Thornbury Limited,781.42, 06-Jan-2017
468,Revenue,CAHD,Home Care - Elderly - North,Other Small Contracts,Camphill Communities Thornbury Limited,158.04, 06-Jan-2017
469,Revenue,CAHD,Home Care - Elderly - North,Supported Living,Camphill Communities Thornbury Limited,878.00, 06-Jan-2017
470,Revenue,CAHD,Home Care - Elderly - North,Day Care / Social Activities,Camphill Communities Thornbury Limited,952.63, 13-Jan-2017
471,Revenue,CAHD,Home Care - Elderly - North,Other Small Contracts,Camphill Communities Thornbury Limited,166.82, 13-Jan-2017
472,Revenue,CAHD,Home Care - Elderly - North,Supported Living,Camphill Communities Thornbury Limited,948.24, 13-Jan-2017
473,Revenue,CAHD,Home Care - Elderly - North,Day Care / Social Activities,Camphill Communities Thornbury Limited,908.73, 20-Jan-2017
474,Revenue,CAHD,Home Care - Elderly - North,Other Small Contracts,Camphill Communities Thornbury Limited,158.04, 20-Jan-2017
475,Revenue,CAHD,Home Care - Elderly - North,Supported Living,Camphill Communities Thornbury Limited,658.50, 20-Jan-2017
476,Revenue,CAHD,Bed Purchasing - Elderly S117- North,Permanent Residential,Canjayor,2391.32, 17-Jan-2017
477,Revenue,CAHD,0-25  Service Staffing Team,Agency Staff (Admin/Support Staff) Pay,Capita Resourcing Limited,8640.00, 05-Jan-2017
478,Revenue,CAHD,CAH Assistant Directors,Agency Staff (Admin/Support Staff) Pay,Capita Resourcing Limited,13420.00, 05-Jan-2017
479,Revenue,CAHD,Home Care - Elderly - South,Other Small Contracts,Care 1st Homecare,5275.40, 09-Jan-2017
480,Revenue,CAHD,Home Care - Elderly - North,Other Small Contracts,Care 1st Homecare,7980.30, 09-Jan-2017
481,Revenue,CAHD,Home Care - Elderly - South,Other Small Contracts,Care 1st Homecare,5378.10, 10-Jan-2017
482,Revenue,CAHD,Home Care - Elderly - North,Other Small Contracts,Care 1st Homecare,6364.72, 10-Jan-2017
483,Revenue,CAHD,Home Care - Elderly - South,Other Small Contracts,Care 1st Homecare,5216.90, 11-Jan-2017
484,Revenue,CAHD,Home Care - Elderly - North,Other Small Contracts,Care 1st Homecare,6506.06, 11-Jan-2017
485,Revenue,CAHD,Home Care - Elderly - South,Other Small Contracts,Care 1st Homecare,5284.89, 10-Jan-2017
486,Revenue,CAHD,Home Care - Elderly - North,Other Small Contracts,Care 1st Homecare,7863.00, 10-Jan-2017
487,Revenue,CAHD,Home Care - Elderly - South,Other Small Contracts,Care 1st Homecare,5355.22, 11-Jan-2017
488,Revenue,CAHD,Home Care - Elderly - North,Other Small Contracts,Care 1st Homecare,7725.98, 11-Jan-2017
489,Revenue,CAHD,Home Care - Elderly - South,Other Small Contracts,Care 1st Homecare,5699.07, 11-Jan-2017
490,Revenue,CAHD,Home Care - Elderly - North,Other Small Contracts,Care 1st Homecare,7611.06, 11-Jan-2017
491,Revenue,CAHD,Home Care - Elderly - South,Other Small Contracts,Care 1st Homecare,6308.64, 16-Jan-2017
492,Revenue,CAHD,Home Care - Elderly - North,Other Small Contracts,Care 1st Homecare,7018.78, 16-Jan-2017
493,Revenue,CAHD,Home Care - Elderly - South,Other Small Contracts,Care 1st Homecare,6100.90, 16-Jan-2017
494,Revenue,CAHD,Home Care - Elderly - North,Other Small Contracts,Care 1st Homecare,6598.88, 16-Jan-2017
495,Revenue,CAHD,Home Care - Elderly - South,Other Small Contracts,Care Horizons Limited,387.00, 09-Jan-2017
496,Revenue,CAHD,Home Care - Elderly - North,Day Care / Social Activities,Care Horizons Limited,157.50, 09-Jan-2017
497,Revenue,CAHD,Home Care - Elderly - North,Other Small Contracts,Care Horizons Limited,369.00, 09-Jan-2017
498,Revenue,CAHD,Home Care - Elderly - South,Other Small Contracts,Care Horizons Limited,360.24, 09-Jan-2017
499,Revenue,CAHD,Home Care - Elderly - North,Day Care / Social Activities,Care Horizons Limited,164.16, 09-Jan-2017
500,Revenue,CAHD,Home Care - Elderly - North,Other Small Contracts,Care Horizons Limited,693.12, 09-Jan-2017
501,Revenue,CAHD,Home Care - Elderly - South,Other Small Contracts,Care Horizons Limited,346.56, 09-Jan-2017
502,Revenue,CAHD,Home Care - Elderly - North,Day Care / Social Activities,Care Horizons Limited,168.72, 09-Jan-2017
503,Revenue,CAHD,Home Care - Elderly - North,Other Small Contracts,Care Horizons Limited,706.80, 09-Jan-2017
504,Revenue,CAHD,Home Care - Elderly - South,Other Small Contracts,Care Horizons Limited,351.12, 09-Jan-2017
505,Revenue,CAHD,Home Care - Elderly - North,Day Care / Social Activities,Care Horizons Limited,45.60, 09-Jan-2017
506,Revenue,CAHD,Home Care - Elderly - North,Other Small Contracts,Care Horizons Limited,401.28, 09-Jan-2017
507,Revenue,CAHD,Home Care - Elderly - South,Other Small Contracts,Care Horizons Limited,351.12, 24-Jan-2017
508,Revenue,CAHD,Home Care - Elderly - North,Day Care / Social Activities,Care Horizons Limited,50.16, 24-Jan-2017
509,Revenue,CAHD,Home Care - Elderly - North,Other Small Contracts,Care Horizons Limited,556.32, 24-Jan-2017
510,Revenue,CAHD,Home Care - Elderly - South,Other Small Contracts,Care Horizons Limited,355.68, 31-Jan-2017
511,Revenue,CAHD,Home Care - Elderly - North,Day Care / Social Activities,Care Horizons Limited,538.08, 31-Jan-2017
512,Revenue,CAHD,Home Care - Elderly - North,Other Small Contracts,Care Horizons Limited,688.56, 31-Jan-2017
513,Revenue,CAHD,Home Care - Elderly - South,Other Small Contracts,Care Horizons Limited,424.08, 31-Jan-2017
514,Revenue,CAHD,Home Care - Elderly - North,Day Care / Social Activities,Care Horizons Limited,551.76, 31-Jan-2017
515,Revenue,CAHD,Home Care - Elderly - North,Other Small Contracts,Care Horizons Limited,638.40, 31-Jan-2017
516,Revenue,CAHD,Home Care Monitoring (CM2000),Other Supplies & Services,Care Monitoring 2000 Limited DO NOT USE,9335.12, 10-Jan-2017
517,Revenue,CAHD,Home Care - Elderly - South,Other Small Contracts,Carers R Us (Bristol) Limited,729.30, 17-Jan-2017
518,Revenue,CAHD,Home Care - Elderly - North,Other Small Contracts,Carers R Us (Bristol) Limited,2162.43, 17-Jan-2017
519,Revenue,CAHD,Home Care - Elderly - South,Other Small Contracts,Carers R Us (Bristol) Limited,689.52, 23-Jan-2017
520,Revenue,CAHD,Home Care - Elderly - North,Other Small Contracts,Carers R Us (Bristol) Limited,2093.57, 23-Jan-2017
521,Revenue,CAHD,Home Care - Elderly - South,Other Small Contracts,Carers R Us (Bristol) Limited,738.14, 31-Jan-2017
522,Revenue,CAHD,Home Care - Elderly - North,Other Small Contracts,Carers R Us (Bristol) Limited,2191.74, 31-Jan-2017
523,Revenue,CAHD,Home Care - Elderly - South,Other Small Contracts,Carers R Us (Bristol) Limited,751.40, 31-Jan-2017
524,Revenue,CAHD,Home Care - Elderly - North,Other Small Contracts,Carers R Us (Bristol) Limited,2195.23, 31-Jan-2017
525,Revenue,CAHD,Home Care - Elderly - South,Other Small Contracts,Carers R Us (Bristol) Limited,676.26, 31-Jan-2017
526,Revenue,CAHD,Home Care - Elderly - North,Other Small Contracts,Carers R Us (Bristol) Limited,2211.05, 31-Jan-2017
527,Revenue,CAHD,Learning Difficulties Development Fund,Other Supplies & Services,Carers Support Centre,5000.00, 24-Jan-2017
528,Revenue,CAHD,Home Care - Elderly - South,Other Small Contracts,Caring Comes 1st Ltd,1052.16, 27-Jan-2017
529,Revenue,CAHD,Statemented Support Academies,Schools Funding,Castle School Education Trust,949.97, 30-Jan-2017
530,Revenue,CAHD,Statemented Support Academies,Schools Funding,Castle School Education Trust,674.97, 30-Jan-2017
531,Revenue,CAHD,Statemented Support Academies,Schools Funding,Castle School Education Trust,783.30, 30-Jan-2017
532,Revenue,CAHD,Statemented Support Academies,Schools Funding,Castle School Education Trust,583.30, 30-Jan-2017
533,Revenue,CAHD,Statemented Support Academies,Schools Funding,Castle School Education Trust,524.97, 30-Jan-2017
534,Revenue,CAHD,Statemented Support Academies,Schools Funding,Castle School Education Trust,1324.97, 30-Jan-2017
535,Revenue,CAHD,Statemented Support Academies,Schools Funding,Castle School Education Trust,591.64, 30-Jan-2017
536,Revenue,CAHD,Statemented Support Academies,Schools Funding,Castle School Education Trust,1049.97, 30-Jan-2017
537,Revenue,CAHD,Statemented Support Academies,Schools Funding,Castle School Education Trust,1083.30, 30-Jan-2017
538,Revenue,CAHD,Statemented Support Academies,Schools Funding,Castle School Education Trust,649.97, 30-Jan-2017
539,Revenue,CAHD,Statemented Support Academies,Schools Funding,Castle School Education Trust,1474.97, 30-Jan-2017
540,Revenue,CAHD,Statemented Support Academies,Schools Funding,Castle School Education Trust,708.30, 30-Jan-2017
541,Revenue,CAHD,Statemented Support Academies,Schools Funding,Castle School Education Trust,966.64, 30-Jan-2017
542,Revenue,CAHD,Statemented Support Academies,Schools Funding,Castle School Education Trust,766.64, 30-Jan-2017
543,Revenue,CAHD,Statemented Support Academies,Schools Funding,Castle School Education Trust,583.30, 30-Jan-2017
544,Revenue,CAHD,Statemented Support Academies,Schools Funding,Castle School Education Trust,508.30, 30-Jan-2017
545,Revenue,CAHD,Statemented Support Academies,Schools Funding,Castle School Education Trust,874.97, 30-Jan-2017
546,Revenue,CAHD,Statemented Support Academies,Schools Funding,Castle School Education Trust,733.30, 30-Jan-2017
547,Revenue,CAHD,Statemented Support Academies,Schools Funding,Castle School Education Trust,874.97, 30-Jan-2017
548,Revenue,CAHD,Statemented Support Academies,Schools Funding,Castle School Education Trust,883.30, 30-Jan-2017
549,Revenue,CAHD,Statemented Support Academies,Schools Funding,Castle School Education Trust,891.64, 30-Jan-2017
550,Revenue,CAHD,Statemented Support Academies,Schools Funding,Castle School Education Trust,599.97, 30-Jan-2017
551,Revenue,CAHD,Statemented Support Academies,Schools Funding,Castle School Education Trust,1166.64, 30-Jan-2017
552,Revenue,CAHD,Statemented Support Academies,Schools Funding,Castle School Education Trust,658.30, 30-Jan-2017
553,Revenue,CAHD,Statemented Support Academies,Schools Funding,Castle School Education Trust,608.30, 30-Jan-2017
554,Revenue,CAHD,Statemented Support Academies,Schools Funding,Castle School Education Trust,691.64, 30-Jan-2017
555,Revenue,CAHD,Statemented Support Academies,Schools Funding,Castle School Education Trust,558.30, 30-Jan-2017
556,Revenue,CAHD,Statemented Support Academies,Schools Funding,Castle School Education Trust,1133.30, 30-Jan-2017
557,Revenue,CAHD,Statemented Support Academies,Schools Funding,Castle School Education Trust,1283.30, 30-Jan-2017
558,Revenue,CAHD,Bed Purchasing - Southmead Hospital,Permanent Nursing,Cedar Care Homes Limited,4800.00, 17-Jan-2017
559,Revenue,CAHD,Bed Purchasing - Elderly S117- North,Permanent Nursing,Cedar Care Homes Limited,5906.29, 17-Jan-2017
560,Revenue,CAHD,Bed Purchasing - Elderly S117- North,Permanent Nursing,Cedar Care Homes Limited,4352.00, 17-Jan-2017
561,Revenue,CAHD,Bed Purchasing - North,Permanent Residential,Charlton House,1831.32, 17-Jan-2017
562,Revenue,CAHD,Sexual Health,Other Small Contracts,Chelsea and Westminster Hospital,508.53, 20-Jan-2017
563,Revenue,CAHD,Sexual Health,Other Small Contracts,Chelsea and Westminster Hospital,508.53, 27-Jan-2017
564,Revenue,CAHD,Home Care - Elderly - South,Other Small Contracts,Cherish Able Care Limited,5887.44, 05-Jan-2017
565,Revenue,CAHD,Home Care - Elderly - North,Other Small Contracts,Cherish Able Care Limited,251.94, 05-Jan-2017
566,Revenue,CAHD,Home Care - Elderly - South,Other Small Contracts,Cherish Able Care Limited,5821.14, 13-Jan-2017
567,Revenue,CAHD,Home Care - Elderly - North,Other Small Contracts,Cherish Able Care Limited,251.94, 13-Jan-2017
568,Revenue,CAHD,Home Care - Elderly - South,Other Small Contracts,Cherish Able Care Limited,5690.70, 20-Jan-2017
569,Revenue,CAHD,Home Care - Elderly - North,Other Small Contracts,Cherish Able Care Limited,247.52, 20-Jan-2017
570,Revenue,CAHD,Home Care - Elderly - South,Other Small Contracts,Cherish Able Care Limited,5140.46, 27-Jan-2017
571,Revenue,CAHD,Home Care - Elderly - North,Other Small Contracts,Cherish Able Care Limited,251.94, 27-Jan-2017
572,Revenue,CAHD,Bed purchasing -S28A  Under 65 - North,Permanent Residential,Chescombe Lodge,9237.72, 17-Jan-2017
573,Revenue,CAHD,Home Care - Elderly - South,Supported Living,Choisy Care Limited,871.20, 30-Jan-2017
574,Revenue,CAHD,Home Care - Elderly - South,Supported Living,Choisy Care Limited,957.60, 30-Jan-2017
575,Revenue,CAHD,18-25 Year Olds,Permanent Residential,Chosen Care Ltd  Citibase Watford,7591.04, 17-Jan-2017
576,Revenue,CAHD,Bed Purchasing - Elderly S117- North,Permanent Residential,Chosen Care Ltd  Citibase Watford,4995.72, 17-Jan-2017
577,Revenue,CAHD,Jointly Funded H&SC Packages,Permanent Residential,Chosen Care Ltd  Citibase Watford,4995.68, 17-Jan-2017
578,Revenue,CAHD,18-25 Year Olds,Permanent Residential,Chosen Care Ltd  Citibase Watford,5995.48, 17-Jan-2017
579,Revenue,CAHD,NHS Health Checks & Tobacco Control,Drugs & Medical Supplies,Christchurch Family Medical  Centre,715.00, 09-Jan-2017
580,Revenue,CAHD,Bed Purchasing - Southmead Hospital,Permanent Nursing,Churchill Property Services,2221.04, 17-Jan-2017
581,Revenue,CAHD,Learning Difficulties,Other Supplies & Services,Circadian Trust,571.50, 25-Jan-2017
582,Revenue,CAHD,CSC - Vinney Green Secure Unit,R & M by Departments,Clarke Instruments Limited,518.00, 10-Jan-2017
583,Revenue,CAHD,CSC - Vinney Green Secure Unit,R & M by Departments,Clarke Instruments Limited,1051.00, 10-Jan-2017
584,Revenue,CAHD,CSC - Vinney Green Secure Unit,R & M by Departments,Clarke Instruments Limited,516.00, 10-Jan-2017
585,Revenue,CAHD,Bed Purchasing - South,Permanent Residential,Cleeve Lodge,1196.28, 17-Jan-2017
586,Revenue,CAHD,Bed Purchasing - South,Permanent Residential,Cleeve Lodge,2331.28, 17-Jan-2017
587,Revenue,CAHD,Bed Purchasing - South,Respite Planned - Nursing,Cleeve Lodge,3299.29, 17-Jan-2017
588,Revenue,CAHD,Bed Purchasing - South,Respite Planned - Nursing,Cleeve Lodge,2980.00, 17-Jan-2017
589,Revenue,CAHD,Bed Purchasing - South,Permanent Residential,Cleeve Lodge,2493.44, 17-Jan-2017
590,Revenue,CAHD,Bed Purchasing - South,Permanent Residential,Cleeve Lodge,2454.84, 17-Jan-2017
591,Revenue,CAHD,Bed Purchasing - Under 65s PWLD - South,Respite Emergency - Residential,Clerkenleap Barn,3858.27, 16-Jan-2017
592,Revenue,CAHD,Independent Special Placements - Pre 16,Other Private Contractors,Clifton College,5534.00, 19-Jan-2017
593,Revenue,CAHD,Bed Purchasing - South,Permanent Residential,Collingwood Residential Home,2120.40, 17-Jan-2017
594,Revenue,CAHD,Bed Purchasing - Southmead Hospital,Respite Planned - Residential,Collingwood Residential Home,2320.00, 17-Jan-2017
595,Revenue,CAHD,Bed Purchasing - South,Permanent Residential,Collingwood Residential Home,18728.57, 17-Jan-2017
596,Revenue,CAHD,Bed Purchasing - South,Permanent Residential,Collingwood Residential Home,2300.00, 17-Jan-2017
597,Revenue,CAHD,Bed Purchasing - Southmead Hospital,Permanent Residential,Collingwood Residential Home,2320.00, 17-Jan-2017
598,Revenue,CAHD,Bed Purchasing - South,Permanent Residential,Collingwood Residential Home,2120.40, 17-Jan-2017
599,Revenue,CAHD,Home Care - Elderly - South,Day Care / Social Activities,Collingwood Residential Home,553.44, 17-Jan-2017
600,Revenue,CAHD,Bed Purchasing - South,Permanent Residential,Collingwood Residential Home,1957.44, 17-Jan-2017
601,Revenue,CAHD,Bed Purchasing - South,Permanent Nursing,Community Integrated Care,3755.12, 17-Jan-2017
602,Revenue,CAHD,Bed and Breakfast,Bed & Breakfast,Connolly & Callaghan Limited,581.00, 05-Jan-2017
603,Revenue,CAHD,Bed and Breakfast,Bed & Breakfast,Connolly & Callaghan Limited,616.00, 05-Jan-2017
604,Revenue,CAHD,Bed and Breakfast,Bed & Breakfast,Connolly & Callaghan Limited,791.00, 05-Jan-2017
605,Revenue,CAHD,Bed and Breakfast,Bed & Breakfast,Connolly & Callaghan Limited,441.00, 09-Jan-2017
606,Revenue,CAHD,Bed and Breakfast,Bed & Breakfast,Connolly & Callaghan Limited,546.00, 05-Jan-2017
607,Revenue,CAHD,Bed and Breakfast,Bed & Breakfast,Connolly & Callaghan Limited,476.00, 05-Jan-2017
608,Revenue,CAHD,Bed and Breakfast,Bed & Breakfast,Connolly & Callaghan Limited,476.00, 05-Jan-2017
609,Revenue,CAHD,Bed and Breakfast,Bed & Breakfast,Connolly & Callaghan Limited,546.00, 09-Jan-2017
610,Revenue,CAHD,Bed and Breakfast,Bed & Breakfast,Connolly & Callaghan Limited,476.00, 10-Jan-2017
611,Revenue,CAHD,Bed and Breakfast,Bed & Breakfast,Connolly & Callaghan Limited,546.00, 09-Jan-2017
612,Revenue,CAHD,Bed and Breakfast,Bed & Breakfast,Connolly & Callaghan Limited,616.00, 05-Jan-2017
613,Revenue,CAHD,Bed and Breakfast,Bed & Breakfast,Connolly & Callaghan Limited,476.00, 09-Jan-2017
614,Revenue,CAHD,Bed and Breakfast,Bed & Breakfast,Connolly & Callaghan Limited,511.00, 10-Jan-2017
615,Revenue,CAHD,Bed and Breakfast,Bed & Breakfast,Connolly & Callaghan Limited,476.00, 16-Jan-2017
616,Revenue,CAHD,Bed and Breakfast,Bed & Breakfast,Connolly & Callaghan Limited,476.00, 05-Jan-2017
617,Revenue,CAHD,Bed and Breakfast,Bed & Breakfast,Connolly & Callaghan Limited,546.00, 09-Jan-2017
618,Revenue,CAHD,Bed and Breakfast,Bed & Breakfast,Connolly & Callaghan Limited,441.00, 13-Jan-2017
619,Revenue,CAHD,Bed and Breakfast,Bed & Breakfast,Connolly & Callaghan Limited,546.00, 13-Jan-2017
620,Revenue,CAHD,Bed and Breakfast,Bed & Breakfast,Connolly & Callaghan Limited,476.00, 09-Jan-2017
621,Revenue,CAHD,Bed and Breakfast,Bed & Breakfast,Connolly & Callaghan Limited,476.00, 09-Jan-2017
622,Revenue,CAHD,Bed and Breakfast,Bed & Breakfast,Connolly & Callaghan Limited,546.00, 09-Jan-2017
623,Revenue,CAHD,Bed and Breakfast,Bed & Breakfast,Connolly & Callaghan Limited,546.00, 09-Jan-2017
624,Revenue,CAHD,Bed and Breakfast,Bed & Breakfast,Connolly & Callaghan Limited,616.00, 09-Jan-2017
625,Revenue,CAHD,Bed and Breakfast,Bed & Breakfast,Connolly & Callaghan Limited,476.00, 09-Jan-2017
626,Revenue,CAHD,Bed and Breakfast,Bed & Breakfast,Connolly & Callaghan Limited,476.00, 16-Jan-2017
627,Revenue,CAHD,Bed and Breakfast,Bed & Breakfast,Connolly & Callaghan Limited,476.00, 09-Jan-2017
628,Revenue,CAHD,Bed and Breakfast,Bed & Breakfast,Connolly & Callaghan Limited,546.00, 16-Jan-2017
629,Revenue,CAHD,Bed and Breakfast,Bed & Breakfast,Connolly & Callaghan Limited,791.00, 09-Jan-2017
630,Revenue,CAHD,Bed and Breakfast,Bed & Breakfast,Connolly & Callaghan Limited,546.00, 13-Jan-2017
631,Revenue,CAHD,Bed and Breakfast,Bed & Breakfast,Connolly & Callaghan Limited,476.00, 13-Jan-2017
632,Revenue,CAHD,Bed and Breakfast,Bed & Breakfast,Connolly & Callaghan Limited,476.00, 13-Jan-2017
633,Revenue,CAHD,Bed and Breakfast,Bed & Breakfast,Connolly & Callaghan Limited,546.00, 16-Jan-2017
634,Revenue,CAHD,Bed and Breakfast,Bed & Breakfast,Connolly & Callaghan Limited,476.00, 13-Jan-2017
635,Revenue,CAHD,Bed and Breakfast,Bed & Breakfast,Connolly & Callaghan Limited,546.00, 17-Jan-2017
636,Revenue,CAHD,Bed and Breakfast,Bed & Breakfast,Connolly & Callaghan Limited,616.00, 13-Jan-2017
637,Revenue,CAHD,Bed and Breakfast,Bed & Breakfast,Connolly & Callaghan Limited,476.00, 16-Jan-2017
638,Revenue,CAHD,Bed and Breakfast,Bed & Breakfast,Connolly & Callaghan Limited,476.00, 13-Jan-2017
639,Revenue,CAHD,Bed and Breakfast,Bed & Breakfast,Connolly & Callaghan Limited,476.00, 13-Jan-2017
640,Revenue,CAHD,Bed and Breakfast,Bed & Breakfast,Connolly & Callaghan Limited,546.00, 13-Jan-2017
641,Revenue,CAHD,Bed and Breakfast,Bed & Breakfast,Connolly & Callaghan Limited,588.00, 13-Jan-2017
642,Revenue,CAHD,Bed and Breakfast,Bed & Breakfast,Connolly & Callaghan Limited,791.00, 13-Jan-2017
643,Revenue,CAHD,Bed and Breakfast,Bed & Breakfast,Connolly & Callaghan Limited,528.00, 23-Jan-2017
644,Revenue,CAHD,Bed and Breakfast,Bed & Breakfast,Connolly & Callaghan Limited,441.00, 23-Jan-2017
645,Revenue,CAHD,Bed and Breakfast,Bed & Breakfast,Connolly & Callaghan Limited,546.00, 23-Jan-2017
646,Revenue,CAHD,Bed and Breakfast,Bed & Breakfast,Connolly & Callaghan Limited,476.00, 23-Jan-2017
647,Revenue,CAHD,Bed and Breakfast,Bed & Breakfast,Connolly & Callaghan Limited,476.00, 23-Jan-2017
648,Revenue,CAHD,Bed and Breakfast,Bed & Breakfast,Connolly & Callaghan Limited,546.00, 23-Jan-2017
649,Revenue,CAHD,Bed and Breakfast,Bed & Breakfast,Connolly & Callaghan Limited,476.00, 23-Jan-2017
650,Revenue,CAHD,Bed and Breakfast,Bed & Breakfast,Connolly & Callaghan Limited,546.00, 23-Jan-2017
651,Revenue,CAHD,Bed and Breakfast,Bed & Breakfast,Connolly & Callaghan Limited,616.00, 23-Jan-2017
652,Revenue,CAHD,Bed and Breakfast,Bed & Breakfast,Connolly & Callaghan Limited,476.00, 23-Jan-2017
653,Revenue,CAHD,Bed and Breakfast,Bed & Breakfast,Connolly & Callaghan Limited,476.00, 23-Jan-2017
654,Revenue,CAHD,Bed and Breakfast,Bed & Breakfast,Connolly & Callaghan Limited,476.00, 23-Jan-2017
655,Revenue,CAHD,Bed and Breakfast,Bed & Breakfast,Connolly & Callaghan Limited,546.00, 23-Jan-2017
656,Revenue,CAHD,Bed and Breakfast,Bed & Breakfast,Connolly & Callaghan Limited,686.00, 23-Jan-2017
657,Revenue,CAHD,Bed and Breakfast,Bed & Breakfast,Connolly & Callaghan Limited,791.00, 23-Jan-2017
658,Revenue,CAHD,Bed and Breakfast,Bed & Breakfast,Connolly & Callaghan Limited,616.00, 31-Jan-2017
659,Revenue,CAHD,Bed and Breakfast,Bed & Breakfast,Connolly & Callaghan Limited,546.00, 31-Jan-2017
660,Revenue,CAHD,Bed and Breakfast,Bed & Breakfast,Connolly & Callaghan Limited,476.00, 31-Jan-2017
661,Revenue,CAHD,CSC - Fostering General,Care Management/Assessment Staff Pay,Core Childrens Services Ltd,438.00, 19-Jan-2017
662,Revenue,CAHD,Bed Purchasing - S28A - Over 65- North,Permanent Residential,Cream Ii Ltd  Longrun House,8765.56, 17-Jan-2017
663,Revenue,CAHD,Bed Purchasing - South,Permanent Residential,Cream Ii Ltd  Longrun House,3083.64, 17-Jan-2017
664,Revenue,CAHD,Jointly Funded H&SC Packages,Permanent Residential,Cream Ii Ltd  Longrun House,2683.04, 17-Jan-2017
665,Revenue,CAHD,Bed purchasing -S28A  Under 65 - North,Permanent Residential,Creedy Court,10026.24, 17-Jan-2017
666,Revenue,CAHD,Bed Purchasing - S28A - Over 65- North,Permanent Residential,Creedy Court,8424.52, 17-Jan-2017
667,Revenue,CAHD,Bed Purchasing - North,Permanent Residential,Creedy Court,13295.84, 17-Jan-2017
668,Revenue,CAHD,CSC - Residential Placements,Permanent Residential,Crossways Care Limited,17854.29, 11-Jan-2017
669,Revenue,CAHD,CSC - Residential Placements,Permanent Residential,Crossways Care Limited,18449.43, 13-Jan-2017
670,Revenue,CAHD,"Physical Activity, Nutrition & Obesity",Contribns & Reimbs - Other Bodies,D R Rosser Ltd,690.00, 18-Jan-2017
671,Revenue,CAHD,Bed Purchasing - South,Permanent Residential,Daneswood,11606.96, 17-Jan-2017
672,Revenue,CAHD,Home Care - Elderly - South,Day Care / Social Activities,Daneswood,12369.84, 17-Jan-2017
673,Revenue,CAHD,Home Care - Elderly - South,Day Care / Social Activities,Daneswood,1337.28, 17-Jan-2017
674,Revenue,CAHD,Bed Purchasing - North,Permanent Residential,Daneswood,9710.32, 17-Jan-2017
675,Revenue,CAHD,Bed Purchasing - Elderly S117- North,Permanent Nursing,Danshell Healthcare Group,10285.72, 17-Jan-2017
676,Revenue,CAHD,Jointly Funded H&SC Packages,Permanent Nursing,Danshell Healthcare Group,1526.28, 17-Jan-2017
677,Revenue,CAHD,Learning Difficulties PSL,Other Supplies & Services,Individual,2105.50, 20-Jan-2017
678,Revenue,CAHD,SLA Grants - Support Serv,Grants to Voluntary Bodies,Delia Robins,500.00, 03-Jan-2017
679,Revenue,CAHD,Home Care - Elderly - South,Supported Living,Design House,2711.04, 17-Jan-2017
680,Revenue,CAHD,Home Care - Elderly - South,Supported Living,Design House,2898.08, 17-Jan-2017
681,Revenue,CAHD,Home Care - Elderly - South,Supported Living,Design House,2964.08, 17-Jan-2017
682,Revenue,CAHD,Home Care - Elderly - South,Supported Living,Design House,2832.08, 17-Jan-2017
683,Revenue,CAHD,Home Care - Elderly - South,Supported Living,Design House,2496.52, 17-Jan-2017
684,Revenue,CAHD,Home Care - Elderly - South,Supported Living,Design House,2496.52, 17-Jan-2017
685,Revenue,CAHD,Home Care - Elderly - South,Supported Living,Design House,1794.40, 17-Jan-2017
686,Revenue,CAHD,Home Care - Elderly - South,Supported Living,Design House,2381.04, 17-Jan-2017
687,Revenue,CAHD,Home Care - Elderly - South,Supported Living,Design House,3852.08, 17-Jan-2017
688,Revenue,CAHD,Home Care - Elderly - South,Supported Living,Design House,2889.80, 17-Jan-2017
689,Revenue,CAHD,Home Care - Elderly - South,Supported Living,Design House,2744.04, 17-Jan-2017
690,Revenue,CAHD,Home Care - Elderly - South,Supported Living,Design House,2793.56, 17-Jan-2017
691,Revenue,CAHD,Home Care - Elderly - South,Supported Living,Design House,2135.92, 17-Jan-2017
692,Revenue,CAHD,Home Care - Elderly - South,Supported Living,Design House,1794.40, 17-Jan-2017
693,Revenue,CAHD,Home Care - Elderly - South,Supported Living,Design House,2135.92, 17-Jan-2017
694,Revenue,CAHD,Bed Purchasing - South,Permanent Residential,Devon & Cornwall Autistic Community Trus,9403.80, 17-Jan-2017
695,Revenue,CAHD,Bed Purchasing - South,Permanent Residential,Dimensions  Suite 2,5327.04, 17-Jan-2017
696,Revenue,CAHD,SACRE,Consultants Fees,Diocesan Board of Finance Limited,2262.25, 16-Jan-2017
697,Revenue,CAHD,CSC - Section 17 SOUTH,Other Supplies & Services,DNA Worldwide Group,665.00, 16-Jan-2017
698,Revenue,CAHD,Home Care - Elderly - South,Day Care / Social Activities,DoCare Ltd,61.20, 17-Jan-2017
699,Revenue,CAHD,Home Care - Elderly - South,Other Small Contracts,DoCare Ltd,697.50, 17-Jan-2017
700,Revenue,CAHD,Home Care - Elderly - North,Other Small Contracts,DoCare Ltd,5271.50, 17-Jan-2017
701,Revenue,CAHD,Home Care - Elderly - South,Day Care / Social Activities,DoCare Ltd,30.60, 23-Jan-2017
702,Revenue,CAHD,Home Care - Elderly - South,Other Small Contracts,DoCare Ltd,572.10, 23-Jan-2017
703,Revenue,CAHD,Home Care - Elderly - North,Other Small Contracts,DoCare Ltd,5108.30, 23-Jan-2017
704,Revenue,CAHD,Home Care - Elderly - South,Day Care / Social Activities,DoCare Ltd,20.40, 31-Jan-2017
705,Revenue,CAHD,Home Care - Elderly - South,Other Small Contracts,DoCare Ltd,500.70, 31-Jan-2017
706,Revenue,CAHD,Home Care - Elderly - North,Other Small Contracts,DoCare Ltd,4959.40, 31-Jan-2017
707,Revenue,CAHD,Home Care - Elderly - South,Day Care / Social Activities,DoCare Ltd,61.20, 31-Jan-2017
708,Revenue,CAHD,Home Care - Elderly - South,Other Small Contracts,DoCare Ltd,766.90, 31-Jan-2017
709,Revenue,CAHD,Home Care - Elderly - North,Other Small Contracts,DoCare Ltd,5975.80, 31-Jan-2017
710,Revenue,CAHD,Home Care - Elderly - South,Day Care / Social Activities,DoCare Ltd,66.30, 31-Jan-2017
711,Revenue,CAHD,Home Care - Elderly - South,Other Small Contracts,DoCare Ltd,920.40, 31-Jan-2017
712,Revenue,CAHD,Home Care - Elderly - North,Other Small Contracts,DoCare Ltd,6011.00, 31-Jan-2017
713,Revenue,CAHD,Statemented Support Academies,Schools Funding,Downend School,583.30, 30-Jan-2017
714,Revenue,CAHD,Statemented Support Academies,Schools Funding,Downend School,983.30, 30-Jan-2017
715,Revenue,CAHD,Statemented Support Academies,Schools Funding,Downend School,574.97, 30-Jan-2017
716,Revenue,CAHD,Statemented Support Academies,Schools Funding,Downend School,591.64, 30-Jan-2017
717,Revenue,CAHD,Statemented Support Academies,Schools Funding,Downend School,1008.30, 30-Jan-2017
718,Revenue,CAHD,Statemented Support Academies,Schools Funding,Downend School,666.64, 30-Jan-2017
719,Revenue,CAHD,Statemented Support Academies,Schools Funding,Downend School,583.30, 30-Jan-2017
720,Revenue,CAHD,Statemented Support Academies,Schools Funding,Downend School,583.30, 30-Jan-2017
721,Revenue,CAHD,Statemented Support Equipment,Fees - General,Dr Carole Thornett,1057.20, 10-Jan-2017
722,Revenue,CAHD,Social Lettings Agency,Other Supplies & Services,Individual,605.64, 24-Jan-2017
723,Revenue,CAHD,Bed Purchasing - North,Permanent Nursing,Drakes Court,2259.56, 17-Jan-2017
724,Revenue,CAHD,South Glos Users in South Glos Homes,Permanent Nursing,Drakes Court,625.00, 17-Jan-2017
725,Revenue,CAHD,South Glos Users in South Glos Homes,Permanent Nursing,Drakes Court,625.00, 17-Jan-2017
726,Revenue,CAHD,South Glos Users in South Glos Homes,Permanent Nursing,Drakes Court,625.00, 17-Jan-2017
727,Revenue,CAHD,Bed Purchasing - Southmead Hospital,Permanent Nursing,Drakes Court,1966.72, 17-Jan-2017
728,Revenue,CAHD,South Glos Users in South Glos Homes,Permanent Nursing,Drakes Court,625.00, 17-Jan-2017
729,Revenue,CAHD,Bed Purchasing - Southmead Hospital,Permanent Nursing,Drakes Court,1888.64, 17-Jan-2017
730,Revenue,CAHD,South Glos Users in South Glos Homes,Permanent Nursing,Drakes Court,625.00, 17-Jan-2017
731,Revenue,CAHD,South Glos Users in South Glos Homes,Permanent Nursing,Drakes Court,625.00, 17-Jan-2017
732,Revenue,CAHD,Bed Purchasing - North,Permanent Nursing,Drakes Court,1888.64, 17-Jan-2017
733,Revenue,CAHD,South Glos Users in South Glos Homes,Permanent Nursing,Drakes Court,625.00, 17-Jan-2017
734,Revenue,CAHD,Bed Purchasing - North,Respite Planned - Nursing,Drakes Court,2700.00, 17-Jan-2017
735,Revenue,CAHD,South Glos Users in South Glos Homes,Permanent Nursing,Drakes Court,625.00, 17-Jan-2017
736,Revenue,CAHD,South Glos Users in South Glos Homes,Permanent Nursing,Drakes Court,625.00, 17-Jan-2017
737,Revenue,CAHD,Bed Purchasing - North,Permanent Nursing,Drakes Court,1888.64, 17-Jan-2017
738,Revenue,CAHD,Bed Purchasing - Southmead Hospital,Permanent Nursing,Drakes Court,1888.64, 17-Jan-2017
739,Revenue,CAHD,South Glos Users in South Glos Homes,Permanent Nursing,Drakes Court,625.00, 17-Jan-2017
740,Revenue,CAHD,Bed Purchasing - North,Permanent Residential,Drakes Court,1831.32, 17-Jan-2017
741,Revenue,CAHD,Bed Purchasing - North,Permanent Nursing,Drakes Court,2254.00, 17-Jan-2017
742,Revenue,CAHD,South Glos Users in South Glos Homes,Permanent Nursing,Drakes Court,625.00, 17-Jan-2017
743,Revenue,CAHD,South Glos Users in South Glos Homes,Permanent Nursing,Drakes Court,625.00, 17-Jan-2017
744,Revenue,CAHD,South Glos Users in South Glos Homes,Permanent Nursing,Drakes Court,625.00, 17-Jan-2017
745,Revenue,CAHD,South Glos Users in South Glos Homes,Permanent Nursing,Drakes Court,625.00, 17-Jan-2017
746,Revenue,CAHD,MH Purchasing - Younger,Permanent Residential,Dunraven House,2243.80, 17-Jan-2017
747,Revenue,CAHD,Bed and Breakfast,Bed & Breakfast,E J Bartlett,420.00, 05-Jan-2017
748,Revenue,CAHD,Bed and Breakfast,Bed & Breakfast,E J Bartlett,490.00, 09-Jan-2017
749,Revenue,CAHD,Bed and Breakfast,Bed & Breakfast,E J Bartlett,490.00, 16-Jan-2017
750,Revenue,CAHD,Bed and Breakfast,Bed & Breakfast,E J Bartlett,490.00, 23-Jan-2017
751,Revenue,CAHD,Bed Purchasing - North,Permanent Residential,East Court,2614.48, 17-Jan-2017
752,Revenue,CAHD,Minor Adaptations Service,Operational Equipment,Eastman & Co (Timber) Limited,929.52, 13-Jan-2017
753,Revenue,CAHD,Home Care - Elderly - South,Day Care / Social Activities,Easton Community Centre,533.28, 17-Jan-2017
754,Revenue,CAHD,Home Care - Elderly - South,Day Care / Social Activities,Easton Community Centre,533.28, 17-Jan-2017
755,Revenue,CAHD,Home Care - Elderly - North,Day Care / Social Activities,Easton Community Centre,533.28, 17-Jan-2017
756,Revenue,CAHD,Home Care - Elderly - North,Day Care / Social Activities,Easton Community Centre,1822.04, 17-Jan-2017
757,Revenue,CAHD,Bed Purchasing - North,Permanent Residential,Edgecumbe Lodge,2260.00, 17-Jan-2017
758,Revenue,CAHD,Bed Purchasing - Southmead Hospital,Permanent Residential,Edgecumbe Lodge,1831.32, 17-Jan-2017
759,Revenue,CAHD,Bed Purchasing - South,Permanent Residential,Edgecumbe Lodge,2101.44, 17-Jan-2017
760,Revenue,CAHD,Bed Purchasing - South,Permanent Residential,Edgecumbe Lodge,2128.56, 17-Jan-2017
761,Revenue,CAHD,Bed Purchasing - North,Permanent Residential,Edgecumbe Lodge,2290.72, 17-Jan-2017
762,Revenue,CAHD,Bed Purchasing - South,Permanent Residential,Edgecumbe Lodge,2128.56, 17-Jan-2017
763,Revenue,CAHD,Bed Purchasing - South,Permanent Residential,Edgecumbe Lodge,2400.00, 17-Jan-2017
764,Revenue,CAHD,Bed Purchasing - Southmead Hospital,Permanent Residential,Edgecumbe Lodge,2400.00, 17-Jan-2017
765,Revenue,CAHD,Bed Purchasing - North,Permanent Residential,Edgecumbe Lodge,2128.56, 17-Jan-2017
766,Revenue,CAHD,Bed Purchasing - South,Permanent Residential,Edgemont House Ltd,2200.00, 17-Jan-2017
767,Revenue,CAHD,Bed Purchasing - South,Permanent Residential,Edgemont House Ltd,1021.43, 17-Jan-2017
768,Revenue,CAHD,Bed Purchasing - Southmead Hospital,Permanent Residential,Edgemont House Ltd,1824.48, 17-Jan-2017
769,Revenue,CAHD,Bed Purchasing - South,Permanent Residential,Edgemont House Ltd,2160.00, 17-Jan-2017
770,Revenue,CAHD,Bed Purchasing - Southmead Hospital,Respite Planned - Residential,Edgemont House Ltd,2320.00, 17-Jan-2017
771,Revenue,CAHD,Bed Purchasing - South,Permanent Residential,Edgemont House Ltd,1954.68, 17-Jan-2017
772,Revenue,CAHD,South Glos Users in South Glos Homes,Permanent Nursing,Edgemont View Nursing Home,625.00, 17-Jan-2017
773,Revenue,CAHD,South Glos Users in South Glos Homes,Permanent Nursing,Edgemont View Nursing Home,625.00, 17-Jan-2017
774,Revenue,CAHD,South Glos Users in South Glos Homes,Permanent Nursing,Edgemont View Nursing Home,625.00, 17-Jan-2017
775,Revenue,CAHD,South Glos Users in South Glos Homes,Permanent Nursing,Edgemont View Nursing Home,625.00, 17-Jan-2017
776,Revenue,CAHD,Bed Purchasing - South,Permanent Nursing,Edgemont View Nursing Home,2880.00, 17-Jan-2017
777,Revenue,CAHD,Bed Purchasing - South,Permanent Nursing,Edgemont View Nursing Home,2160.00, 17-Jan-2017
778,Revenue,CAHD,South Glos Users in South Glos Homes,Permanent Nursing,Edgemont View Nursing Home,625.00, 17-Jan-2017
779,Revenue,CAHD,Bed Purchasing - South,Permanent Nursing,Edgemont View Nursing Home,720.00, 17-Jan-2017
780,Revenue,CAHD,South Glos Users in South Glos Homes,Permanent Nursing,Edgemont View Nursing Home,625.00, 17-Jan-2017
781,Revenue,CAHD,South Glos Users in South Glos Homes,Permanent Nursing,Edgemont View Nursing Home,625.00, 17-Jan-2017
782,Revenue,CAHD,South Glos Users in South Glos Homes,Permanent Nursing,Edgemont View Nursing Home,625.00, 17-Jan-2017
783,Revenue,CAHD,South Glos Users in South Glos Homes,Permanent Nursing,Edgemont View Nursing Home,625.00, 17-Jan-2017
784,Revenue,CAHD,Bed Purchasing - South,Permanent Nursing,Edgemont View Nursing Home,2299.08, 17-Jan-2017
785,Revenue,CAHD,South Glos Users in South Glos Homes,Permanent Nursing,Edgemont View Nursing Home,625.00, 17-Jan-2017
786,Revenue,CAHD,Bed Purchasing - South,Permanent Nursing,Edgemont View Nursing Home,2182.88, 17-Jan-2017
787,Revenue,CAHD,South Glos Users in South Glos Homes,Permanent Nursing,Edgemont View Nursing Home,625.00, 17-Jan-2017
788,Revenue,CAHD,South Glos Users in South Glos Homes,Permanent Nursing,Edgemont View Nursing Home,625.00, 17-Jan-2017
789,Revenue,CAHD,South Glos Users in South Glos Homes,Permanent Nursing,Edgemont View Nursing Home,625.00, 17-Jan-2017
790,Revenue,CAHD,South Glos Users in South Glos Homes,Permanent Nursing,Edgemont View Nursing Home,625.00, 17-Jan-2017
791,Revenue,CAHD,South Glos Users in South Glos Homes,Permanent Nursing,Edgemont View Nursing Home,625.00, 17-Jan-2017
792,Revenue,CAHD,Bed Purchasing - Southmead Hospital,Permanent Nursing,Edgemont View Nursing Home,2880.00, 17-Jan-2017
793,Revenue,CAHD,South Glos Users in South Glos Homes,Permanent Nursing,Edgemont View Nursing Home,625.00, 17-Jan-2017
794,Revenue,CAHD,Home Care - Elderly - South,Day Care / Social Activities,Elite Home Care Ltd,183.68, 11-Jan-2017
795,Revenue,CAHD,Home Care - Elderly - South,Other Small Contracts,Elite Home Care Ltd,7087.94, 11-Jan-2017
796,Revenue,CAHD,Home Care - Elderly - North,Other Small Contracts,Elite Home Care Ltd,107.52, 11-Jan-2017
797,Revenue,CAHD,Home Care - Elderly - South,Day Care / Social Activities,Elite Home Care Ltd,170.24, 11-Jan-2017
798,Revenue,CAHD,Home Care - Elderly - South,Other Small Contracts,Elite Home Care Ltd,6908.74, 11-Jan-2017
799,Revenue,CAHD,Home Care - Elderly - North,Other Small Contracts,Elite Home Care Ltd,112.00, 11-Jan-2017
800,Revenue,CAHD,Home Care - Elderly - South,Day Care / Social Activities,Elite Home Care Ltd,183.68, 24-Jan-2017
801,Revenue,CAHD,Home Care - Elderly - South,Other Small Contracts,Elite Home Care Ltd,6462.74, 24-Jan-2017
802,Revenue,CAHD,Home Care - Elderly - North,Other Small Contracts,Elite Home Care Ltd,107.52, 24-Jan-2017
803,Revenue,CAHD,Home Care - Elderly - South,Day Care / Social Activities,Elite Home Care Ltd,188.16, 24-Jan-2017
804,Revenue,CAHD,Home Care - Elderly - South,Other Small Contracts,Elite Home Care Ltd,6682.26, 24-Jan-2017
805,Revenue,CAHD,Home Care - Elderly - North,Other Small Contracts,Elite Home Care Ltd,103.04, 24-Jan-2017
806,Revenue,CAHD,Hospital Tuition,Other Private Contractors,Ellern Mede School,11005.00, 13-Jan-2017
807,Revenue,CAHD,CSC - Agency Fostering,Foster Parent Allowances,Enhanced Foster Care Ltd,4650.00, 10-Jan-2017
808,Revenue,CAHD,CSC - Agency Fostering,Foster Parent Allowances,Enhanced Foster Care Ltd,4500.00, 18-Jan-2017
809,Revenue,CAHD,CSC - Agency Fostering,Foster Parent Allowances,Enhanced Foster Care Ltd,4650.00, 18-Jan-2017
810,Revenue,CAHD,CSC - Agency Fostering,Foster Parent Allowances,Enhanced Foster Care Ltd,4500.00, 18-Jan-2017
811,Revenue,CAHD,CSC - Agency Fostering,Foster Parent Allowances,Enhanced Foster Care Ltd,4650.00, 18-Jan-2017
812,Revenue,CAHD,Bed Purchasing - North,Permanent Residential,Epworth House,2762.20, 17-Jan-2017
813,Revenue,CAHD,Training - Adult Services,Training Expenses,Equality & Diversity UK Limited,663.70, 06-Jan-2017
814,Revenue,CAHD,Home Care - Elderly - South,Other Small Contracts,Everycare (Bristol) Ltd,3102.84, 10-Jan-2017
815,Revenue,CAHD,Home Care - Elderly - North,Other Small Contracts,Everycare (Bristol) Ltd,2033.20, 10-Jan-2017
816,Revenue,CAHD,Home Care - Elderly - South,Other Small Contracts,Everycare (Bristol) Ltd,2837.64, 09-Jan-2017
817,Revenue,CAHD,Home Care - Elderly - North,Other Small Contracts,Everycare (Bristol) Ltd,1962.48, 09-Jan-2017
818,Revenue,CAHD,Home Care - Elderly - South,Other Small Contracts,Everycare (Bristol) Ltd,2758.08, 11-Jan-2017
819,Revenue,CAHD,Home Care - Elderly - North,Other Small Contracts,Everycare (Bristol) Ltd,1953.64, 11-Jan-2017
820,Revenue,CAHD,Home Care - Elderly - South,Other Small Contracts,Everycare (Bristol) Ltd,2868.58, 17-Jan-2017
821,Revenue,CAHD,Home Care - Elderly - North,Other Small Contracts,Everycare (Bristol) Ltd,1913.86, 17-Jan-2017
822,Revenue,CAHD,Home Care - Elderly - South,Other Small Contracts,Everycare (Bristol) Ltd,2603.38, 18-Jan-2017
823,Revenue,CAHD,Home Care - Elderly - North,Other Small Contracts,Everycare (Bristol) Ltd,1785.68, 18-Jan-2017
824,Revenue,CAHD,Home Care - Elderly - South,Other Small Contracts,Everycare (Bristol) Ltd,2917.20, 25-Jan-2017
825,Revenue,CAHD,Home Care - Elderly - North,Other Small Contracts,Everycare (Bristol) Ltd,1927.12, 25-Jan-2017
826,Revenue,CAHD,Home Care - Elderly - South,Other Small Contracts,Everycare (Bristol) Ltd,2890.68, 25-Jan-2017
827,Revenue,CAHD,Home Care - Elderly - North,Other Small Contracts,Everycare (Bristol) Ltd,1989.00, 25-Jan-2017
828,Revenue,CAHD,Independent Special Placements - Post 16,Other Private Contractors,Exeter Royal Academy For Deaf Education,26145.00, 20-Jan-2017
829,Revenue,CAHD,Homeless - Private Sector Leasing,Prop.Serv. General Repairs,Express Property Services Limited,1027.27, 30-Jan-2017
830,Revenue,CAHD,Homeless - Private Sector Leasing,Prop.Serv. General Repairs,Express Property Services Limited,1711.53, 17-Jan-2017
831,Revenue,CAHD,South Glos Users in South Glos Homes,Permanent Nursing,Fairview Court,625.00, 17-Jan-2017
832,Revenue,CAHD,South Glos Users in South Glos Homes,Permanent Nursing,Fairview Court,625.00, 17-Jan-2017
833,Revenue,CAHD,Bed Purchasing - South,Permanent Nursing,Fairview Court,2992.16, 17-Jan-2017
834,Revenue,CAHD,South Glos Users in South Glos Homes,Permanent Nursing,Fairview Court,625.00, 17-Jan-2017
835,Revenue,CAHD,Bed Purchasing - Southmead Hospital,Permanent Nursing,Fairview Court,2824.08, 17-Jan-2017
836,Revenue,CAHD,South Glos Users in South Glos Homes,Permanent Nursing,Fairview Court,625.00, 17-Jan-2017
837,Revenue,CAHD,Bed Purchasing - Southmead Hospital,Permanent Nursing,Fairview Court,3200.00, 17-Jan-2017
838,Revenue,CAHD,South Glos Users in South Glos Homes,Permanent Nursing,Fairview Court,625.00, 17-Jan-2017
839,Revenue,CAHD,South Glos Users in South Glos Homes,Permanent Nursing,Fairview Court,625.00, 17-Jan-2017
840,Revenue,CAHD,South Glos Users in South Glos Homes,Permanent Nursing,Fairview Court,625.00, 17-Jan-2017
841,Revenue,CAHD,Bed Purchasing - Southmead Hospital,Permanent Nursing,Fairview Court,2992.16, 17-Jan-2017
842,Revenue,CAHD,South Glos Users in South Glos Homes,Permanent Nursing,Fairview Court,625.00, 17-Jan-2017
843,Revenue,CAHD,Bed Purchasing - South,Permanent Nursing,Fairview Court,2417.68, 17-Jan-2017
844,Revenue,CAHD,South Glos Users in South Glos Homes,Permanent Nursing,Fairview Court,625.00, 17-Jan-2017
845,Revenue,CAHD,Bed purchasing - Elderly S117 - South,Permanent Nursing,Fairview Court,2947.08, 17-Jan-2017
846,Revenue,CAHD,South Glos Users in South Glos Homes,Permanent Nursing,Fairview Court,625.00, 17-Jan-2017
847,Revenue,CAHD,Bed Purchasing - South,Permanent Nursing,Fairview Court,2417.68, 17-Jan-2017
848,Revenue,CAHD,South Glos Users in South Glos Homes,Permanent Nursing,Fairview Court,625.00, 17-Jan-2017
849,Revenue,CAHD,South Glos Users in South Glos Homes,Permanent Nursing,Fairview Court,625.00, 17-Jan-2017
850,Revenue,CAHD,South Glos Users in South Glos Homes,Permanent Nursing,Fairview Court,625.00, 17-Jan-2017
851,Revenue,CAHD,Bed Purchasing - South,Permanent Nursing,Fairview Court,3200.00, 17-Jan-2017
852,Revenue,CAHD,South Glos Users in South Glos Homes,Permanent Nursing,Fairview Court,625.00, 17-Jan-2017
853,Revenue,CAHD,South Glos Users in South Glos Homes,Permanent Nursing,Fairview Court,625.00, 17-Jan-2017
854,Revenue,CAHD,South Glos Users in South Glos Homes,Permanent Nursing,Fairview Court,625.00, 17-Jan-2017
855,Revenue,CAHD,Bed Purchasing - South,Permanent Nursing,Fairview Court,2992.16, 17-Jan-2017
856,Revenue,CAHD,South Glos Users in South Glos Homes,Permanent Nursing,Fairview Court,625.00, 17-Jan-2017
857,Revenue,CAHD,Bed Purchasing - Southmead Hospital,Permanent Nursing,Fairview Court,3200.00, 17-Jan-2017
858,Revenue,CAHD,South Glos Users in South Glos Homes,Permanent Nursing,Fairview Court,625.00, 17-Jan-2017
859,Revenue,CAHD,South Glos Users in South Glos Homes,Permanent Nursing,Fairview Court,625.00, 17-Jan-2017
860,Revenue,CAHD,South Glos Users in South Glos Homes,Permanent Nursing,Fairview Court,625.00, 17-Jan-2017
861,Revenue,CAHD,South Glos Users in South Glos Homes,Permanent Nursing,Fairview Court,625.00, 17-Jan-2017
862,Revenue,CAHD,Bed Purchasing - Southmead Hospital,Permanent Nursing,Fairview Court,2775.00, 17-Jan-2017
863,Revenue,CAHD,South Glos Users in South Glos Homes,Permanent Nursing,Fairview Court,625.00, 17-Jan-2017
864,Revenue,CAHD,South Glos Users in South Glos Homes,Permanent Nursing,Fairview Court,625.00, 17-Jan-2017
865,Revenue,CAHD,Bed Purchasing - South,Permanent Nursing,Fairview Court,2417.68, 17-Jan-2017
866,Revenue,CAHD,South Glos Users in South Glos Homes,Permanent Nursing,Fairview Court,625.00, 17-Jan-2017
867,Revenue,CAHD,Bed Purchasing - Southmead Hospital,Permanent Nursing,Fairview Court,3052.00, 17-Jan-2017
868,Revenue,CAHD,South Glos Users in South Glos Homes,Permanent Nursing,Fairview Court,625.00, 17-Jan-2017
869,Revenue,CAHD,Bed Purchasing - North,Permanent Nursing,Fairview Court,2992.16, 17-Jan-2017
870,Revenue,CAHD,South Glos Users in South Glos Homes,Permanent Nursing,Fairview Court,625.00, 17-Jan-2017
871,Revenue,CAHD,Bed Purchasing - South,Permanent Nursing,Fairview Court,2574.32, 17-Jan-2017
872,Revenue,CAHD,South Glos Users in South Glos Homes,Permanent Nursing,Fairview Court,625.00, 17-Jan-2017
873,Revenue,CAHD,Bed Purchasing - South,Permanent Nursing,Fairview Court,2558.56, 17-Jan-2017
874,Revenue,CAHD,South Glos Users in South Glos Homes,Permanent Nursing,Fairview Court,625.00, 17-Jan-2017
875,Revenue,CAHD,Bed purchasing - Elderly S117 - South,Permanent Residential,Fairview House,1998.08, 17-Jan-2017
876,Revenue,CAHD,Bed Purchasing - Southmead Hospital,Permanent Residential,Fairview House,1831.32, 17-Jan-2017
877,Revenue,CAHD,Bed Purchasing - South,Permanent Residential,Fairview House,2067.76, 17-Jan-2017
878,Revenue,CAHD,Bed Purchasing - South,Permanent Residential,Fairview House,1831.32, 17-Jan-2017
879,Revenue,CAHD,Bed Purchasing - South,Permanent Residential,Fairview House,1831.32, 17-Jan-2017
880,Revenue,CAHD,Bed Purchasing - South,Permanent Residential,Fairview House,1831.32, 17-Jan-2017
881,Revenue,CAHD,Bed Purchasing - South,Permanent Residential,Fairview House,1831.32, 17-Jan-2017
882,Revenue,CAHD,Bed Purchasing - South,Permanent Residential,Fairview House,1831.32, 17-Jan-2017
883,Revenue,CAHD,Bed Purchasing - South,Permanent Residential,Fairview House,1959.36, 17-Jan-2017
884,Revenue,CAHD,Bed Purchasing - South,Permanent Residential,Fairview House,1861.52, 17-Jan-2017
885,Revenue,CAHD,Bed Purchasing - South,Permanent Residential,Fairview House,2090.08, 17-Jan-2017
886,Revenue,CAHD,Bed Purchasing - Southmead Hospital,Permanent Residential,Faith House,1980.52, 17-Jan-2017
887,Revenue,CAHD,Bed Purchasing - North,Permanent Residential,Faith House,2600.00, 17-Jan-2017
888,Revenue,CAHD,Bed Purchasing - North,Fees & Charges Income - General,Faith House,672.17, 17-Jan-2017
889,Revenue,CAHD,Bed Purchasing - North,Fees & Charges Income - General,Faith House,1028.57, 17-Jan-2017
890,Revenue,CAHD,CSC - Agency Fostering,Foster Parent Allowances,Families First (SW) Ltd,7269.90, 12-Jan-2017
891,Revenue,CAHD,CSC - Agency Fostering,Foster Parent Allowances,Families First (SW) Ltd,7512.23, 13-Jan-2017
892,Revenue,CAHD,Bed Purchasing - Southmead Hospital,Permanent Nursing,Field House Care Home,2995.00, 17-Jan-2017
893,Revenue,CAHD,Bed Purchasing - North,Permanent Nursing,Field House Care Home,3113.76, 17-Jan-2017
894,Revenue,CAHD,Bed Purchasing - Southmead Hospital,Permanent Nursing,Field House Care Home,2876.00, 17-Jan-2017
895,Revenue,CAHD,Bed Purchasing - Southmead Hospital,Permanent Nursing,Field House Care Home,3215.12, 17-Jan-2017
896,Revenue,CAHD,Bed Purchasing - North,Respite Emergency - Residential,Fieldview,3400.00, 17-Jan-2017
897,Revenue,CAHD,Bed Purchasing - North,Permanent Nursing,Fieldview,4000.00, 17-Jan-2017
898,Revenue,CAHD,MH Purchasing - Younger,Permanent Nursing,Fieldview,15600.00, 17-Jan-2017
899,Revenue,CAHD,MH Purchasing - Younger,Permanent Nursing,Fieldview,5200.00, 17-Jan-2017
900,Revenue,CAHD,Bed Purchasing - North,Respite Planned - Residential,Fig House,600.00, 17-Jan-2017
901,Revenue,CAHD,Statemented Support Payments to OLAs,Other L.A.'s - General,Filton Avenue Primary School,691.64, 30-Jan-2017
902,Revenue,CAHD,Home Care - Elderly - South,Other Small Contracts,Firstpoint Homecare Ltd,1223.88, 18-Jan-2017
903,Revenue,CAHD,Home Care - Elderly - North,Day Care / Social Activities,Firstpoint Homecare Ltd,130.20, 18-Jan-2017
904,Revenue,CAHD,Home Care - Elderly - North,Other Small Contracts,Firstpoint Homecare Ltd,373.24, 18-Jan-2017
905,Revenue,CAHD,Home Care - Elderly - South,Other Small Contracts,Firstpoint Homecare Ltd,859.32, 17-Jan-2017
906,Revenue,CAHD,Home Care - Elderly - North,Day Care / Social Activities,Firstpoint Homecare Ltd,130.20, 17-Jan-2017
907,Revenue,CAHD,Home Care - Elderly - North,Other Small Contracts,Firstpoint Homecare Ltd,342.86, 17-Jan-2017
908,Revenue,CAHD,CSC - Vinney Green Secure Unit,External Lecturers Fees,Footballing Chance Ltd,960.00, 26-Jan-2017
909,Revenue,CAHD,CSC - Agency Fostering,Foster Parent Allowances,Foster Care Associates Limited,5132.36, 10-Jan-2017
910,Revenue,CAHD,CSC - Agency Fostering,Foster Parent Allowances,Foster Care Associates Limited,2332.75, 09-Jan-2017
911,Revenue,CAHD,CSC - Agency Fostering,Foster Parent Allowances,Foster Care Associates Limited,4131.68, 09-Jan-2017
912,Revenue,CAHD,CSC - Special Guardianship Orders,Membership Fees,Fostering Network,1012.00, 20-Jan-2017
913,Revenue,CAHD,Home Care - Elderly - South,Day Care / Social Activities,Fourways Care Limited,149.42, 09-Jan-2017
914,Revenue,CAHD,Home Care - Elderly - South,Other Small Contracts,Fourways Care Limited,6806.78, 09-Jan-2017
915,Revenue,CAHD,Home Care - Elderly - North,Other Small Contracts,Fourways Care Limited,6835.88, 09-Jan-2017
916,Revenue,CAHD,Younger MH non-res purchasing,Other Small Contracts,Fourways Care Limited,86.76, 09-Jan-2017
917,Revenue,CAHD,Home Care - Elderly - South,Day Care / Social Activities,Fourways Care Limited,134.96, 24-Jan-2017
918,Revenue,CAHD,Home Care - Elderly - South,Other Small Contracts,Fourways Care Limited,6177.46, 24-Jan-2017
919,Revenue,CAHD,Home Care - Elderly - North,Other Small Contracts,Fourways Care Limited,6039.22, 24-Jan-2017
920,Revenue,CAHD,Younger MH non-res purchasing,Other Small Contracts,Fourways Care Limited,77.12, 24-Jan-2017
921,Revenue,CAHD,Home Care - Elderly - South,Day Care / Social Activities,Fourways Care Limited,9.64, 25-Jan-2017
922,Revenue,CAHD,Home Care - Elderly - South,Other Small Contracts,Fourways Care Limited,5914.52, 25-Jan-2017
923,Revenue,CAHD,Home Care - Elderly - North,Other Small Contracts,Fourways Care Limited,5536.58, 25-Jan-2017
924,Revenue,CAHD,Younger MH non-res purchasing,Other Small Contracts,Fourways Care Limited,53.02, 25-Jan-2017
925,Revenue,CAHD,Home Care - Elderly - South,Day Care / Social Activities,Fourways Care Limited,96.40, 31-Jan-2017
926,Revenue,CAHD,Home Care - Elderly - South,Other Small Contracts,Fourways Care Limited,6484.52, 31-Jan-2017
927,Revenue,CAHD,Home Care - Elderly - North,Other Small Contracts,Fourways Care Limited,6638.94, 31-Jan-2017
928,Revenue,CAHD,Younger MH non-res purchasing,Other Small Contracts,Fourways Care Limited,57.84, 31-Jan-2017
929,Revenue,CAHD,Home Care - Elderly - South,Day Care / Social Activities,Fourways Care Limited,192.80, 31-Jan-2017
930,Revenue,CAHD,Home Care - Elderly - South,Other Small Contracts,Fourways Care Limited,6565.72, 31-Jan-2017
931,Revenue,CAHD,Home Care - Elderly - North,Other Small Contracts,Fourways Care Limited,6362.84, 31-Jan-2017
932,Revenue,CAHD,Younger MH non-res purchasing,Other Small Contracts,Fourways Care Limited,86.76, 31-Jan-2017
933,Revenue,CAHD,Freeways,Permanent Residential,Freeways Trust Limited,3627.12, 13-Jan-2017
934,Revenue,CAHD,Freeways,Permanent Residential,Freeways Trust Limited,2331.13, 13-Jan-2017
935,Revenue,CAHD,Freeways,Permanent Residential,Freeways Trust Limited,2409.93, 13-Jan-2017
936,Revenue,CAHD,Freeways,Permanent Residential,Freeways Trust Limited,3393.81, 13-Jan-2017
937,Revenue,CAHD,Freeways,Permanent Residential,Freeways Trust Limited,2331.13, 13-Jan-2017
938,Revenue,CAHD,Freeways,Permanent Residential,Freeways Trust Limited,3454.92, 13-Jan-2017
939,Revenue,CAHD,Freeways,Permanent Residential,Freeways Trust Limited,2997.80, 13-Jan-2017
940,Revenue,CAHD,Freeways,Permanent Residential,Freeways Trust Limited,3614.51, 13-Jan-2017
941,Revenue,CAHD,Freeways,Permanent Residential,Freeways Trust Limited,2208.93, 13-Jan-2017
942,Revenue,CAHD,Freeways,Permanent Residential,Freeways Trust Limited,2749.17, 13-Jan-2017
943,Revenue,CAHD,Freeways,Permanent Residential,Freeways Trust Limited,3508.85, 13-Jan-2017
944,Revenue,CAHD,Freeways,Permanent Residential,Freeways Trust Limited,1759.73, 13-Jan-2017
945,Revenue,CAHD,Freeways,Permanent Residential,Freeways Trust Limited,2731.73, 13-Jan-2017
946,Revenue,CAHD,Freeways,Permanent Residential,Freeways Trust Limited,7455.24, 13-Jan-2017
947,Revenue,CAHD,Home Care - Elderly - South,Day Care / Social Activities,Freeways Trust Limited,1117.92, 25-Jan-2017
948,Revenue,CAHD,Home Care - Elderly - South,Day Care / Social Activities,Freeways Trust Limited,1183.68, 20-Jan-2017
949,Revenue,CAHD,Home Care - Elderly - South,Day Care / Social Activities,Freeways Trust Limited,1143.52, 20-Jan-2017
950,Revenue,CAHD,Home Care - Elderly - South,Day Care / Social Activities,Freeways Trust Limited,591.84, 20-Jan-2017
951,Revenue,CAHD,Home Care - Elderly - North,Supported Living,Freeways Trust Ltd,800.00, 17-Jan-2017
952,Revenue,CAHD,Bed purchasing - S28A Under 65 - South,Permanent Residential,Freeways Trust Ltd,3546.28, 17-Jan-2017
953,Revenue,CAHD,Bed Purchasing - North,Permanent Residential,Freeways Trust Ltd,3560.40, 17-Jan-2017
954,Revenue,CAHD,Bed Purchasing - South,Permanent Residential,Freeways Trust Ltd,3776.08, 17-Jan-2017
955,Revenue,CAHD,Bed Purchasing - North,Permanent Residential,Freeways Trust Ltd,2851.24, 17-Jan-2017
956,Revenue,CAHD,Bed Purchasing - South,Permanent Residential,Freeways Trust Ltd,3004.60, 17-Jan-2017
957,Revenue,CAHD,Bed Purchasing - North,Permanent Residential,Freeways Trust Ltd,3149.08, 17-Jan-2017
958,Revenue,CAHD,Bed Purchasing - North,Permanent Residential,Freeways Trust Ltd,3769.20, 17-Jan-2017
959,Revenue,CAHD,18-25 Year Olds,Permanent Residential,Freeways Trust Ltd,3481.92, 17-Jan-2017
960,Revenue,CAHD,Bed Purchasing - North,Permanent Residential,Freeways Trust Ltd,4357.16, 17-Jan-2017
961,Revenue,CAHD,Pathway 3 - (Complex Beds),Permanent Nursing,Frenchay House,3162.00, 11-Jan-2017
962,Revenue,CAHD,CSC - Residential Placements,Permanent Residential,Friends Therapeutic Community Trust,15000.00, 09-Jan-2017
963,Revenue,CAHD,Bed Purchasing - South,Permanent Nursing,Fshc  1St Floor,2587.52, 17-Jan-2017
964,Revenue,CAHD,South Glos Users in South Glos Homes,Permanent Nursing,Fshc  1St Floor,625.00, 17-Jan-2017
965,Revenue,CAHD,Bed Purchasing - South,Permanent Nursing,Fshc  1St Floor,2038.72, 17-Jan-2017
966,Revenue,CAHD,Bed Purchasing - Southmead Hospital,Permanent Nursing,Fshc  1St Floor,2252.00, 17-Jan-2017
967,Revenue,CAHD,Bed Purchasing - South,Permanent Nursing,Fshc  1St Floor,2038.72, 17-Jan-2017
968,Revenue,CAHD,South Glos Users in South Glos Homes,Permanent Nursing,Fshc  1St Floor,625.00, 17-Jan-2017
969,Revenue,CAHD,Bed Purchasing - Southmead Hospital,Permanent Nursing,Fshc  1St Floor,2552.00, 17-Jan-2017
970,Revenue,CAHD,South Glos Users in South Glos Homes,Permanent Nursing,Fshc  1St Floor,625.00, 17-Jan-2017
971,Revenue,CAHD,Bed Purchasing - Southmead Hospital,Permanent Nursing,Fshc  1St Floor,2038.72, 17-Jan-2017
972,Revenue,CAHD,South Glos Users in South Glos Homes,Permanent Nursing,Fshc  1St Floor,625.00, 17-Jan-2017
973,Revenue,CAHD,South Glos Users in South Glos Homes,Permanent Nursing,Fshc  1St Floor,625.00, 17-Jan-2017
974,Revenue,CAHD,Bed Purchasing - Southmead Hospital,Permanent Nursing,Fshc  1St Floor,2252.00, 17-Jan-2017
975,Revenue,CAHD,Bed Purchasing - Southmead Hospital,Permanent Nursing,Fshc  1St Floor,2548.00, 17-Jan-2017
976,Revenue,CAHD,South Glos Users in South Glos Homes,Permanent Nursing,Fshc  1St Floor,625.00, 17-Jan-2017
977,Revenue,CAHD,South Glos Users in South Glos Homes,Permanent Nursing,Fshc  1St Floor,625.00, 17-Jan-2017
978,Revenue,CAHD,Bed Purchasing - Southmead Hospital,Permanent Nursing,Fshc  1St Floor,2038.72, 17-Jan-2017
979,Revenue,CAHD,South Glos Users in South Glos Homes,Permanent Nursing,Fshc  1St Floor,625.00, 17-Jan-2017
980,Revenue,CAHD,Bed Purchasing - Southmead Hospital,Permanent Nursing,Fshc  1St Floor,2038.72, 17-Jan-2017
981,Revenue,CAHD,South Glos Users in South Glos Homes,Permanent Nursing,Fshc  1St Floor,625.00, 17-Jan-2017
982,Revenue,CAHD,South Glos Users in South Glos Homes,Permanent Nursing,Fshc  1St Floor,625.00, 17-Jan-2017
983,Revenue,CAHD,Bed Purchasing - South,Permanent Nursing,Fshc  1St Floor,2282.64, 17-Jan-2017
984,Revenue,CAHD,Bed Purchasing - Southmead Hospital,Permanent Nursing,Fshc  1St Floor,2282.64, 17-Jan-2017
985,Revenue,CAHD,Bed Purchasing - South,Permanent Nursing,Fshc  1St Floor,2252.00, 17-Jan-2017
986,Revenue,CAHD,South Glos Users in South Glos Homes,Permanent Nursing,Fshc  1St Floor,625.00, 17-Jan-2017
987,Revenue,CAHD,South Glos Users in South Glos Homes,Permanent Nursing,Fshc  1St Floor,625.00, 17-Jan-2017
988,Revenue,CAHD,Bed Purchasing - South,Permanent Nursing,Fshc  1St Floor,2252.00, 17-Jan-2017
989,Revenue,CAHD,Bed Purchasing - Southmead Hospital,Permanent Nursing,Fshc  1St Floor,2038.72, 17-Jan-2017
990,Revenue,CAHD,South Glos Users in South Glos Homes,Permanent Nursing,Fshc  1St Floor,625.00, 17-Jan-2017
991,Revenue,CAHD,Bed Purchasing - Southmead Hospital,Permanent Nursing,Fshc  1St Floor,16005.29, 17-Jan-2017
992,Revenue,CAHD,Bed Purchasing - Southmead Hospital,Permanent Nursing,Fshc  1St Floor,2252.00, 17-Jan-2017
993,Revenue,CAHD,South Glos Users in South Glos Homes,Permanent Nursing,Fshc  1St Floor,625.00, 17-Jan-2017
994,Revenue,CAHD,Bed Purchasing - Southmead Hospital,Fees & Charges Income - General,Fshc  1St Floor,3921.15, 17-Jan-2017
995,Revenue,CAHD,Bed Purchasing - South,Permanent Nursing,Fshc  1St Floor,2038.72, 17-Jan-2017
996,Revenue,CAHD,South Glos Users in South Glos Homes,Permanent Nursing,Fshc  1St Floor,625.00, 17-Jan-2017
997,Revenue,CAHD,Bed Purchasing - Southmead Hospital,Permanent Nursing,Fshc  1St Floor,2038.72, 17-Jan-2017
998,Revenue,CAHD,South Glos Users in South Glos Homes,Permanent Nursing,Fshc  1St Floor,625.00, 17-Jan-2017
999,Revenue,CAHD,Bed Purchasing - Southmead Hospital,Permanent Residential,Fshc  1St Floor,1901.52, 17-Jan-2017
1000,Revenue,CAHD,Bed Purchasing - North,Permanent Nursing,Fshc  1St Floor,2734.57, 17-Jan-2017
1001,Revenue,CAHD,Bed Purchasing - North,Permanent Nursing,Fshc  1St Floor,2252.00, 17-Jan-2017
1002,Revenue,CAHD,Bed Purchasing - North,Fees & Charges Income - General,Fshc  1St Floor,616.16, 17-Jan-2017
1003,Revenue,CAHD,Bed Purchasing - South,Permanent Nursing,Fshc  1St Floor,2038.72, 17-Jan-2017
1004,Revenue,CAHD,Bed Purchasing - North,Permanent Nursing,Fshc  1St Floor,2038.72, 17-Jan-2017
1005,Revenue,CAHD,South Glos Users in South Glos Homes,Permanent Nursing,Fshc  1St Floor,625.00, 17-Jan-2017
1006,Revenue,CAHD,Bed Purchasing - South,Permanent Nursing,Fshc  1St Floor,2252.00, 17-Jan-2017
1007,Revenue,CAHD,South Glos Users in South Glos Homes,Permanent Nursing,Fshc  1St Floor,625.00, 17-Jan-2017
1008,Revenue,CAHD,Bed Purchasing - Southmead Hospital,Permanent Nursing,Fshc  1St Floor,2038.72, 17-Jan-2017
1009,Revenue,CAHD,South Glos Users in South Glos Homes,Permanent Nursing,Fshc  1St Floor,625.00, 17-Jan-2017
1010,Revenue,CAHD,Bed Purchasing - South,Permanent Nursing,Fshc  1St Floor,2038.72, 17-Jan-2017
1011,Revenue,CAHD,South Glos Users in South Glos Homes,Permanent Nursing,Fshc  1St Floor,625.00, 17-Jan-2017
1012,Revenue,CAHD,South Glos Users in South Glos Homes,Permanent Nursing,Fshc  1St Floor,625.00, 17-Jan-2017
1013,Revenue,CAHD,Bed Purchasing - South,Permanent Nursing,Fshc  1St Floor,2038.72, 17-Jan-2017
1014,Revenue,CAHD,South Glos Users in South Glos Homes,Permanent Nursing,Fshc  1St Floor,1964.29, 17-Jan-2017
1015,Revenue,CAHD,South Glos Users in South Glos Homes,Permanent Nursing,Fshc  1St Floor,625.00, 17-Jan-2017
1016,Revenue,CAHD,Bed Purchasing - North,Permanent Nursing,Fshc  1St Floor,2282.64, 17-Jan-2017
1017,Revenue,CAHD,South Glos Users in South Glos Homes,Permanent Nursing,Fshc  1St Floor,625.00, 17-Jan-2017
1018,Revenue,CAHD,Bed Purchasing - Southmead Hospital,Permanent Nursing,Fshc  1St Floor,2038.72, 17-Jan-2017
1019,Revenue,CAHD,South Glos Users in South Glos Homes,Permanent Nursing,Fshc  1St Floor,625.00, 17-Jan-2017
1020,Revenue,CAHD,South Glos Users in South Glos Homes,Permanent Nursing,Fshc  1St Floor,625.00, 17-Jan-2017
1021,Revenue,CAHD,Bed Purchasing - North,Permanent Nursing,Fshc  1St Floor,2038.72, 17-Jan-2017
1022,Revenue,CAHD,South Glos Users in South Glos Homes,Permanent Nursing,Fshc  1St Floor,625.00, 17-Jan-2017
1023,Revenue,CAHD,Bed Purchasing - South,Permanent Nursing,Fshc  1St Floor,2038.72, 17-Jan-2017
1024,Revenue,CAHD,South Glos Users in South Glos Homes,Permanent Nursing,Fshc  1St Floor,625.00, 17-Jan-2017
1025,Revenue,CAHD,Bed Purchasing - Southmead Hospital,Permanent Nursing,Fshc  1St Floor,2038.72, 17-Jan-2017
1026,Revenue,CAHD,South Glos Users in South Glos Homes,Permanent Nursing,Fshc  1St Floor,625.00, 17-Jan-2017
1027,Revenue,CAHD,South Glos Users in South Glos Homes,Permanent Nursing,Fshc  1St Floor,625.00, 17-Jan-2017
1028,Revenue,CAHD,Bed Purchasing - Southmead Hospital,Permanent Nursing,Fshc  1St Floor,2227.20, 17-Jan-2017
1029,Revenue,CAHD,South Glos Users in South Glos Homes,Permanent Nursing,Fshc  1St Floor,625.00, 17-Jan-2017
1030,Revenue,CAHD,Bed Purchasing - North,Permanent Nursing,Fshc  1St Floor,2188.00, 17-Jan-2017
1031,Revenue,CAHD,South Glos Users in South Glos Homes,Permanent Nursing,Fshc  1St Floor,625.00, 17-Jan-2017
1032,Revenue,CAHD,South Glos Users in South Glos Homes,Permanent Nursing,Fshc  1St Floor,625.00, 17-Jan-2017
1033,Revenue,CAHD,Bed Purchasing - Southmead Hospital,Permanent Nursing,Fshc  1St Floor,2038.72, 17-Jan-2017
1034,Revenue,CAHD,South Glos Users in South Glos Homes,Permanent Nursing,Fshc  1St Floor,625.00, 17-Jan-2017
1035,Revenue,CAHD,Bed Purchasing - Southmead Hospital,Permanent Residential,Fshc  1St Floor,1901.52, 17-Jan-2017
1036,Revenue,CAHD,Bed Purchasing - Southmead Hospital,Respite Emergency - Nursing,Fshc  1St Floor,2164.00, 17-Jan-2017
1037,Revenue,CAHD,South Glos Users in South Glos Homes,Permanent Nursing,Fshc  1St Floor,1093.75, 17-Jan-2017
1038,Revenue,CAHD,South Glos Users in South Glos Homes,Permanent Nursing,Fshc  1St Floor,625.00, 17-Jan-2017
1039,Revenue,CAHD,Bed Purchasing - Southmead Hospital,Respite Emergency - Nursing,Fshc  1St Floor,3787.00, 17-Jan-2017
1040,Revenue,CAHD,South Glos Users in South Glos Homes,Permanent Nursing,Fshc  1St Floor,625.00, 17-Jan-2017
1041,Revenue,CAHD,Bed Purchasing - Southmead Hospital,Permanent Nursing,Fshc  1St Floor,2038.72, 17-Jan-2017
1042,Revenue,CAHD,South Glos Users in South Glos Homes,Permanent Nursing,Fshc  1St Floor,625.00, 17-Jan-2017
1043,Revenue,CAHD,Bed Purchasing - Southmead Hospital,Permanent Nursing,Fshc  1St Floor,2038.72, 17-Jan-2017
1044,Revenue,CAHD,South Glos Users in South Glos Homes,Permanent Nursing,Fshc  1St Floor,625.00, 17-Jan-2017
1045,Revenue,CAHD,South Glos Users in South Glos Homes,Permanent Nursing,Fshc  1St Floor,625.00, 17-Jan-2017
1046,Revenue,CAHD,South Glos Users in South Glos Homes,Permanent Nursing,Fshc  1St Floor,625.00, 17-Jan-2017
1047,Revenue,CAHD,Bed Purchasing - North,Permanent Nursing,Fshc  1St Floor,2193.44, 17-Jan-2017
1048,Revenue,CAHD,Bed Purchasing - Southmead Hospital,Permanent Nursing,Fshc  1St Floor,2038.72, 17-Jan-2017
1049,Revenue,CAHD,South Glos Users in South Glos Homes,Permanent Nursing,Fshc  1St Floor,625.00, 17-Jan-2017
1050,Revenue,CAHD,Bed Purchasing - North,Permanent Nursing,Fshc  1St Floor,2038.72, 17-Jan-2017
1051,Revenue,CAHD,South Glos Users in South Glos Homes,Permanent Nursing,Fshc  1St Floor,625.00, 17-Jan-2017
1052,Revenue,CAHD,South Glos Users in South Glos Homes,Permanent Nursing,Fshc  1St Floor,625.00, 17-Jan-2017
1053,Revenue,CAHD,Bed Purchasing - North,Permanent Nursing,Fshc  1St Floor,2228.00, 17-Jan-2017
1054,Revenue,CAHD,South Glos Users in South Glos Homes,Permanent Nursing,Fshc  1St Floor,625.00, 17-Jan-2017
1055,Revenue,CAHD,South Glos Users in South Glos Homes,Permanent Nursing,Fshc  1St Floor,625.00, 17-Jan-2017
1056,Revenue,CAHD,South Glos Users in South Glos Homes,Permanent Nursing,Fshc  1St Floor,625.00, 17-Jan-2017
1057,Revenue,CAHD,Bed Purchasing - Southmead Hospital,Permanent Nursing,Fshc  1St Floor,3800.00, 17-Jan-2017
1058,Revenue,CAHD,South Glos Users in South Glos Homes,Permanent Nursing,Fshc  1St Floor,625.00, 17-Jan-2017
1059,Revenue,CAHD,Bed Purchasing - Southmead Hospital,Permanent Nursing,Fshc  1St Floor,2227.20, 17-Jan-2017
1060,Revenue,CAHD,South Glos Users in South Glos Homes,Permanent Nursing,Fshc  1St Floor,625.00, 17-Jan-2017
1061,Revenue,CAHD,Bed Purchasing - North,Permanent Nursing,Fshc  1St Floor,2038.72, 17-Jan-2017
1062,Revenue,CAHD,South Glos Users in South Glos Homes,Permanent Nursing,Fshc  1St Floor,625.00, 17-Jan-2017
1063,Revenue,CAHD,Bed Purchasing - Southmead Hospital,Permanent Residential,Fshc  1St Floor,1901.52, 17-Jan-2017
1064,Revenue,CAHD,Bed Purchasing - North,Permanent Nursing,Fshc  1St Floor,2038.72, 17-Jan-2017
1065,Revenue,CAHD,South Glos Users in South Glos Homes,Permanent Nursing,Fshc  1St Floor,625.00, 17-Jan-2017
1066,Revenue,CAHD,Bed Purchasing - North,Permanent Nursing,Fshc  1St Floor,2038.72, 17-Jan-2017
1067,Revenue,CAHD,South Glos Users in South Glos Homes,Permanent Nursing,Fshc  1St Floor,625.00, 17-Jan-2017
1068,Revenue,CAHD,Bed Purchasing - North,Permanent Nursing,Fshc  1St Floor,2038.72, 17-Jan-2017
1069,Revenue,CAHD,South Glos Users in South Glos Homes,Permanent Nursing,Fshc  1St Floor,625.00, 17-Jan-2017
1070,Revenue,CAHD,Bed Purchasing - North,Permanent Nursing,Fshc  1St Floor,2038.72, 17-Jan-2017
1071,Revenue,CAHD,South Glos Users in South Glos Homes,Permanent Nursing,Fshc  1St Floor,625.00, 17-Jan-2017
1072,Revenue,CAHD,Bed Purchasing - North,Permanent Residential,Fshc  1St Floor,2228.00, 17-Jan-2017
1073,Revenue,CAHD,South Glos Users in South Glos Homes,Permanent Nursing,Fshc  1St Floor,625.00, 17-Jan-2017
1074,Revenue,CAHD,Bed Purchasing - North,Permanent Nursing,Fshc  1St Floor,2038.72, 17-Jan-2017
1075,Revenue,CAHD,South Glos Users in South Glos Homes,Permanent Nursing,Fshc  1St Floor,625.00, 17-Jan-2017
1076,Revenue,CAHD,Bed Purchasing - North,Permanent Nursing,Fshc  1St Floor,2038.72, 17-Jan-2017
1077,Revenue,CAHD,South Glos Users in South Glos Homes,Permanent Nursing,Fshc  1St Floor,625.00, 17-Jan-2017
1078,Revenue,CAHD,South Glos Users in South Glos Homes,Permanent Nursing,Fshc  1St Floor,625.00, 17-Jan-2017
1079,Revenue,CAHD,South Glos Users in South Glos Homes,Permanent Nursing,Fshc  1St Floor,625.00, 17-Jan-2017
1080,Revenue,CAHD,Bed Purchasing - Southmead Hospital,Permanent Nursing,Fshc  1St Floor,1459.75, 17-Jan-2017
1081,Revenue,CAHD,Bed Purchasing - North,Permanent Nursing,Fshc  1St Floor,2038.72, 17-Jan-2017
1082,Revenue,CAHD,South Glos Users in South Glos Homes,Permanent Nursing,Fshc  1St Floor,625.00, 17-Jan-2017
1083,Revenue,CAHD,South Glos Users in South Glos Homes,Permanent Nursing,Fshc  1St Floor,6160.71, 17-Jan-2017
1084,Revenue,CAHD,Bed Purchasing - North,Permanent Nursing,Fshc  1St Floor,2108.28, 17-Jan-2017
1085,Revenue,CAHD,South Glos Users in South Glos Homes,Permanent Nursing,Fshc  1St Floor,1184.00, 17-Jan-2017
1086,Revenue,CAHD,South Glos Users in South Glos Homes,Permanent Nursing,Fshc  1St Floor,625.00, 17-Jan-2017
1087,Revenue,CAHD,Bed Purchasing - Southmead Hospital,Permanent Nursing,Fshc  1St Floor,2352.00, 17-Jan-2017
1088,Revenue,CAHD,South Glos Users in South Glos Homes,Permanent Nursing,Fshc  1St Floor,625.00, 17-Jan-2017
1089,Revenue,CAHD,Bed Purchasing - North,Permanent Nursing,Fshc  1St Floor,2038.72, 17-Jan-2017
1090,Revenue,CAHD,South Glos Users in South Glos Homes,Permanent Nursing,Fshc  1St Floor,625.00, 17-Jan-2017
1091,Revenue,CAHD,Bed Purchasing - Southmead Hospital,Permanent Nursing,Fshc  1St Floor,2156.92, 17-Jan-2017
1092,Revenue,CAHD,Bed Purchasing - South,Permanent Nursing,Fshc  1St Floor,2038.72, 17-Jan-2017
1093,Revenue,CAHD,South Glos Users in South Glos Homes,Permanent Nursing,Fshc  1St Floor,625.00, 17-Jan-2017
1094,Revenue,CAHD,South Glos Users in South Glos Homes,Permanent Nursing,Fshc  1St Floor,625.00, 17-Jan-2017
1095,Revenue,CAHD,Bed Purchasing - Southmead Hospital,Permanent Nursing,Fshc  1St Floor,2038.72, 17-Jan-2017
1096,Revenue,CAHD,South Glos Users in South Glos Homes,Permanent Nursing,Fshc  1St Floor,625.00, 17-Jan-2017
1097,Revenue,CAHD,South Glos Users in South Glos Homes,Permanent Nursing,Fshc  1St Floor,625.00, 17-Jan-2017
1098,Revenue,CAHD,Bed Purchasing - North,Permanent Nursing,Fshc  1St Floor,2375.00, 17-Jan-2017
1099,Revenue,CAHD,South Glos Users in South Glos Homes,Permanent Nursing,Fshc  1St Floor,625.00, 17-Jan-2017
1100,Revenue,CAHD,South Glos Users in South Glos Homes,Permanent Nursing,Fshc  1St Floor,625.00, 17-Jan-2017
1101,Revenue,CAHD,Bed Purchasing - North,Permanent Nursing,Fshc  1St Floor,2038.72, 17-Jan-2017
1102,Revenue,CAHD,South Glos Users in South Glos Homes,Permanent Nursing,Fshc  1St Floor,625.00, 17-Jan-2017
1103,Revenue,CAHD,Bed Purchasing - Southmead Hospital,Respite Planned - Nursing,Fshc  1St Floor,2776.00, 17-Jan-2017
1104,Revenue,CAHD,South Glos Users in South Glos Homes,Permanent Nursing,Fshc  1St Floor,2299.11, 17-Jan-2017
1105,Revenue,CAHD,Bed Purchasing - Southmead Hospital,Respite Planned - Nursing,Fshc  1St Floor,1883.71, 17-Jan-2017
1106,Revenue,CAHD,South Glos Users in South Glos Homes,Permanent Nursing,Fshc  1St Floor,625.00, 17-Jan-2017
1107,Revenue,CAHD,South Glos Users in South Glos Homes,Permanent Nursing,Fshc  1St Floor,625.00, 17-Jan-2017
1108,Revenue,CAHD,Bed Purchasing - Southmead Hospital,Permanent Residential,Fshc  1St Floor,1901.52, 17-Jan-2017
1109,Revenue,CAHD,South Glos Users in South Glos Homes,Permanent Nursing,Fshc  1St Floor,625.00, 17-Jan-2017
1110,Revenue,CAHD,South Glos Users in South Glos Homes,Permanent Nursing,Fshc  1St Floor,625.00, 17-Jan-2017
1111,Revenue,CAHD,South Glos Users in South Glos Homes,Permanent Nursing,Fshc  1St Floor,625.00, 17-Jan-2017
1112,Revenue,CAHD,Bed Purchasing - Southmead Hospital,Permanent Nursing,Fshc  1St Floor,2375.00, 17-Jan-2017
1113,Revenue,CAHD,Bed Purchasing - Southmead Hospital,Permanent Nursing,Fshc  1St Floor,2038.72, 17-Jan-2017
1114,Revenue,CAHD,South Glos Users in South Glos Homes,Permanent Nursing,Fshc  1St Floor,625.00, 17-Jan-2017
1115,Revenue,CAHD,Bed Purchasing - Southmead Hospital,Permanent Nursing,Fshc  1St Floor,3964.29, 17-Jan-2017
1116,Revenue,CAHD,Bed Purchasing - Southmead Hospital,Permanent Nursing,Fshc  1St Floor,1585.71, 17-Jan-2017
1117,Revenue,CAHD,Bed Purchasing - North,Permanent Nursing,Fshc  1St Floor,2038.72, 17-Jan-2017
1118,Revenue,CAHD,South Glos Users in South Glos Homes,Permanent Nursing,Fshc  1St Floor,625.00, 17-Jan-2017
1119,Revenue,CAHD,South Glos Users in South Glos Homes,Permanent Nursing,Fshc  1St Floor,625.00, 17-Jan-2017
1120,Revenue,CAHD,Bed Purchasing - Southmead Hospital,Permanent Nursing,Fshc  1St Floor,2038.72, 17-Jan-2017
1121,Revenue,CAHD,South Glos Users in South Glos Homes,Permanent Nursing,Fshc  1St Floor,625.00, 17-Jan-2017
1122,Revenue,CAHD,Bed Purchasing - North,Permanent Nursing,Fshc  1St Floor,2038.72, 17-Jan-2017
1123,Revenue,CAHD,South Glos Users in South Glos Homes,Permanent Nursing,Fshc  1St Floor,625.00, 17-Jan-2017
1124,Revenue,CAHD,Bed Purchasing - Southmead Hospital,Permanent Nursing,Fshc  1St Floor,2038.72, 17-Jan-2017
1125,Revenue,CAHD,South Glos Users in South Glos Homes,Permanent Nursing,Fshc  1St Floor,625.00, 17-Jan-2017
1126,Revenue,CAHD,South Glos Users in South Glos Homes,Permanent Nursing,Fshc  1St Floor,625.00, 17-Jan-2017
1127,Revenue,CAHD,Bed Purchasing - South,Permanent Residential,Fshc  1St Floor,2200.00, 17-Jan-2017
1128,Revenue,CAHD,Bed Purchasing - South,Permanent Nursing,Fshc  1St Floor,2400.00, 17-Jan-2017
1129,Revenue,CAHD,South Glos Users in South Glos Homes,Permanent Nursing,Fshc  1St Floor,625.00, 17-Jan-2017
1130,Revenue,CAHD,Bed Purchasing - South,Permanent Nursing,Fshc  1St Floor,2038.72, 17-Jan-2017
1131,Revenue,CAHD,South Glos Users in South Glos Homes,Permanent Nursing,Fshc  1St Floor,625.00, 17-Jan-2017
1132,Revenue,CAHD,Bed Purchasing - South,Fees & Charges Income - General,Fshc  1St Floor,823.65, 17-Jan-2017
1133,Revenue,CAHD,Bed Purchasing - Southmead Hospital,Permanent Nursing,Fshc  1St Floor,2038.72, 17-Jan-2017
1134,Revenue,CAHD,South Glos Users in South Glos Homes,Permanent Nursing,Fshc  1St Floor,625.00, 17-Jan-2017
1135,Revenue,CAHD,Bed Purchasing - North,Permanent Nursing,Fshc  1St Floor,2038.72, 17-Jan-2017
1136,Revenue,CAHD,South Glos Users in South Glos Homes,Permanent Nursing,Fshc  1St Floor,625.00, 17-Jan-2017
1137,Revenue,CAHD,Bed Purchasing - Southmead Hospital,Permanent Residential,Fshc  1St Floor,2111.52, 17-Jan-2017
1138,Revenue,CAHD,Bed Purchasing - North,Fees & Charges Income - General,Fshc  1St Floor,543.32, 17-Jan-2017
1139,Revenue,CAHD,South Glos Users in South Glos Homes,Permanent Nursing,Fshc  1St Floor,625.00, 17-Jan-2017
1140,Revenue,CAHD,South Glos Users in South Glos Homes,Permanent Nursing,Fshc  1St Floor,625.00, 17-Jan-2017
1141,Revenue,CAHD,Bed Purchasing - South,Permanent Residential,Fshc  1St Floor,2154.36, 17-Jan-2017
1142,Revenue,CAHD,Bed Purchasing - North,Permanent Nursing,Fshc  1St Floor,2038.72, 17-Jan-2017
1143,Revenue,CAHD,South Glos Users in South Glos Homes,Permanent Nursing,Fshc  1St Floor,625.00, 17-Jan-2017
1144,Revenue,CAHD,South Glos Users in South Glos Homes,Permanent Nursing,Fshc  1St Floor,1986.61, 17-Jan-2017
1145,Revenue,CAHD,South Glos Users in South Glos Homes,Permanent Nursing,Fshc  1St Floor,625.00, 17-Jan-2017
1146,Revenue,CAHD,Bed Purchasing - Southmead Hospital,Permanent Nursing,Fshc  1St Floor,2038.72, 17-Jan-2017
1147,Revenue,CAHD,South Glos Users in South Glos Homes,Permanent Nursing,Fshc  1St Floor,625.00, 17-Jan-2017
1148,Revenue,CAHD,Bed Purchasing - South,Permanent Nursing,Fshc  1St Floor,2145.80, 17-Jan-2017
1149,Revenue,CAHD,South Glos Users in South Glos Homes,Permanent Nursing,Fshc  1St Floor,625.00, 17-Jan-2017
1150,Revenue,CAHD,South Glos Users in South Glos Homes,Permanent Nursing,Fshc  1St Floor,625.00, 17-Jan-2017
1151,Revenue,CAHD,Bed Purchasing - South,Permanent Residential,Fshc  1St Floor,2200.00, 17-Jan-2017
1152,Revenue,CAHD,Bed Purchasing - Southmead Hospital,Permanent Nursing,Fshc  1St Floor,2038.72, 17-Jan-2017
1153,Revenue,CAHD,South Glos Users in South Glos Homes,Permanent Nursing,Fshc  1St Floor,625.00, 17-Jan-2017
1154,Revenue,CAHD,Bed Purchasing - Southmead Hospital,Permanent Nursing,Fshc  1St Floor,2229.92, 17-Jan-2017
1155,Revenue,CAHD,South Glos Users in South Glos Homes,Permanent Nursing,Fshc  1St Floor,625.00, 17-Jan-2017
1156,Revenue,CAHD,Bed Purchasing - South,Permanent Nursing,Fshc  1St Floor,2038.72, 17-Jan-2017
1157,Revenue,CAHD,South Glos Users in South Glos Homes,Permanent Nursing,Fshc  1St Floor,625.00, 17-Jan-2017
1158,Revenue,CAHD,South Glos Users in South Glos Homes,Permanent Nursing,Fshc  1St Floor,625.00, 17-Jan-2017
1159,Revenue,CAHD,South Glos Users in South Glos Homes,Permanent Nursing,Fshc  1St Floor,625.00, 17-Jan-2017
1160,Revenue,CAHD,South Glos Users in South Glos Homes,Permanent Nursing,Fshc  1St Floor,625.00, 17-Jan-2017
1161,Revenue,CAHD,Bed Purchasing - South,Permanent Residential,Fshc  1St Floor,1901.52, 17-Jan-2017
1162,Revenue,CAHD,Bed Purchasing - Southmead Hospital,Permanent Nursing,Fshc  1St Floor,2038.72, 17-Jan-2017
1163,Revenue,CAHD,South Glos Users in South Glos Homes,Permanent Nursing,Fshc  1St Floor,625.00, 17-Jan-2017
1164,Revenue,CAHD,Bed Purchasing - South,Permanent Nursing,Fshc  1St Floor,2800.00, 17-Jan-2017
1165,Revenue,CAHD,Bed Purchasing - Southmead Hospital,Permanent Nursing,Fshc  1St Floor,2038.72, 17-Jan-2017
1166,Revenue,CAHD,South Glos Users in South Glos Homes,Permanent Nursing,Fshc  1St Floor,625.00, 17-Jan-2017
1167,Revenue,CAHD,Bed Purchasing - Southmead Hospital,Permanent Nursing,Fshc  1St Floor,2038.72, 17-Jan-2017
1168,Revenue,CAHD,South Glos Users in South Glos Homes,Permanent Nursing,Fshc  1St Floor,625.00, 17-Jan-2017
1169,Revenue,CAHD,Bed Purchasing - Southmead Hospital,Permanent Residential,Fshc  1St Floor,2008.00, 17-Jan-2017
1170,Revenue,CAHD,South Glos Users in South Glos Homes,Permanent Nursing,Fshc  1St Floor,625.00, 17-Jan-2017
1171,Revenue,CAHD,Bed Purchasing - South,Permanent Nursing,Fshc  1St Floor,5664.29, 17-Jan-2017
1172,Revenue,CAHD,Bed Purchasing - South,Permanent Nursing,Fshc  1St Floor,2600.00, 17-Jan-2017
1173,Revenue,CAHD,Bed Purchasing - South,Permanent Nursing,Fshc  1St Floor,1952.00, 17-Jan-2017
1174,Revenue,CAHD,Bed Purchasing - South,Permanent Nursing,Fshc  1St Floor,2038.72, 17-Jan-2017
1175,Revenue,CAHD,South Glos Users in South Glos Homes,Permanent Nursing,Fshc  1St Floor,625.00, 17-Jan-2017
1176,Revenue,CAHD,Bed Purchasing - South,Permanent Nursing,Fshc  1St Floor,2324.08, 17-Jan-2017
1177,Revenue,CAHD,South Glos Users in South Glos Homes,Permanent Nursing,Fshc  1St Floor,625.00, 17-Jan-2017
1178,Revenue,CAHD,Bed Purchasing - South,Permanent Nursing,Fshc  1St Floor,2111.52, 17-Jan-2017
1179,Revenue,CAHD,South Glos Users in South Glos Homes,Permanent Nursing,Fshc  1St Floor,625.00, 17-Jan-2017
1180,Revenue,CAHD,Bed Purchasing - South,Permanent Residential,Fshc  1St Floor,2154.36, 17-Jan-2017
1181,Revenue,CAHD,Bed Purchasing - South,Permanent Nursing,Fshc  1St Floor,1929.88, 17-Jan-2017
1182,Revenue,CAHD,Bed Purchasing - Southmead Hospital,Permanent Nursing,Fshc  1St Floor,2838.08, 17-Jan-2017
1183,Revenue,CAHD,Bed purchasing - Elderly S117 - South,Permanent Nursing,Fshc  1St Floor,1929.88, 17-Jan-2017
1184,Revenue,CAHD,Bed Purchasing - South,Permanent Nursing,Fshc  1St Floor,3278.57, 17-Jan-2017
1185,Revenue,CAHD,Bed Purchasing - South,Permanent Nursing,Fshc  1St Floor,3278.57, 17-Jan-2017
1186,Revenue,CAHD,Bed Purchasing - South,Permanent Nursing,Fshc  1St Floor,1929.88, 17-Jan-2017
1187,Revenue,CAHD,Bed Purchasing - Southmead Hospital,Permanent Nursing,Fshc  1St Floor,1929.88, 17-Jan-2017
1188,Revenue,CAHD,Bed Purchasing - Southmead Hospital,Permanent Nursing,Fshc  1St Floor,1929.88, 17-Jan-2017
1189,Revenue,CAHD,Bed Purchasing - Southmead Hospital,Permanent Nursing,Fshc  1St Floor,1929.88, 17-Jan-2017
1190,Revenue,CAHD,Bed Purchasing - South,Permanent Nursing,Fshc  1St Floor,1929.88, 17-Jan-2017
1191,Revenue,CAHD,Bed Purchasing - South,Permanent Residential,Fshc  1St Floor,3542.08, 17-Jan-2017
1192,Revenue,CAHD,Bed Purchasing - Southmead Hospital,Permanent Residential,Fshc  1St Floor,1946.08, 17-Jan-2017
1193,Revenue,CAHD,Bed Purchasing - North,Permanent Nursing,Fshc  1St Floor,2189.40, 17-Jan-2017
1194,Revenue,CAHD,Bed Purchasing - Southmead Hospital,Respite Planned - Nursing,Fshc  1St Floor,2189.40, 17-Jan-2017
1195,Revenue,CAHD,Bed Purchasing - North,Permanent Nursing,Fshc  1St Floor,1988.44, 17-Jan-2017
1196,Revenue,CAHD,South Glos Users in South Glos Homes,Permanent Nursing,Fshc  1St Floor,625.00, 17-Jan-2017
1197,Revenue,CAHD,Bed Purchasing - North,Permanent Nursing,Fshc  1St Floor,2189.40, 17-Jan-2017
1198,Revenue,CAHD,Bed Purchasing - North,Permanent Nursing,Fshc  1St Floor,2189.40, 17-Jan-2017
1199,Revenue,CAHD,South Glos Users in South Glos Homes,Permanent Nursing,Fshc  1St Floor,625.00, 17-Jan-2017
1200,Revenue,CAHD,Bed Purchasing - Southmead Hospital,Permanent Nursing,Fshc  1St Floor,2189.40, 17-Jan-2017
1201,Revenue,CAHD,Bed Purchasing - North,Permanent Nursing,Fshc  1St Floor,1929.88, 17-Jan-2017
1202,Revenue,CAHD,Bed Purchasing - South,Permanent Residential,Fshc  1St Floor,2200.00, 17-Jan-2017
1203,Revenue,CAHD,Bed Purchasing - North,Permanent Residential,Fshc  1St Floor,1831.32, 17-Jan-2017
1204,Revenue,CAHD,Bed Purchasing - Southmead Hospital,Permanent Residential,Fshc  1St Floor,1669.68, 17-Jan-2017
1205,Revenue,CAHD,Bed Purchasing - South,Permanent Residential,Fshc  1St Floor,1948.28, 17-Jan-2017
1206,Revenue,CAHD,Alexandra Way,Furniture & Fittings Loose,George Grimes,1050.00, 05-Jan-2017
1207,Revenue,CAHD,Non Priority Bond Scheme,Other Supplies & Services,Individual,600.00, 12-Jan-2017
1208,Revenue,CAHD,Bed Purchasing - South,Permanent Residential,Gladstone House,5676.16, 17-Jan-2017
1209,Revenue,CAHD,Bed Purchasing - South,Permanent Residential,Glasallt Fawr,5056.12, 17-Jan-2017
1210,Revenue,CAHD,South Glos Users in South Glos Homes,Permanent Nursing,Glebe House Nursing Home,625.00, 17-Jan-2017
1211,Revenue,CAHD,South Glos Users in South Glos Homes,Permanent Nursing,Glebe House Nursing Home,625.00, 17-Jan-2017
1212,Revenue,CAHD,South Glos Users in South Glos Homes,Permanent Nursing,Glebe House Nursing Home,625.00, 17-Jan-2017
1213,Revenue,CAHD,South Glos Users in South Glos Homes,Permanent Nursing,Glebe House Nursing Home,625.00, 17-Jan-2017
1214,Revenue,CAHD,Bed Purchasing - North,Permanent Nursing,Glebe House Nursing Home,3113.76, 17-Jan-2017
1215,Revenue,CAHD,South Glos Users in South Glos Homes,Permanent Nursing,Glebe House Nursing Home,625.00, 17-Jan-2017
1216,Revenue,CAHD,South Glos Users in South Glos Homes,Permanent Nursing,Glebe House Nursing Home,625.00, 17-Jan-2017
1217,Revenue,CAHD,South Glos Users in South Glos Homes,Permanent Nursing,Glebe House Nursing Home,625.00, 17-Jan-2017
1218,Revenue,CAHD,Bed Purchasing - North,Permanent Residential,Glebe House Nursing Home,3030.88, 17-Jan-2017
1219,Revenue,CAHD,South Glos Users in South Glos Homes,Permanent Nursing,Glebe House Nursing Home,625.00, 17-Jan-2017
1220,Revenue,CAHD,South Glos Users in South Glos Homes,Permanent Nursing,Glebe House Nursing Home,625.00, 17-Jan-2017
1221,Revenue,CAHD,Bed Purchasing - North,Permanent Nursing,Glebe House Nursing Home,3004.32, 17-Jan-2017
1222,Revenue,CAHD,South Glos Users in South Glos Homes,Permanent Nursing,Glebe House Nursing Home,625.00, 17-Jan-2017
1223,Revenue,CAHD,South Glos Users in South Glos Homes,Permanent Nursing,Glebe House Nursing Home,625.00, 17-Jan-2017
1224,Revenue,CAHD,South Glos Users in South Glos Homes,Permanent Nursing,Glebe House Nursing Home,625.00, 17-Jan-2017
1225,Revenue,CAHD,South Glos Users in South Glos Homes,Permanent Nursing,Glebe House Nursing Home,625.00, 17-Jan-2017
1226,Revenue,CAHD,South Glos Users in South Glos Homes,Permanent Nursing,Glebe House Nursing Home,625.00, 17-Jan-2017
1227,Revenue,CAHD,South Glos Users in South Glos Homes,Permanent Nursing,Glebe House Nursing Home,625.00, 17-Jan-2017
1228,Revenue,CAHD,South Glos Users in South Glos Homes,Permanent Nursing,Glebe House Nursing Home,625.00, 17-Jan-2017
1229,Revenue,CAHD,Bed Purchasing - South,Permanent Residential,Glebe House Nursing Home,3300.00, 17-Jan-2017
1230,Revenue,CAHD,South Glos Users in South Glos Homes,Permanent Nursing,Glebe House Nursing Home,625.00, 17-Jan-2017
1231,Revenue,CAHD,Bed Purchasing - North,Permanent Nursing,Glebe House Nursing Home,2702.48, 17-Jan-2017
1232,Revenue,CAHD,South Glos Users in South Glos Homes,Permanent Nursing,Glebe House Nursing Home,625.00, 17-Jan-2017
1233,Revenue,CAHD,South Glos Users in South Glos Homes,Permanent Nursing,Glebe House Nursing Home,625.00, 17-Jan-2017
1234,Revenue,CAHD,Bed Purchasing - North,Permanent Nursing,Glebe House Nursing Home,3175.00, 17-Jan-2017
1235,Revenue,CAHD,South Glos Users in South Glos Homes,Permanent Nursing,Glebe House Nursing Home,625.00, 17-Jan-2017
1236,Revenue,CAHD,South Glos Users in South Glos Homes,Permanent Nursing,Glebe House Nursing Home,625.00, 17-Jan-2017
1237,Revenue,CAHD,South Glos Users in South Glos Homes,Permanent Nursing,Glebe House Nursing Home,625.00, 17-Jan-2017
1238,Revenue,CAHD,Sexual Health,Other Small Contracts,Gloucestershire Care Services NHST,1207.45, 13-Jan-2017
1239,Revenue,CAHD,Leadership and Business Support,Operational Staff Pay,Gloucestershire Hospitals NHSFT,3063.00, 17-Jan-2017
1240,Revenue,CAHD,Bed Purchasing - South,Permanent Residential,Goldcare House,2941.04, 17-Jan-2017
1241,Revenue,CAHD,Woodleaze,Prop.Serv. General Repairs,Goldstandard Contractors Limited,780.00, 18-Jan-2017
1242,Revenue,CAHD,Bed Purchasing - South,Permanent Residential,Gordena Care Home,2511.44, 17-Jan-2017
1243,Revenue,CAHD,Bed Purchasing - South,Permanent Residential,Gordena Care Home,3575.56, 17-Jan-2017
1244,Revenue,CAHD,Bed Purchasing - South,Permanent Residential,Gordena Care Home,2507.36, 17-Jan-2017
1245,Revenue,CAHD,Bed Purchasing - South,Permanent Residential,Gordena Care Home,4168.80, 17-Jan-2017
1246,Revenue,CAHD,Bed Purchasing - South,Permanent Residential,Gordena Care Home,3586.44, 17-Jan-2017
1247,Revenue,CAHD,Bed Purchasing - South,Permanent Residential,Gordena Care Limited,4686.28, 17-Jan-2017
1248,Revenue,CAHD,Bed Purchasing - South,Permanent Residential,Gordena Care Limited,4647.04, 17-Jan-2017
1249,Revenue,CAHD,Bed purchasing - S28A Under 65 - South,Permanent Residential,Gordena Care Limited,4557.68, 17-Jan-2017
1250,Revenue,CAHD,Bed Purchasing - North,Permanent Residential,Gordena Care Limited,4750.12, 17-Jan-2017
1251,Revenue,CAHD,CAHA - Complaints and FOI,Training Expenses,GovNet Communications,445.00, 19-Jan-2017
1252,Revenue,CAHD,Bed Purchasing - South,Permanent Nursing,Gracefields Nursing Home,2454.60, 17-Jan-2017
1253,Revenue,CAHD,South Glos Users in South Glos Homes,Permanent Nursing,Gracefields Nursing Home,625.00, 17-Jan-2017
1254,Revenue,CAHD,South Glos Users in South Glos Homes,Permanent Nursing,Gracefields Nursing Home,625.00, 17-Jan-2017
1255,Revenue,CAHD,Bed Purchasing - Southmead Hospital,Permanent Nursing,Gracefields Nursing Home,2414.28, 17-Jan-2017
1256,Revenue,CAHD,South Glos Users in South Glos Homes,Permanent Nursing,Gracefields Nursing Home,625.00, 17-Jan-2017
1257,Revenue,CAHD,South Glos Users in South Glos Homes,Permanent Nursing,Gracefields Nursing Home,625.00, 17-Jan-2017
1258,Revenue,CAHD,Bed purchasing - Elderly S117 - South,Permanent Nursing,Gracefields Nursing Home,2414.28, 17-Jan-2017
1259,Revenue,CAHD,South Glos Users in South Glos Homes,Permanent Nursing,Gracefields Nursing Home,625.00, 17-Jan-2017
1260,Revenue,CAHD,South Glos Users in South Glos Homes,Permanent Nursing,Gracefields Nursing Home,625.00, 17-Jan-2017
1261,Revenue,CAHD,Bed Purchasing - South,Permanent Nursing,Gracefields Nursing Home,3055.00, 17-Jan-2017
1262,Revenue,CAHD,South Glos Users in South Glos Homes,Permanent Nursing,Gracefields Nursing Home,625.00, 17-Jan-2017
1263,Revenue,CAHD,South Glos Users in South Glos Homes,Permanent Nursing,Gracefields Nursing Home,625.00, 17-Jan-2017
1264,Revenue,CAHD,South Glos Users in South Glos Homes,Permanent Nursing,Gracefields Nursing Home,625.00, 17-Jan-2017
1265,Revenue,CAHD,South Glos Users in South Glos Homes,Permanent Nursing,Gracefields Nursing Home,625.00, 17-Jan-2017
1266,Revenue,CAHD,South Glos Users in South Glos Homes,Permanent Nursing,Gracefields Nursing Home,625.00, 17-Jan-2017
1267,Revenue,CAHD,South Glos Users in South Glos Homes,Permanent Nursing,Gracefields Nursing Home,625.00, 17-Jan-2017
1268,Revenue,CAHD,South Glos Users in South Glos Homes,Permanent Nursing,Gracefields Nursing Home,625.00, 17-Jan-2017
1269,Revenue,CAHD,South Glos Users in South Glos Homes,Permanent Nursing,Gracefields Nursing Home,625.00, 17-Jan-2017
1270,Revenue,CAHD,South Glos Users in South Glos Homes,Permanent Nursing,Gracefields Nursing Home,625.00, 17-Jan-2017
1271,Revenue,CAHD,South Glos Users in South Glos Homes,Permanent Nursing,Gracefields Nursing Home,625.00, 17-Jan-2017
1272,Revenue,CAHD,South Glos Users in South Glos Homes,Permanent Nursing,Gracefields Nursing Home,625.00, 17-Jan-2017
1273,Revenue,CAHD,Bed Purchasing - Southmead Hospital,Permanent Nursing,Gracefields Nursing Home,2755.00, 17-Jan-2017
1274,Revenue,CAHD,Bed Purchasing - Southmead Hospital,Permanent Nursing,Gracefields Nursing Home,3055.00, 17-Jan-2017
1275,Revenue,CAHD,South Glos Users in South Glos Homes,Permanent Nursing,Gracefields Nursing Home,625.00, 17-Jan-2017
1276,Revenue,CAHD,South Glos Users in South Glos Homes,Permanent Nursing,Gracefields Nursing Home,625.00, 17-Jan-2017
1277,Revenue,CAHD,Bed Purchasing - South,Permanent Nursing,Gracefields Nursing Home,2932.00, 17-Jan-2017
1278,Revenue,CAHD,South Glos Users in South Glos Homes,Permanent Nursing,Gracefields Nursing Home,625.00, 17-Jan-2017
1279,Revenue,CAHD,South Glos Users in South Glos Homes,Permanent Nursing,Gracefields Nursing Home,625.00, 17-Jan-2017
1280,Revenue,CAHD,South Glos Users in South Glos Homes,Permanent Nursing,Gracefields Nursing Home,625.00, 17-Jan-2017
1281,Revenue,CAHD,South Glos Users in South Glos Homes,Permanent Nursing,Gracefields Nursing Home,625.00, 17-Jan-2017
1282,Revenue,CAHD,Bed Purchasing - South,Permanent Nursing,Gracefields Nursing Home,2414.28, 17-Jan-2017
1283,Revenue,CAHD,South Glos Users in South Glos Homes,Permanent Nursing,Gracefields Nursing Home,625.00, 17-Jan-2017
1284,Revenue,CAHD,South Glos Users in South Glos Homes,Permanent Nursing,Gracefields Nursing Home,625.00, 17-Jan-2017
1285,Revenue,CAHD,Bed Purchasing - South,Permanent Nursing,Gracefields Nursing Home,5967.43, 17-Jan-2017
1286,Revenue,CAHD,Bed Purchasing - South,Permanent Nursing,Gracefields Nursing Home,2832.00, 17-Jan-2017
1287,Revenue,CAHD,South Glos Users in South Glos Homes,Permanent Nursing,Gracefields Nursing Home,625.00, 17-Jan-2017
1288,Revenue,CAHD,Bed Purchasing - Southmead Hospital,Permanent Nursing,Gracefields Nursing Home,2836.79, 17-Jan-2017
1289,Revenue,CAHD,South Glos Users in South Glos Homes,Permanent Nursing,Gracefields Nursing Home,625.00, 17-Jan-2017
1290,Revenue,CAHD,Bed Purchasing - Southmead Hospital,Permanent Nursing,Gracefields Nursing Home,2775.00, 17-Jan-2017
1291,Revenue,CAHD,Bed Purchasing - Southmead Hospital,Permanent Nursing,Gracefields Nursing Home,2414.28, 17-Jan-2017
1292,Revenue,CAHD,South Glos Users in South Glos Homes,Permanent Nursing,Gracefields Nursing Home,625.00, 17-Jan-2017
1293,Revenue,CAHD,Bed Purchasing - Southmead Hospital,Permanent Residential,Granada House Residential Home,1831.32, 17-Jan-2017
1294,Revenue,CAHD,CSC - Residential Placements,Permanent Residential,Greenfields Adolecent Development Limited,18321.43, 13-Jan-2017
1295,Revenue,CAHD,Bed Purchasing - North,Permanent Residential,Greensleeves,2010.60, 17-Jan-2017
1296,Revenue,CAHD,Community Support - North,Preventative Assistance,Grove Care,540.00, 06-Jan-2017
1297,Revenue,CAHD,Bed Purchasing - South,Permanent Residential,Grove Care,2663.84, 17-Jan-2017
1298,Revenue,CAHD,Bed Purchasing - South,Permanent Residential,Gwendoline House,2209.64, 17-Jan-2017
1299,Revenue,CAHD,Bed Purchasing - Southmead Hospital,Permanent Residential,Gwendoline House,2205.60, 17-Jan-2017
1300,Revenue,CAHD,Bed Purchasing - South,Permanent Residential,Gwendoline House,2209.64, 17-Jan-2017
1301,Revenue,CAHD,Bed Purchasing - South,Permanent Residential,Gwendoline House,1959.68, 17-Jan-2017
1302,Revenue,CAHD,Bed Purchasing - Southmead Hospital,Permanent Residential,Gwendoline House,2008.00, 17-Jan-2017
1303,Revenue,CAHD,Social Lettings Agency,Fees - General,Individual,16.46, 27-Jan-2017
1304,Revenue,CAHD,Social Lettings Agency,Other Supplies & Services,Individual,559.60, 27-Jan-2017
1305,Revenue,CAHD,CSC - Through & Leaving Care Team,Agency Staff (Admin/Support Staff) Pay,Hampton`s Resourcing,783.00, 31-Jan-2017
1306,Revenue,CAHD,CSC - Through & Leaving Care Team,Agency Staff (Admin/Support Staff) Pay,Hampton`s Resourcing,1998.00, 03-Jan-2017
1307,Revenue,CAHD,CSC - Through & Leaving Care Team,Agency Staff (Admin/Support Staff) Pay,Hampton`s Resourcing,1998.00, 10-Jan-2017
1308,Revenue,CAHD,CSC - Through & Leaving Care Team,Agency Staff (Admin/Support Staff) Pay,Hampton`s Resourcing,1998.00, 17-Jan-2017
1309,Revenue,CAHD,CSC - Through & Leaving Care Team,Agency Staff (Admin/Support Staff) Pay,Hampton`s Resourcing,1593.00, 24-Jan-2017
1310,Revenue,CAHD,Breakthrough and Inclusion Work,Project Funding,Hands Free Computing Ltd,566.95, 20-Jan-2017
1311,Revenue,CAHD,Special Needs - Special Schools HTST,Client Transport,Hannah Malpass,841.50, 23-Jan-2017
1312,Revenue,CAHD,Bed Purchasing - South,Permanent Residential,Harefield Hall,2663.84, 17-Jan-2017
1313,Revenue,CAHD,Bed Purchasing - South,Permanent Residential,Harefield Hall,2351.36, 17-Jan-2017
1314,Revenue,CAHD,Bed Purchasing - South,Permanent Residential,Harefield Hall,2635.36, 17-Jan-2017
1315,Revenue,CAHD,Bed Purchasing - South,Permanent Residential,Harefield Hall,2224.04, 17-Jan-2017
1316,Revenue,CAHD,Bed Purchasing - South,Permanent Residential,Harefield Hall,2412.12, 17-Jan-2017
1317,Revenue,CAHD,Bed Purchasing - South,Permanent Residential,Harefield Hall,2561.36, 17-Jan-2017
1318,Revenue,CAHD,CSC - Age Related Allowances,Children - Family Support,Hazel Lomas,540.00, 06-Jan-2017
1319,Revenue,CAHD,CSC - Professional Fees Foster Carers,Children - Family Support,Hazel Lomas,512.57, 06-Jan-2017
1320,Revenue,CAHD,Bed Purchasing - Southmead Hospital,Permanent Nursing,Hazelwood Gardens Nursing Home,2217.04, 17-Jan-2017
1321,Revenue,CAHD,Bed Purchasing - Southmead Hospital,Permanent Nursing,Hc-One Ltd,2182.88, 17-Jan-2017
1322,Revenue,CAHD,Bed Purchasing - Southmead Hospital,Permanent Nursing,Hc-One Ltd,2107.84, 17-Jan-2017
1323,Revenue,CAHD,Bed Purchasing - North,Permanent Nursing,Hc-One Ltd,2103.28, 17-Jan-2017
1324,Revenue,CAHD,Bed Purchasing - North,Permanent Nursing,Hc-One Ltd,1953.05, 17-Jan-2017
1325,Revenue,CAHD,Bed Purchasing - North,Permanent Nursing,Hc-One Ltd,2089.20, 17-Jan-2017
1326,Revenue,CAHD,Bed Purchasing - Southmead Hospital,Permanent Nursing,Hc-One Ltd,5558.67, 17-Jan-2017
1327,Revenue,CAHD,Bed Purchasing - Southmead Hospital,Permanent Nursing,Hc-One Ltd,2103.28, 17-Jan-2017
1328,Revenue,CAHD,Bed Purchasing - South,Permanent Residential,Hc-One Ltd,2112.00, 17-Jan-2017
1329,Revenue,CAHD,Bed Purchasing - Southmead Hospital,Permanent Nursing,Hc-One Ltd,2728.28, 17-Jan-2017
1330,Revenue,CAHD,Bed Purchasing - Southmead Hospital,Permanent Nursing,Hc-One Ltd,2105.76, 17-Jan-2017
1331,Revenue,CAHD,Bed Purchasing - Southmead Hospital,Permanent Nursing,Hc-One Ltd,2728.28, 17-Jan-2017
1332,Revenue,CAHD,Bed Purchasing - Southmead Hospital,Permanent Nursing,Hc-One Ltd,2527.92, 17-Jan-2017
1333,Revenue,CAHD,Bed Purchasing - Southmead Hospital,Permanent Residential,Head Office,2229.92, 17-Jan-2017
1334,Revenue,CAHD,Home Care - Elderly - South,Day Care / Social Activities,Headway Bristol,1002.04, 09-Jan-2017
1335,Revenue,CAHD,Home Care - Elderly - South,Other Small Contracts,Headway Bristol,426.40, 09-Jan-2017
1336,Revenue,CAHD,Home Care - Elderly - North,Day Care / Social Activities,Headway Bristol,788.84, 09-Jan-2017
1337,Revenue,CAHD,Home Care - Elderly - North,Other Small Contracts,Headway Bristol,186.55, 09-Jan-2017
1338,Revenue,CAHD,Home Care - Elderly - South,Day Care / Social Activities,Headway Bristol,762.19, 17-Jan-2017
1339,Revenue,CAHD,Home Care - Elderly - South,Other Small Contracts,Headway Bristol,341.12, 17-Jan-2017
1340,Revenue,CAHD,Home Care - Elderly - North,Day Care / Social Activities,Headway Bristol,703.56, 17-Jan-2017
1341,Revenue,CAHD,Home Care - Elderly - North,Other Small Contracts,Headway Bristol,186.55, 17-Jan-2017
1342,Revenue,CAHD,Home Care - Elderly - South,Day Care / Social Activities,Headway Bristol,714.22, 31-Jan-2017
1343,Revenue,CAHD,Home Care - Elderly - South,Other Small Contracts,Headway Bristol,341.12, 31-Jan-2017
1344,Revenue,CAHD,Home Care - Elderly - North,Day Care / Social Activities,Headway Bristol,575.64, 31-Jan-2017
1345,Revenue,CAHD,Home Care - Elderly - North,Other Small Contracts,Headway Bristol,186.55, 31-Jan-2017
1346,Revenue,CAHD,Home Care - Elderly - South,Other Small Contracts,Helping Hands Homecare,1250.86, 06-Jan-2017
1347,Revenue,CAHD,Home Care - Elderly - North,Day Care / Social Activities,Helping Hands Homecare,229.84, 06-Jan-2017
1348,Revenue,CAHD,Home Care - Elderly - North,Other Small Contracts,Helping Hands Homecare,2666.60, 06-Jan-2017
1349,Revenue,CAHD,Home Care - Elderly - South,Other Small Contracts,Helping Hands Homecare,1268.54, 13-Jan-2017
1350,Revenue,CAHD,Home Care - Elderly - North,Day Care / Social Activities,Helping Hands Homecare,229.84, 13-Jan-2017
1351,Revenue,CAHD,Home Care - Elderly - North,Other Small Contracts,Helping Hands Homecare,2684.28, 13-Jan-2017
1352,Revenue,CAHD,Home Care - Elderly - South,Other Small Contracts,Helping Hands Homecare,1326.00, 27-Jan-2017
1353,Revenue,CAHD,Home Care - Elderly - North,Day Care / Social Activities,Helping Hands Homecare,221.00, 27-Jan-2017
1354,Revenue,CAHD,Home Care - Elderly - North,Other Small Contracts,Helping Hands Homecare,2420.52, 27-Jan-2017
1355,Revenue,CAHD,Home Care - Elderly - South,Other Small Contracts,Helping Hands Homecare,1043.12, 27-Jan-2017
1356,Revenue,CAHD,Home Care - Elderly - North,Day Care / Social Activities,Helping Hands Homecare,123.76, 27-Jan-2017
1357,Revenue,CAHD,Home Care - Elderly - North,Other Small Contracts,Helping Hands Homecare,2217.50, 27-Jan-2017
1358,Revenue,CAHD,Placements OLA Special Schools and RB,Other L.A.'s - General,Henbury Court Primary Academy,833.33, 30-Jan-2017
1359,Revenue,CAHD,CSC - LAT Placements,Preventative Assistance,Henrietta Coker,1000.00, 26-Jan-2017
1360,Revenue,CAHD,CSC - LAT Placements,Preventative Assistance,Henrietta Coker,1000.00, 26-Jan-2017
1361,Revenue,CAHD,S117 Placements PCT,Permanent Residential,Hesley Hall,18656.52, 17-Jan-2017
1362,Revenue,CAHD,Bed Purchasing - North,Fees & Charges Income - General,High Border Lodge,2822.86, 17-Jan-2017
1363,Revenue,CAHD,Bed Purchasing - North,Permanent Residential,High Border Lodge,1976.00, 17-Jan-2017
1364,Revenue,CAHD,Bed Purchasing - North,Permanent Residential,High Border Lodge,4163.71, 17-Jan-2017
1365,Revenue,CAHD,Bed Purchasing - Southmead Hospital,Permanent Residential,Highfield House,2121.00, 17-Jan-2017
1366,Revenue,CAHD,Bed Purchasing - Southmead Hospital,Permanent Residential,Highgate Studios,2348.16, 17-Jan-2017
1367,Revenue,CAHD,CSC - Care Leavers Support Costs,Other Supplies & Services,Holiday Inn,1265.00, 06-Jan-2017
1368,Revenue,CAHD,CSC - Care Leavers Support Costs,Other Supplies & Services,Holiday Inn,1265.00, 06-Jan-2017
1369,Revenue,CAHD,CSC - Care Leavers Support Costs,Other Supplies & Services,Holiday Inn,1094.17, 19-Jan-2017
1370,Revenue,CAHD,CSC - Care Leavers Support Costs,Other Supplies & Services,Holiday Inn,1094.17, 19-Jan-2017
1371,Revenue,CAHD,CSC - Adoption West Project,Conference Expenses,Holiday Inn,585.00, 04-Jan-2017
1372,Revenue,CAHD,Bed Purchasing - North,Permanent Residential,Holmleigh Care Homes Ltd,4520.36, 17-Jan-2017
1373,Revenue,CAHD,Bed Purchasing - South,Permanent Residential,Holmleigh Care Homes Ltd,4318.00, 17-Jan-2017
1374,Revenue,CAHD,Jointly Funded H&SC Packages,Permanent Residential,Holmleigh Care Homes Ltd,1237.08, 17-Jan-2017
1375,Revenue,CAHD,Bed Purchasing - North,Permanent Residential,Home Farm Trust Ltd  5-6 Brook Office Pa,3273.68, 17-Jan-2017
1376,Revenue,CAHD,Bed Purchasing - North,Permanent Residential,Home Farm Trust Ltd  5-6 Brook Office Pa,3802.88, 17-Jan-2017
1377,Revenue,CAHD,18-25 Year Olds,Permanent Residential,Home From Home Care Ltd,9615.76, 17-Jan-2017
1378,Revenue,CAHD,Home Care - Elderly - South,Other Small Contracts,Homecare 4U,362.44, 18-Jan-2017
1379,Revenue,CAHD,Home Care - Elderly - North,Other Small Contracts,Homecare 4U,959.14, 18-Jan-2017
1380,Revenue,CAHD,Home Care - Elderly - South,Other Small Contracts,Homecare 4U,322.66, 18-Jan-2017
1381,Revenue,CAHD,Home Care - Elderly - North,Other Small Contracts,Homecare 4U,945.88, 18-Jan-2017
1382,Revenue,CAHD,Home Care - Elderly - South,Other Small Contracts,Homecare 4U,172.38, 18-Jan-2017
1383,Revenue,CAHD,Home Care - Elderly - North,Other Small Contracts,Homecare 4U,919.36, 18-Jan-2017
1384,Revenue,CAHD,Home Care - Elderly - South,Other Small Contracts,Homecare 4U,181.22, 31-Jan-2017
1385,Revenue,CAHD,Home Care - Elderly - North,Other Small Contracts,Homecare 4U,755.82, 31-Jan-2017
1386,Revenue,CAHD,Bed Purchasing - North,Permanent Residential,Homes Caring For Autism Ltd  Churchill H,8071.00, 17-Jan-2017
1387,Revenue,CAHD,Jointly Funded H&SC Packages,Permanent Residential,Homes Caring For Autism Ltd  Churchill H,2438.64, 17-Jan-2017
1388,Revenue,CAHD,18-25 Year Olds,Permanent Residential,Homes Caring For Autism Ltd  Churchill H,5691.32, 17-Jan-2017
1389,Revenue,CAHD,Jointly Funded H&SC Packages,Permanent Residential,Homes Caring For Autism Ltd  Churchill H,7936.08, 17-Jan-2017
1390,Revenue,CAHD,Bed Purchasing - Southmead Hospital,Permanent Nursing,Horfield Care Limited,1493.76, 06-Jan-2017
1391,Revenue,CAHD,Bed Purchasing - Southmead Hospital,Permanent Nursing,Horfield Care Limited,1877.05, 06-Jan-2017
1392,Revenue,CAHD,Bed Purchasing - Southmead Hospital,Permanent Nursing,Horfield Care Limited,1381.58, 06-Jan-2017
1393,Revenue,CAHD,Bed Purchasing - South,Permanent Nursing,Horfield Care Limited,1379.37, 06-Jan-2017
1394,Revenue,CAHD,Bed Purchasing - South,Respite Emergency - Nursing,Horfield Care Limited,1401.02, 06-Jan-2017
1395,Revenue,CAHD,Home Care - Elderly - North,Day Care / Social Activities,Housing & Care 21,1237.60, 27-Jan-2017
1396,Revenue,CAHD,Home Care - Elderly - North,Private & Voluntary Home Care,Housing 21,40371.16, 10-Jan-2017
1397,Revenue,CAHD,CSC - Corporate Parenting,Computer Services,IAP UK Limited,3864.75, 31-Jan-2017
1398,Revenue,CAHD,CSC - Vinney Green Secure Unit,Premises Maintenance by Contractor,Integral UK Limited,3221.32, 18-Jan-2017
1399,Revenue,CAHD,CSC - Adoption Support Fund,Post Adoption,Intramosaic Counselling and Psychotherapy Limited,2017.75, 27-Jan-2017
1400,Revenue,CAHD,Social Lettings Agency,Fees - General,Individual,12.22, 11-Jan-2017
1401,Revenue,CAHD,Social Lettings Agency,Other Supplies & Services,Individual,690.32, 11-Jan-2017
1402,Revenue,CAHD,Bed Purchasing - South,Permanent Residential,Jonen House,4026.92, 17-Jan-2017
1403,Revenue,CAHD,CSC - Care Leavers Independent Living,Adults - Family Support,Jordan Xavier Ltd,3261.43, 30-Jan-2017
1404,Revenue,CAHD,Virtual School for Looked After Children,Consultants Fees,Judith Mee Education,800.00, 16-Jan-2017
1405,Revenue,CAHD,Virtual School for Looked After Children,Consultants Fees,Judith Mee Education,800.00, 17-Jan-2017
1406,Revenue,CAHD,Home Care - Elderly - South,Supported Living,Julia Simone- Supp. Ind.,1194.40, 17-Jan-2017
1407,Revenue,CAHD,Younger MH non-res purchasing,Supported Living,Julia Simone- Supp. Ind.,1194.40, 17-Jan-2017
1408,Revenue,CAHD,Younger MH non-res purchasing,Supported Living,Julia Simone- Supp. Ind.,1194.40, 17-Jan-2017
1409,Revenue,CAHD,Home Care - Elderly - North,Supported Living,Julia Simone- Supp. Ind.,1228.80, 17-Jan-2017
1410,Revenue,CAHD,Younger MH non-res purchasing,Supported Living,Julia Simone- Supp. Ind.,1194.24, 17-Jan-2017
1411,Revenue,CAHD,Younger MH non-res purchasing,Supported Living,Julia Simone- Supp. Ind.,1194.36, 17-Jan-2017
1412,Revenue,CAHD,Bed Purchasing - South,Permanent Residential,Julia Simone- Supp. Ind.,4417.88, 17-Jan-2017
1413,Revenue,CAHD,Bed purchasing -S28A  Under 65 - North,Permanent Residential,Julia Simone- Supp. Ind.,3936.88, 17-Jan-2017
1414,Revenue,CAHD,Statemented Support Payments to OLAs,Other L.A.'s - General,Katharine Lady Berkeley School,533.30, 30-Jan-2017
1415,Revenue,CAHD,Community Support - North,Preventative Assistance,KCC Cleaning Services Limited,967.11, 06-Jan-2017
1416,Revenue,CAHD,Community Support - North,Preventative Assistance,KCC Cleaning Services Limited,2100.00, 19-Jan-2017
1417,Revenue,CAHD,CSC - Section 17 - ART,Complaints External Expenses,Keith Smith,1780.67, 27-Jan-2017
1418,Revenue,CAHD,Home Care - Elderly - South,Other Small Contracts,Kensington Community Care,3010.02, 09-Jan-2017
1419,Revenue,CAHD,Home Care - Elderly - North,Other Small Contracts,Kensington Community Care,5533.84, 09-Jan-2017
1420,Revenue,CAHD,Home Care - Elderly - South,Other Small Contracts,Kensington Community Care,2961.40, 09-Jan-2017
1421,Revenue,CAHD,Home Care - Elderly - North,Other Small Contracts,Kensington Community Care,5604.56, 09-Jan-2017
1422,Revenue,CAHD,Home Care - Elderly - South,Other Small Contracts,Kensington Community Care,2912.78, 31-Jan-2017
1423,Revenue,CAHD,Home Care - Elderly - North,Other Small Contracts,Kensington Community Care,5520.58, 31-Jan-2017
1424,Revenue,CAHD,Home Care - Elderly - South,Other Small Contracts,Kensington Community Care,2983.50, 24-Jan-2017
1425,Revenue,CAHD,Home Care - Elderly - North,Other Small Contracts,Kensington Community Care,5631.08, 24-Jan-2017
1426,Revenue,CAHD,Home Care - Elderly - South,Other Small Contracts,Kensington Community Care,2943.72, 31-Jan-2017
1427,Revenue,CAHD,Home Care - Elderly - North,Other Small Contracts,Kensington Community Care,5657.60, 31-Jan-2017
1428,Revenue,CAHD,Home Care - Elderly - South,Other Small Contracts,Kensington Community Care,2912.78, 30-Jan-2017
1429,Revenue,CAHD,Home Care - Elderly - North,Other Small Contracts,Kensington Community Care,5816.72, 30-Jan-2017
1430,Revenue,CAHD,Bed Purchasing - Southmead Hospital,Permanent Residential,Kenver House Residential Home,2220.08, 17-Jan-2017
1431,Revenue,CAHD,Bed Purchasing - Southmead Hospital,Permanent Residential,Kenver House Residential Home,2220.08, 17-Jan-2017
1432,Revenue,CAHD,Bed Purchasing - Southmead Hospital,Permanent Residential,Kenver House Residential Home,2431.48, 17-Jan-2017
1433,Revenue,CAHD,Bed Purchasing - South,Permanent Residential,Kenver House Residential Home,2223.12, 17-Jan-2017
1434,Revenue,CAHD,Bed Purchasing - South,Permanent Residential,Kenver House Residential Home,2220.08, 17-Jan-2017
1435,Revenue,CAHD,Bed Purchasing - North,Permanent Residential,Kenver House Residential Home,2220.08, 17-Jan-2017
1436,Revenue,CAHD,Bed Purchasing - Southmead Hospital,Respite Planned - Residential,Kenver House Residential Home,1736.77, 17-Jan-2017
1437,Revenue,CAHD,Bed Purchasing - Southmead Hospital,Respite Planned - Residential,Kenver House Residential Home,1215.74, 17-Jan-2017
1438,Revenue,CAHD,Bed Purchasing - Southmead Hospital,Permanent Residential,Kenver House Residential Home,2286.28, 17-Jan-2017
1439,Revenue,CAHD,Bed Purchasing - South,Permanent Residential,Kenver House Residential Home,2431.48, 17-Jan-2017
1440,Revenue,CAHD,Bed Purchasing - South,Permanent Residential,Kenver House Residential Home,2431.48, 17-Jan-2017
1441,Revenue,CAHD,Bed Purchasing - South,Respite Emergency - Residential,Kenver House Residential Home,1215.74, 17-Jan-2017
1442,Revenue,CAHD,Bed Purchasing - South,Permanent Residential,Kenver House Residential Home,2431.48, 17-Jan-2017
1443,Revenue,CAHD,Bed Purchasing - South,Permanent Residential,Kenver House Residential Home,2431.48, 17-Jan-2017
1444,Revenue,CAHD,Bed Purchasing - South,Permanent Residential,Kenver House Residential Home,2431.48, 17-Jan-2017
1445,Revenue,CAHD,Bed Purchasing - Southmead Hospital,Permanent Residential,Kenver House Residential Home,2220.00, 17-Jan-2017
1446,Revenue,CAHD,Bed Purchasing - South,Permanent Residential,Kenver House Residential Home,2220.08, 17-Jan-2017
1447,Revenue,CAHD,CSC - Care Leavers Independent Living,Adults - Family Support,Key2 Futures Limited,947.05, 11-Jan-2017
1448,Revenue,CAHD,CSC - Care Leavers Independent Living,Adults - Family Support,Key2 Futures Limited,1722.78, 11-Jan-2017
1449,Revenue,CAHD,CSC - Care Leavers Independent Living,Adults - Family Support,Key2 Futures Limited,4888.08, 11-Jan-2017
1450,Revenue,CAHD,CSC - Care Leavers Independent Living,Adults - Family Support,Key2 Futures Limited,2655.43, 11-Jan-2017
1451,Revenue,CAHD,CSC - Care Leavers Independent Living,Adults - Family Support,Key2 Futures Limited,940.80, 11-Jan-2017
1452,Revenue,CAHD,CSC - Care Leavers Independent Living,Adults - Family Support,Key2 Futures Limited,916.50, 12-Jan-2017
1453,Revenue,CAHD,CSC - Care Leavers Independent Living,Adults - Family Support,Key2 Futures Limited,4730.40, 12-Jan-2017
1454,Revenue,CAHD,CSC - Care Leavers Independent Living,Adults - Family Support,Key2 Futures Limited,2871.30, 12-Jan-2017
1455,Revenue,CAHD,CSC - Care Leavers Independent Living,Adults - Family Support,Key2 Futures Limited,2009.91, 12-Jan-2017
1456,Revenue,CAHD,CSC - Care Leavers Independent Living,Adults - Family Support,Key2 Futures Limited,669.97, 12-Jan-2017
1457,Revenue,CAHD,CSC - Care Leavers Independent Living,Adults - Family Support,Key2 Futures Limited,2871.30, 12-Jan-2017
1458,Revenue,CAHD,Learning Difficulties Development Fund,Other Supplies & Services,Kids,4439.25, 24-Jan-2017
1459,Revenue,CAHD,Bed Purchasing - North,Permanent Residential,Kilkhampton Lodge,17500.00, 17-Jan-2017
1460,Revenue,CAHD,Bed Purchasing - North,Permanent Nursing,Kingfisher Lodge Care Centre,3286.36, 17-Jan-2017
1461,Revenue,CAHD,NHS Health Checks & Tobacco Control,Drugs & Medical Supplies,Kingswood Health Centre,975.00, 09-Jan-2017
1462,Revenue,CAHD,DAT Treatment,Agency Staff (Admin/Support Staff) Pay,Kingswood Health Centre,500.00, 09-Jan-2017
1463,Revenue,CAHD,CSC - Adoption Support Fund,Post Adoption,Kirstie Adamson,665.00, 09-Jan-2017
1464,Revenue,CAHD,CSC - Adoption West Project,Consultants Fees,Kirsty Howie,3200.00, 17-Jan-2017
1465,Revenue,CAHD,Bed Purchasing - North,Permanent Residential,Kisimul Group,12079.48, 17-Jan-2017
1466,Revenue,CAHD,Placements OLA Special Schools and RB,Other L.A.'s - General,Knowle DGE,2198.33, 30-Jan-2017
1467,Revenue,CAHD,Placements OLA Special Schools and RB,Other L.A.'s - General,Knowle DGE,948.33, 30-Jan-2017
1468,Revenue,CAHD,Placements OLA Special Schools and RB,Other L.A.'s - General,Knowle DGE,948.33, 30-Jan-2017
1469,Revenue,CAHD,Placements OLA Special Schools and RB,Other L.A.'s - General,Knowle DGE,1489.19, 30-Jan-2017
1470,Revenue,CAHD,Placements OLA Special Schools and RB,Other L.A.'s - General,Knowle DGE,948.33, 30-Jan-2017
1471,Revenue,CAHD,Home Care - Elderly - South,Other Small Contracts,Kumari Care Limited,1504.63, 18-Jan-2017
1472,Revenue,CAHD,Home Care - Elderly - North,Other Small Contracts,Kumari Care Limited,847.31, 18-Jan-2017
1473,Revenue,CAHD,Home Care - Elderly - South,Other Small Contracts,Kumari Care Limited,1643.72, 18-Jan-2017
1474,Revenue,CAHD,Home Care - Elderly - North,Other Small Contracts,Kumari Care Limited,847.31, 18-Jan-2017
1475,Revenue,CAHD,Home Care - Elderly - South,Other Small Contracts,Kumari Care Limited,1713.48, 20-Jan-2017
1476,Revenue,CAHD,Home Care - Elderly - North,Other Small Contracts,Kumari Care Limited,847.31, 20-Jan-2017
1477,Revenue,CAHD,Home Care - Elderly - South,Other Small Contracts,Kumari Care Limited,1709.12, 18-Jan-2017
1478,Revenue,CAHD,Home Care - Elderly - North,Other Small Contracts,Kumari Care Limited,847.31, 18-Jan-2017
1479,Revenue,CAHD,Home Care - Elderly - South,Other Small Contracts,Kumari Care Limited,1652.44, 24-Jan-2017
1480,Revenue,CAHD,Home Care - Elderly - North,Other Small Contracts,Kumari Care Limited,554.79, 24-Jan-2017
1481,Revenue,CAHD,Home Care - Elderly - South,Other Small Contracts,Kumari Care Limited,1526.00, 25-Jan-2017
1482,Revenue,CAHD,Home Care - Elderly - North,Other Small Contracts,Kumari Care Limited,645.57, 25-Jan-2017
1483,Revenue,CAHD,Home Care - Elderly - South,Other Small Contracts,Kumari Care Limited,1709.12, 25-Jan-2017
1484,Revenue,CAHD,Home Care - Elderly - North,Other Small Contracts,Kumari Care Limited,847.31, 25-Jan-2017
1485,Revenue,CAHD,Home Care - Elderly - South,Other Small Contracts,Kumari Care Limited,1151.04, 31-Jan-2017
1486,Revenue,CAHD,Home Care - Elderly - North,Other Small Contracts,Kumari Care Limited,847.31, 31-Jan-2017
1487,Revenue,CAHD,Home Care - Elderly - South,Other Small Contracts,Kumari Care Limited,1617.56, 31-Jan-2017
1488,Revenue,CAHD,Home Care - Elderly - North,Other Small Contracts,Kumari Care Limited,847.31, 31-Jan-2017
1489,Revenue,CAHD,Learning Difficulties Development Fund,Other Supplies & Services,L D Awareness,1360.00, 24-Jan-2017
1490,Revenue,CAHD,Bed Purchasing - North,Permanent Nursing,Larchfield Care Home,3029.00, 17-Jan-2017
1491,Revenue,CAHD,Home Care - Elderly - North,Day Care / Social Activities,Lawrence Weston Community Farm,840.00, 17-Jan-2017
1492,Revenue,CAHD,Bed Purchasing - North,Permanent Residential,Leonard Cheshire  National Account Centr,3414.72, 17-Jan-2017
1493,Revenue,CAHD,Bed Purchasing - South,Permanent Residential,Leonard Cheshire  National Account Centr,3776.36, 17-Jan-2017
1494,Revenue,CAHD,Bed Purchasing - North,Permanent Nursing,Leonard Cheshire  National Account Centr,3963.80, 17-Jan-2017
1495,Revenue,CAHD,Bed Purchasing - North,Permanent Nursing,Leonard Cheshire  National Account Centr,3263.68, 17-Jan-2017
1496,Revenue,CAHD,18-25 Year Olds,Permanent Residential,Leonard Cheshire  National Account Centr,3709.52, 17-Jan-2017
1497,Revenue,CAHD,Bed Purchasing - North,Permanent Residential,Leonard Cheshire  National Account Centr,6433.00, 17-Jan-2017
1498,Revenue,CAHD,Bed Purchasing - North,Respite Planned - Nursing,Leonard Cheshire  National Account Centr,33292.67, 17-Jan-2017
1499,Revenue,CAHD,Jointly Funded H&SC Packages,Respite Planned - Nursing,Leonard Cheshire  National Account Centr,2277.57, 17-Jan-2017
1500,Revenue,CAHD,Bed Purchasing - North,Respite Planned - Nursing,Leonard Cheshire  National Account Centr,4730.11, 17-Jan-2017
1501,Revenue,CAHD,Bed Purchasing - North,Permanent Nursing,Leonard Cheshire  National Account Centr,4912.03, 17-Jan-2017
1502,Revenue,CAHD,Bed Purchasing - North,Permanent Nursing,Leonard Cheshire  National Account Centr,3303.68, 17-Jan-2017
1503,Revenue,CAHD,Bed Purchasing - North,Permanent Nursing,Leonard Cheshire  National Account Centr,5435.88, 17-Jan-2017
1504,Revenue,CAHD,Bed Purchasing - North,Permanent Residential,Leonard Cheshire  National Account Centr,3356.88, 17-Jan-2017
1505,Revenue,CAHD,Bed Purchasing - North,Permanent Nursing,Leonard Cheshire  National Account Centr,3206.68, 17-Jan-2017
1506,Revenue,CAHD,Bed Purchasing - North,Permanent Nursing,Leonard Cheshire  National Account Centr,5740.64, 17-Jan-2017
1507,Revenue,CAHD,Bed Purchasing - South,Permanent Nursing,Leonard Cheshire  National Account Centr,3386.96, 17-Jan-2017
1508,Revenue,CAHD,Bed Purchasing - Southmead Hospital,Permanent Nursing,Leonard Cheshire  National Account Centr,3468.24, 17-Jan-2017
1509,Revenue,CAHD,South Glos Users in all other LA Homes,Permanent Nursing,Leonard Cheshire  National Account Centr,860.16, 17-Jan-2017
1510,Revenue,CAHD,Bed Purchasing - North,Permanent Nursing,Leonard Cheshire  National Account Centr,3796.60, 17-Jan-2017
1511,Revenue,CAHD,Bed Purchasing - North,Permanent Nursing,Leonard Cheshire  National Account Centr,4555.68, 17-Jan-2017
1512,Revenue,CAHD,CSC - LAT Placements,Personal Needs of Clients,Lextox,475.00, 04-Jan-2017
1513,Revenue,CAHD,CSC - LAT Placements,Other Supplies & Services,Lextox,474.00, 06-Jan-2017
1514,Revenue,CAHD,Bed Purchasing - Southmead Hospital,Permanent Residential,Little Croft,1831.32, 17-Jan-2017
1515,Revenue,CAHD,Bed Purchasing - Southmead Hospital,Permanent Residential,Little Croft,1831.32, 17-Jan-2017
1516,Revenue,CAHD,Bed Purchasing - North,Permanent Residential,Little Croft,1831.32, 17-Jan-2017
1517,Revenue,CAHD,Bed Purchasing - South,Permanent Residential,Little Croft,2027.20, 17-Jan-2017
1518,Revenue,CAHD,Bed Purchasing - Southmead Hospital,Permanent Residential,Little Croft,1831.32, 17-Jan-2017
1519,Revenue,CAHD,Bed Purchasing - North,Permanent Residential,Little Croft,1831.32, 17-Jan-2017
1520,Revenue,CAHD,Bed Purchasing - Southmead Hospital,Permanent Residential,Little Croft,2229.92, 17-Jan-2017
1521,Revenue,CAHD,Bed Purchasing - Southmead Hospital,Permanent Residential,Little Croft,867.86, 17-Jan-2017
1522,Revenue,CAHD,Bed Purchasing - South,Permanent Residential,Little Croft,2300.00, 17-Jan-2017
1523,Revenue,CAHD,Bed Purchasing - Southmead Hospital,Permanent Residential,Little Croft,2700.00, 17-Jan-2017
1524,Revenue,CAHD,Bed Purchasing - Southmead Hospital,Fees & Charges Income - General,Little Croft,1157.63, 17-Jan-2017
1525,Revenue,CAHD,Bed Purchasing - South,Permanent Residential,Little Croft,1831.32, 17-Jan-2017
1526,Revenue,CAHD,Bed Purchasing - Southmead Hospital,Permanent Residential,Little Croft,2304.52, 17-Jan-2017
1527,Revenue,CAHD,Bed Purchasing - Southmead Hospital,Permanent Residential,Little Croft,1813.52, 17-Jan-2017
1528,Revenue,CAHD,Bed Purchasing - Southmead Hospital,Permanent Residential,Little Croft,1989.28, 17-Jan-2017
1529,Revenue,CAHD,Bed Purchasing - Southmead Hospital,Permanent Residential,Little Croft,2500.00, 17-Jan-2017
1530,Revenue,CAHD,Bed Purchasing - Southmead Hospital,Permanent Residential,Little Croft,1831.32, 17-Jan-2017
1531,Revenue,CAHD,Bed Purchasing - South,Permanent Residential,Little Croft,2300.00, 17-Jan-2017
1532,Revenue,CAHD,Bed Purchasing - Southmead Hospital,Permanent Residential,Little Croft,2200.00, 17-Jan-2017
1533,Revenue,CAHD,Bed Purchasing - Southmead Hospital,Permanent Residential,Little Croft,2700.00, 17-Jan-2017
1534,Revenue,CAHD,Bed Purchasing - North,Fees & Charges Income - General,Little Croft,509.86, 17-Jan-2017
1535,Revenue,CAHD,Bed Purchasing - Southmead Hospital,Permanent Residential,Little Croft,2700.00, 17-Jan-2017
1536,Revenue,CAHD,Bed Purchasing - Southmead Hospital,Permanent Residential,Little Croft,2700.00, 17-Jan-2017
1537,Revenue,CAHD,Bed Purchasing - Southmead Hospital,Permanent Residential,Little Croft,1800.00, 17-Jan-2017
1538,Revenue,CAHD,Bed Purchasing - South,Permanent Residential,Little Croft,2010.40, 17-Jan-2017
1539,Revenue,CAHD,Bed Purchasing - Southmead Hospital,Permanent Residential,Little Croft,1831.32, 17-Jan-2017
1540,Revenue,CAHD,Bed Purchasing - Southmead Hospital,Permanent Residential,Little Croft,1831.32, 17-Jan-2017
1541,Revenue,CAHD,Bed Purchasing - South,Permanent Residential,Little Croft,2008.00, 17-Jan-2017
1542,Revenue,CAHD,Bed Purchasing - South,Permanent Residential,Little Croft,2200.00, 17-Jan-2017
1543,Revenue,CAHD,Bed Purchasing - North,Permanent Residential,Littlecroft Residential Homes  Longcroft,6967.60, 17-Jan-2017
1544,Revenue,CAHD,18-25 Year Olds,Supported Living,Lloyds TSB Commercial Finance Limited,2878.40, 17-Jan-2017
1545,Revenue,CAHD,Home Care - Elderly - South,Day Care / Social Activities,Lloyds TSB Commercial Finance Limited,5299.58, 17-Jan-2017
1546,Revenue,CAHD,Home Care - Elderly - South,Other Small Contracts,Lloyds TSB Commercial Finance Limited,6290.59, 17-Jan-2017
1547,Revenue,CAHD,Home Care - Elderly - South,Supported Living,Lloyds TSB Commercial Finance Limited,8530.36, 17-Jan-2017
1548,Revenue,CAHD,Home Care - Elderly - North,Day Care / Social Activities,Lloyds TSB Commercial Finance Limited,212.16, 17-Jan-2017
1549,Revenue,CAHD,Home Care - Elderly - North,Supported Living,Lloyds TSB Commercial Finance Limited,1989.00, 17-Jan-2017
1550,Revenue,CAHD,Younger MH non-res purchasing,Other Small Contracts,Lloyds TSB Commercial Finance Limited,10798.29, 17-Jan-2017
1551,Revenue,CAHD,18-25 Year Olds,Supported Living,Lloyds TSB Commercial Finance Limited,2878.40, 23-Jan-2017
1552,Revenue,CAHD,Home Care - Elderly - South,Day Care / Social Activities,Lloyds TSB Commercial Finance Limited,4910.62, 23-Jan-2017
1553,Revenue,CAHD,Home Care - Elderly - South,Other Small Contracts,Lloyds TSB Commercial Finance Limited,6184.94, 23-Jan-2017
1554,Revenue,CAHD,Home Care - Elderly - South,Supported Living,Lloyds TSB Commercial Finance Limited,7160.64, 23-Jan-2017
1555,Revenue,CAHD,Home Care - Elderly - North,Day Care / Social Activities,Lloyds TSB Commercial Finance Limited,212.16, 23-Jan-2017
1556,Revenue,CAHD,Home Care - Elderly - North,Supported Living,Lloyds TSB Commercial Finance Limited,1493.96, 23-Jan-2017
1557,Revenue,CAHD,Younger MH non-res purchasing,Other Small Contracts,Lloyds TSB Commercial Finance Limited,10771.80, 23-Jan-2017
1558,Revenue,CAHD,18-25 Year Olds,Supported Living,Lloyds TSB Commercial Finance Limited,2878.40, 31-Jan-2017
1559,Revenue,CAHD,Home Care - Elderly - South,Day Care / Social Activities,Lloyds TSB Commercial Finance Limited,4667.52, 31-Jan-2017
1560,Revenue,CAHD,Home Care - Elderly - South,Other Small Contracts,Lloyds TSB Commercial Finance Limited,6175.29, 31-Jan-2017
1561,Revenue,CAHD,Home Care - Elderly - South,Supported Living,Lloyds TSB Commercial Finance Limited,7503.73, 31-Jan-2017
1562,Revenue,CAHD,Home Care - Elderly - North,Supported Living,Lloyds TSB Commercial Finance Limited,1984.58, 31-Jan-2017
1563,Revenue,CAHD,Younger MH non-res purchasing,Other Small Contracts,Lloyds TSB Commercial Finance Limited,10766.47, 31-Jan-2017
1564,Revenue,CAHD,18-25 Year Olds,Supported Living,Lloyds TSB Commercial Finance Limited,2878.40, 31-Jan-2017
1565,Revenue,CAHD,Home Care - Elderly - South,Day Care / Social Activities,Lloyds TSB Commercial Finance Limited,5184.66, 31-Jan-2017
1566,Revenue,CAHD,Home Care - Elderly - South,Other Small Contracts,Lloyds TSB Commercial Finance Limited,6281.37, 31-Jan-2017
1567,Revenue,CAHD,Home Care - Elderly - South,Supported Living,Lloyds TSB Commercial Finance Limited,8203.30, 31-Jan-2017
1568,Revenue,CAHD,Home Care - Elderly - North,Day Care / Social Activities,Lloyds TSB Commercial Finance Limited,212.16, 31-Jan-2017
1569,Revenue,CAHD,Home Care - Elderly - North,Supported Living,Lloyds TSB Commercial Finance Limited,1984.58, 31-Jan-2017
1570,Revenue,CAHD,Younger MH non-res purchasing,Other Small Contracts,Lloyds TSB Commercial Finance Limited,10782.46, 31-Jan-2017
1571,Revenue,CAHD,18-25 Year Olds,Supported Living,Lloyds TSB Commercial Finance Limited,2878.40, 31-Jan-2017
1572,Revenue,CAHD,Home Care - Elderly - South,Day Care / Social Activities,Lloyds TSB Commercial Finance Limited,5383.56, 31-Jan-2017
1573,Revenue,CAHD,Home Care - Elderly - South,Other Small Contracts,Lloyds TSB Commercial Finance Limited,6281.37, 31-Jan-2017
1574,Revenue,CAHD,Home Care - Elderly - South,Supported Living,Lloyds TSB Commercial Finance Limited,8836.54, 31-Jan-2017
1575,Revenue,CAHD,Home Care - Elderly - North,Supported Living,Lloyds TSB Commercial Finance Limited,1984.58, 31-Jan-2017
1576,Revenue,CAHD,Younger MH non-res purchasing,Other Small Contracts,Lloyds TSB Commercial Finance Limited,10798.49, 31-Jan-2017
1577,Revenue,CAHD,CSC - Adoption Support Fund,Post Adoption,Lloyds TSB Commercial Finance Limited,550.00, 06-Jan-2017
1578,Revenue,CAHD,CSC - Adoption Support Fund,Post Adoption,Lloyds TSB Commercial Finance Limited,1440.00, 13-Jan-2017
1579,Revenue,CAHD,CSC - Adoption Support Fund,Post Adoption,Lloyds TSB Commercial Finance Limited,280.00, 20-Jan-2017
1580,Revenue,CAHD,CSC - Adoption Support Fund,Post Adoption,Lloyds TSB Commercial Finance Limited,280.00, 20-Jan-2017
1581,Revenue,CAHD,CSC - Vinney Green Secure Unit,"Holidays, Outings & Visits",Lloyds TSB Commercial Finance Limited,1691.70, 19-Jan-2017
1582,Revenue,CAHD,South Glos Users in South Glos Homes,Permanent Nursing,Lodge House,625.00, 17-Jan-2017
1583,Revenue,CAHD,Bed Purchasing - South,Permanent Nursing,Lodge House,2219.88, 17-Jan-2017
1584,Revenue,CAHD,South Glos Users in South Glos Homes,Permanent Nursing,Lodge House,625.00, 17-Jan-2017
1585,Revenue,CAHD,South Glos Users in South Glos Homes,Permanent Nursing,Lodge House,625.00, 17-Jan-2017
1586,Revenue,CAHD,South Glos Users in South Glos Homes,Permanent Nursing,Lodge House,625.00, 17-Jan-2017
1587,Revenue,CAHD,South Glos Users in South Glos Homes,Permanent Nursing,Lodge House,625.00, 17-Jan-2017
1588,Revenue,CAHD,Bed Purchasing - South,Permanent Nursing,Lodge House,2709.44, 17-Jan-2017
1589,Revenue,CAHD,South Glos Users in South Glos Homes,Permanent Nursing,Lodge House,625.00, 17-Jan-2017
1590,Revenue,CAHD,Bed Purchasing - South,Permanent Nursing,Lodge House,2692.68, 17-Jan-2017
1591,Revenue,CAHD,South Glos Users in South Glos Homes,Permanent Nursing,Lodge House,625.00, 17-Jan-2017
1592,Revenue,CAHD,South Glos Users in South Glos Homes,Permanent Nursing,Lodge House,625.00, 17-Jan-2017
1593,Revenue,CAHD,Bed Purchasing - South,Permanent Nursing,Lodge House,3252.00, 17-Jan-2017
1594,Revenue,CAHD,South Glos Users in South Glos Homes,Permanent Nursing,Lodge House,625.00, 17-Jan-2017
1595,Revenue,CAHD,Bed Purchasing - South,Permanent Nursing,Lodge House,3070.00, 17-Jan-2017
1596,Revenue,CAHD,South Glos Users in South Glos Homes,Permanent Nursing,Lodge House,625.00, 17-Jan-2017
1597,Revenue,CAHD,South Glos Users in South Glos Homes,Permanent Nursing,Lodge House,625.00, 17-Jan-2017
1598,Revenue,CAHD,Bed Purchasing - Southmead Hospital,Permanent Nursing,Lodge House,3070.00, 17-Jan-2017
1599,Revenue,CAHD,South Glos Users in South Glos Homes,Permanent Nursing,Lodge House,625.00, 17-Jan-2017
1600,Revenue,CAHD,South Glos Users in South Glos Homes,Permanent Nursing,Lodge House,625.00, 17-Jan-2017
1601,Revenue,CAHD,Bed Purchasing - Southmead Hospital,Permanent Nursing,Lodge House,3367.00, 17-Jan-2017
1602,Revenue,CAHD,South Glos Users in South Glos Homes,Permanent Nursing,Lodge House,625.00, 17-Jan-2017
1603,Revenue,CAHD,Bed Purchasing - North,Permanent Nursing,Lodge House,2949.48, 17-Jan-2017
1604,Revenue,CAHD,South Glos Users in South Glos Homes,Permanent Nursing,Lodge House,625.00, 17-Jan-2017
1605,Revenue,CAHD,Bed Purchasing - South,Fees & Charges Income - General,Lodge House,3734.87, 17-Jan-2017
1606,Revenue,CAHD,South Glos Users in South Glos Homes,Permanent Nursing,Lodge House,625.00, 17-Jan-2017
1607,Revenue,CAHD,South Glos Users in South Glos Homes,Permanent Nursing,Lodge House,625.00, 17-Jan-2017
1608,Revenue,CAHD,South Glos Users in South Glos Homes,Permanent Nursing,Lodge House,625.00, 17-Jan-2017
1609,Revenue,CAHD,South Glos Users in South Glos Homes,Permanent Nursing,Lodge House,625.00, 17-Jan-2017
1610,Revenue,CAHD,South Glos Users in South Glos Homes,Permanent Nursing,Lodge House,625.00, 17-Jan-2017
1611,Revenue,CAHD,Bed Purchasing - Southmead Hospital,Permanent Nursing,Lodge House,3235.00, 17-Jan-2017
1612,Revenue,CAHD,South Glos Users in South Glos Homes,Permanent Nursing,Lodge House,625.00, 17-Jan-2017
1613,Revenue,CAHD,South Glos Users in South Glos Homes,Permanent Nursing,Lodge House,625.00, 17-Jan-2017
1614,Revenue,CAHD,South Glos Users in South Glos Homes,Permanent Nursing,Lodge House,625.00, 17-Jan-2017
1615,Revenue,CAHD,South Glos Users in South Glos Homes,Permanent Nursing,Lodge House,625.00, 17-Jan-2017
1616,Revenue,CAHD,Bed Purchasing - Southmead Hospital,Permanent Nursing,Lodge House,3207.04, 17-Jan-2017
1617,Revenue,CAHD,South Glos Users in South Glos Homes,Permanent Nursing,Lodge House,625.00, 17-Jan-2017
1618,Revenue,CAHD,South Glos Users in South Glos Homes,Permanent Nursing,Lodge House,625.00, 17-Jan-2017
1619,Revenue,CAHD,South Glos Users in South Glos Homes,Permanent Nursing,Lodge House,625.00, 17-Jan-2017
1620,Revenue,CAHD,Bed Purchasing - South,Permanent Nursing,Lodge House,3235.00, 17-Jan-2017
1621,Revenue,CAHD,South Glos Users in South Glos Homes,Permanent Nursing,Lodge House,625.00, 17-Jan-2017
1622,Revenue,CAHD,South Glos Users in South Glos Homes,Permanent Nursing,Lodge House,781.25, 17-Jan-2017
1623,Revenue,CAHD,South Glos Users in South Glos Homes,Permanent Nursing,Lodge House,625.00, 17-Jan-2017
1624,Revenue,CAHD,South Glos Users in South Glos Homes,Permanent Nursing,Lodge House,625.00, 17-Jan-2017
1625,Revenue,CAHD,South Glos Users in South Glos Homes,Permanent Nursing,Lodge House,625.00, 17-Jan-2017
1626,Revenue,CAHD,South Glos Users in South Glos Homes,Permanent Nursing,Lodge House,625.00, 17-Jan-2017
1627,Revenue,CAHD,South Glos Users in South Glos Homes,Permanent Nursing,Lodge House,1562.50, 17-Jan-2017
1628,Revenue,CAHD,South Glos Users in South Glos Homes,Permanent Nursing,Lodge House,625.00, 17-Jan-2017
1629,Revenue,CAHD,Bed Purchasing - Southmead Hospital,Permanent Nursing,Lodge House,3384.00, 17-Jan-2017
1630,Revenue,CAHD,South Glos Users in South Glos Homes,Permanent Nursing,Lodge House,625.00, 17-Jan-2017
1631,Revenue,CAHD,South Glos Users in South Glos Homes,Permanent Nursing,Lodge House,625.00, 17-Jan-2017
1632,Revenue,CAHD,Bed Purchasing - Southmead Hospital,Permanent Nursing,Lodge House,3235.00, 17-Jan-2017
1633,Revenue,CAHD,South Glos Users in South Glos Homes,Permanent Nursing,Lodge House,625.00, 17-Jan-2017
1634,Revenue,CAHD,Bed Purchasing - South,Permanent Nursing,Lodge House,3367.00, 17-Jan-2017
1635,Revenue,CAHD,South Glos Users in South Glos Homes,Permanent Nursing,Lodge House,625.00, 17-Jan-2017
1636,Revenue,CAHD,Bed Purchasing - Southmead Hospital,Permanent Nursing,Lodge House,3860.00, 17-Jan-2017
1637,Revenue,CAHD,South Glos Users in South Glos Homes,Permanent Nursing,Lodge House,625.00, 17-Jan-2017
1638,Revenue,CAHD,Bed Purchasing - South,Permanent Nursing,Lodge House,3081.36, 17-Jan-2017
1639,Revenue,CAHD,South Glos Users in South Glos Homes,Permanent Nursing,Lodge House,625.00, 17-Jan-2017
1640,Revenue,CAHD,South Glos Users in South Glos Homes,Permanent Nursing,Lodge House,625.00, 17-Jan-2017
1641,Revenue,CAHD,Home Care - Elderly - North,Day Care / Social Activities,Lower Kilcott,1481.84, 17-Jan-2017
1642,Revenue,CAHD,Social Lettings Agency,Fees - General,Individual,22.59, 05-Jan-2017
1643,Revenue,CAHD,Social Lettings Agency,Other Supplies & Services,Individual,1536.80, 05-Jan-2017
1644,Revenue,CAHD,Bed Purchasing - Southmead Hospital,Permanent Nursing,Majestic 3 Limited,2037.00, 17-Jan-2017
1645,Revenue,CAHD,18-25 Year Olds,Day Care / Social Activities,Make it Mentoring CIC Limited,2039.12, 31-Jan-2017
1646,Revenue,CAHD,18-25 Year Olds,Day Care / Social Activities,Make it Mentoring CIC Limited,1981.68, 31-Jan-2017
1647,Revenue,CAHD,18-25 Year Olds,Day Care / Social Activities,Make it Mentoring CIC Limited,516.96, 27-Jan-2017
1648,Revenue,CAHD,18-25 Year Olds,Day Care / Social Activities,Make it Mentoring CIC Limited,488.24, 27-Jan-2017
1649,Revenue,CAHD,18-25 Year Olds,Day Care / Social Activities,Make it Mentoring CIC Limited,1479.08, 23-Jan-2017
1650,Revenue,CAHD,18-25 Year Olds,Day Care / Social Activities,Make it Mentoring CIC Limited,1579.60, 31-Jan-2017
1651,Revenue,CAHD,18-25 Year Olds,Day Care / Social Activities,Make it Mentoring CIC Limited,574.40, 23-Jan-2017
1652,Revenue,CAHD,18-25 Year Olds,Day Care / Social Activities,Make it Mentoring CIC Limited,488.24, 20-Jan-2017
1653,Revenue,CAHD,18-25 Year Olds,Day Care / Social Activities,Make it Mentoring CIC Limited,509.78, 20-Jan-2017
1654,Revenue,CAHD,18-25 Year Olds,Day Care / Social Activities,Make it Mentoring CIC Limited,473.88, 20-Jan-2017
1655,Revenue,CAHD,18-25 Year Olds,Day Care / Social Activities,Make it Mentoring CIC Limited,631.84, 20-Jan-2017
1656,Revenue,CAHD,18-25 Year Olds,Day Care / Social Activities,Make it Mentoring CIC Limited,775.44, 27-Jan-2017
1657,Revenue,CAHD,18-25 Year Olds,Day Care / Social Activities,Make it Mentoring CIC Limited,804.16, 27-Jan-2017
1658,Revenue,CAHD,18-25 Year Olds,Day Care / Social Activities,Make it Mentoring CIC Limited,689.28, 27-Jan-2017
1659,Revenue,CAHD,18-25 Year Olds,Day Care / Social Activities,Make it Mentoring CIC Limited,689.28, 27-Jan-2017
1660,Revenue,CAHD,18-25 Year Olds,Day Care / Social Activities,Make it Mentoring CIC Limited,1550.88, 31-Jan-2017
1661,Revenue,CAHD,18-25 Year Olds,Day Care / Social Activities,Make it Mentoring CIC Limited,430.80, 27-Jan-2017
1662,Revenue,CAHD,18-25 Year Olds,Day Care / Social Activities,Make it Mentoring CIC Limited,789.80, 23-Jan-2017
1663,Revenue,CAHD,18-25 Year Olds,Day Care / Social Activities,Make it Mentoring CIC Limited,890.32, 27-Jan-2017
1664,Revenue,CAHD,18-25 Year Olds,Day Care / Social Activities,Make it Mentoring CIC Limited,782.62, 27-Jan-2017
1665,Revenue,CAHD,18-25 Year Olds,Day Care / Social Activities,Make it Mentoring CIC Limited,588.76, 27-Jan-2017
1666,Revenue,CAHD,18-25 Year Olds,Day Care / Social Activities,Make it Mentoring CIC Limited,703.64, 27-Jan-2017
1667,Revenue,CAHD,18-25 Year Olds,Day Care / Social Activities,Make it Mentoring CIC Limited,1234.96, 27-Jan-2017
1668,Revenue,CAHD,18-25 Year Olds,Day Care / Social Activities,Make it Mentoring CIC Limited,488.24, 27-Jan-2017
1669,Revenue,CAHD,18-25 Year Olds,Day Care / Social Activities,Make it Mentoring CIC Limited,732.36, 27-Jan-2017
1670,Revenue,CAHD,18-25 Year Olds,Day Care / Social Activities,Make it Mentoring CIC Limited,746.72, 27-Jan-2017
1671,Revenue,CAHD,18-25 Year Olds,Day Care / Social Activities,Make it Mentoring CIC Limited,660.56, 27-Jan-2017
1672,Revenue,CAHD,18-25 Year Olds,Day Care / Social Activities,Make it Mentoring CIC Limited,473.88, 27-Jan-2017
1673,Revenue,CAHD,18-25 Year Olds,Day Care / Social Activities,Make it Mentoring CIC Limited,531.32, 27-Jan-2017
1674,Revenue,CAHD,18-25 Year Olds,Day Care / Social Activities,Make it Mentoring CIC Limited,516.96, 31-Jan-2017
1675,Revenue,CAHD,Home Care - Elderly - North,Other Small Contracts,Make it Mentoring CIC Limited,1723.20, 27-Jan-2017
1676,Revenue,CAHD,Statemented Support Academies,Schools Funding,Mangotsfield Secondary School,524.97, 05-Jan-2017
1677,Revenue,CAHD,Statemented Support Academies,Schools Funding,Mangotsfield Secondary School,524.97, 20-Jan-2017
1678,Revenue,CAHD,Statemented Support Academies,Schools Funding,Mangotsfield Secondary School,699.97, 05-Jan-2017
1679,Revenue,CAHD,Statemented Support Academies,Schools Funding,Mangotsfield Secondary School,699.97, 20-Jan-2017
1680,Revenue,CAHD,Statemented Support Academies,Schools Funding,Mangotsfield Secondary School,508.30, 05-Jan-2017
1681,Revenue,CAHD,Statemented Support Academies,Schools Funding,Mangotsfield Secondary School,508.30, 20-Jan-2017
1682,Revenue,CAHD,Statemented Support Academies,Schools Funding,Mangotsfield Secondary School,874.97, 05-Jan-2017
1683,Revenue,CAHD,Statemented Support Academies,Schools Funding,Mangotsfield Secondary School,874.97, 20-Jan-2017
1684,Revenue,CAHD,Bed Purchasing - Southmead Hospital,Permanent Residential,Manor Cottage,1831.32, 17-Jan-2017
1685,Revenue,CAHD,Bed Purchasing - South,Permanent Residential,Manor Cottage,2400.00, 17-Jan-2017
1686,Revenue,CAHD,Bed Purchasing - South,Permanent Residential,Manor Cottage,10821.43, 17-Jan-2017
1687,Revenue,CAHD,Bed Purchasing - South,Permanent Residential,Manor Cottage,3000.00, 17-Jan-2017
1688,Revenue,CAHD,Bed Purchasing - South,Fees & Charges Income - General,Manor Cottage,3331.41, 17-Jan-2017
1689,Revenue,CAHD,Bed Purchasing - South,Fees & Charges Income - General,Manor Cottage,641.99, 17-Jan-2017
1690,Revenue,CAHD,Bed Purchasing - South,Permanent Residential,Manor Cottage,2351.56, 17-Jan-2017
1691,Revenue,CAHD,Bed Purchasing - South,Permanent Residential,Manor Cottage,23307.86, 17-Jan-2017
1692,Revenue,CAHD,Bed Purchasing - South,Permanent Residential,Manor Cottage,5002.14, 17-Jan-2017
1693,Revenue,CAHD,Bed Purchasing - South,Permanent Residential,Manor Cottage,2980.00, 17-Jan-2017
1694,Revenue,CAHD,Bed Purchasing - Southmead Hospital,Permanent Residential,Manor Cottage,1831.32, 17-Jan-2017
1695,Revenue,CAHD,Bed Purchasing - South,Permanent Residential,Manor Cottage,2049.08, 17-Jan-2017
1696,Revenue,CAHD,Younger MH non-res purchasing,Supported Living,Maples Community Care Limited,769.12, 31-Jan-2017
1697,Revenue,CAHD,Home Care - Elderly - South,Supported Living,Maples Community Care Limited,971.52, 04-Jan-2017
1698,Revenue,CAHD,Home Care - Elderly - South,Supported Living,Maples Community Care Limited,566.72, 04-Jan-2017
1699,Revenue,CAHD,Younger MH non-res purchasing,Supported Living,Maples Community Care Limited,1214.40, 31-Jan-2017
1700,Revenue,CAHD,Younger MH non-res purchasing,Other Small Contracts,Maples Community Care Limited,799.48, 04-Jan-2017
1701,Revenue,CAHD,Home Care - Elderly - South,Supported Living,Maples Community Care Limited,4533.76, 04-Jan-2017
1702,Revenue,CAHD,Younger MH non-res purchasing,Other Small Contracts,Maples Community Care Limited,566.72, 04-Jan-2017
1703,Revenue,CAHD,Younger MH non-res purchasing,Other Small Contracts,Maples Community Care Limited,809.60, 05-Jan-2017
1704,Revenue,CAHD,Younger MH non-res purchasing,Supported Living,Maples Community Care Limited,809.60, 05-Jan-2017
1705,Revenue,CAHD,Younger MH non-res purchasing,Supported Living,Maples Community Care Limited,1214.40, 05-Jan-2017
1706,Revenue,CAHD,Younger MH non-res purchasing,Supported Living,Maples Community Care Limited,1113.20, 05-Jan-2017
1707,Revenue,CAHD,Home Care - Elderly - South,Supported Living,Maples Community Care Limited,941.16, 05-Jan-2017
1708,Revenue,CAHD,Home Care - Elderly - South,Supported Living,Maples Community Care Limited,4518.58, 05-Jan-2017
1709,Revenue,CAHD,Younger MH non-res purchasing,Supported Living,Maples Community Care Limited,1194.16, 04-Jan-2017
1710,Revenue,CAHD,Home Care - Elderly - South,Supported Living,Maples Community Care Limited,971.52, 05-Jan-2017
1711,Revenue,CAHD,Younger MH non-res purchasing,Supported Living,Maples Community Care Limited,789.36, 05-Jan-2017
1712,Revenue,CAHD,Younger MH non-res purchasing,Other Small Contracts,Maples Community Care Limited,794.42, 04-Jan-2017
1713,Revenue,CAHD,Younger MH non-res purchasing,Supported Living,Maples Community Care Limited,809.60, 04-Jan-2017
1714,Revenue,CAHD,Younger MH non-res purchasing,Supported Living,Maples Community Care Limited,1157.06, 04-Jan-2017
1715,Revenue,CAHD,Younger MH non-res purchasing,Supported Living,Maples Community Care Limited,1214.40, 04-Jan-2017
1716,Revenue,CAHD,Home Care - Elderly - South,Supported Living,Maples Community Care Limited,971.52, 04-Jan-2017
1717,Revenue,CAHD,Home Care - Elderly - South,Supported Living,Maples Community Care Limited,4230.16, 04-Jan-2017
1718,Revenue,CAHD,Home Care - Elderly - South,Supported Living,Maples Community Care Limited,566.72, 04-Jan-2017
1719,Revenue,CAHD,Younger MH non-res purchasing,Supported Living,Maples Community Care Limited,1214.40, 04-Jan-2017
1720,Revenue,CAHD,Home Care - Elderly - South,Supported Living,Maples Community Care Limited,971.52, 04-Jan-2017
1721,Revenue,CAHD,Younger MH non-res purchasing,Supported Living,Maples Community Care Limited,809.60, 04-Jan-2017
1722,Revenue,CAHD,Younger MH non-res purchasing,Other Small Contracts,Maples Community Care Limited,809.60, 30-Jan-2017
1723,Revenue,CAHD,Younger MH non-res purchasing,Supported Living,Maples Community Care Limited,1006.94, 27-Jan-2017
1724,Revenue,CAHD,Younger MH non-res purchasing,Supported Living,Maples Community Care Limited,1194.16, 30-Jan-2017
1725,Revenue,CAHD,Home Care - Elderly - South,Supported Living,Maples Community Care Limited,931.04, 30-Jan-2017
1726,Revenue,CAHD,Home Care - Elderly - South,Supported Living,Maples Community Care Limited,3319.36, 27-Jan-2017
1727,Revenue,CAHD,Home Care - Elderly - South,Supported Living,Maples Community Care Limited,566.72, 30-Jan-2017
1728,Revenue,CAHD,Younger MH non-res purchasing,Supported Living,Maples Community Care Limited,1214.40, 30-Jan-2017
1729,Revenue,CAHD,Younger MH non-res purchasing,Supported Living,Maples Community Care Limited,809.60, 27-Jan-2017
1730,Revenue,CAHD,Younger MH non-res purchasing,Supported Living,Maples Community Care Limited,1419.04, 17-Jan-2017
1731,Revenue,CAHD,Home Care - Elderly - South,Supported Living,Maples Community Care Limited,1419.04, 17-Jan-2017
1732,Revenue,CAHD,Home Care - Elderly - South,Supported Living,Maples Community Care Limited,1419.04, 17-Jan-2017
1733,Revenue,CAHD,Younger MH non-res purchasing,Supported Living,Maples Community Care Limited,1419.04, 17-Jan-2017
1734,Revenue,CAHD,Younger MH non-res purchasing,Supported Living,Maples Community Care Limited,1419.04, 17-Jan-2017
1735,Revenue,CAHD,Tenancy Start Up Scheme,Other Supplies & Services,Individual,725.00, 16-Jan-2017
1736,Revenue,CAHD,Social Lettings Agency,Fees - General,Individual,12.22, 20-Jan-2017
1737,Revenue,CAHD,Social Lettings Agency,Other Supplies & Services,Individual,690.32, 20-Jan-2017
1738,Revenue,CAHD,Bed Purchasing - North,Permanent Residential,Marsden Healthcare Ltd,4372.00, 17-Jan-2017
1739,Revenue,CAHD,Bed Purchasing - South,Permanent Residential,Marsden Healthcare Ltd,1647.88, 17-Jan-2017
1740,Revenue,CAHD,Bed Purchasing - South,Permanent Residential,Marsden Healthcare Ltd,2086.60, 17-Jan-2017
1741,Revenue,CAHD,Independent Special Placements - Pre 16,Other Private Contractors,Mary Hare School,7315.00, 24-Jan-2017
1742,Revenue,CAHD,Independent Special Placements - Pre 16,Other Private Contractors,Mary Hare School,7315.00, 24-Jan-2017
1743,Revenue,CAHD,Independent Special Placements - Pre 16,Other Private Contractors,Mary Hare School,11538.00, 19-Jan-2017
1744,Revenue,CAHD,Independent Special Placements - Pre 16,Other Private Contractors,Mary Hare School,11538.00, 19-Jan-2017
1745,Revenue,CAHD,CSC - Agency Fostering,Foster Parent Allowances,Match Foster Care Ltd,6200.00, 17-Jan-2017
1746,Revenue,CAHD,Bed Purchasing - Southmead Hospital,Permanent Nursing,Meadow Care Home,4800.00, 17-Jan-2017
1747,Revenue,CAHD,Bed Purchasing - South,Permanent Nursing,Meadow Care Home,2484.20, 17-Jan-2017
1748,Revenue,CAHD,Bed Purchasing - Elderly S117- North,Permanent Nursing,Meadow Care Home,3851.68, 17-Jan-2017
1749,Revenue,CAHD,Bed Purchasing - Elderly S117- North,Permanent Nursing,Meadow Care Home,4175.00, 17-Jan-2017
1750,Revenue,CAHD,Bed Purchasing - North,Permanent Nursing,Meadow Care Home,4800.00, 17-Jan-2017
1751,Revenue,CAHD,Bed Purchasing - North,Permanent Nursing,Meadow Care Home,1885.71, 17-Jan-2017
1752,Revenue,CAHD,Home Care - Elderly - South,Day Care / Social Activities,Mears Care,193.16, 17-Jan-2017
1753,Revenue,CAHD,Home Care - Elderly - South,Other Small Contracts,Mears Care,3786.23, 17-Jan-2017
1754,Revenue,CAHD,Home Care - Elderly - North,Other Small Contracts,Mears Care,2963.25, 17-Jan-2017
1755,Revenue,CAHD,Home Care - Elderly - South,Day Care / Social Activities,Mears Care,201.94, 31-Jan-2017
1756,Revenue,CAHD,Home Care - Elderly - South,Other Small Contracts,Mears Care,3694.04, 31-Jan-2017
1757,Revenue,CAHD,Home Care - Elderly - North,Other Small Contracts,Mears Care,3112.51, 31-Jan-2017
1758,Revenue,CAHD,Home Care - Elderly - South,Day Care / Social Activities,Mears Care,184.38, 31-Jan-2017
1759,Revenue,CAHD,Home Care - Elderly - South,Other Small Contracts,Mears Care,3464.98, 31-Jan-2017
1760,Revenue,CAHD,Home Care - Elderly - North,Other Small Contracts,Mears Care,2912.29, 31-Jan-2017
1761,Revenue,CAHD,Home Care - Elderly - South,Day Care / Social Activities,Mears Care,166.82, 31-Jan-2017
1762,Revenue,CAHD,Home Care - Elderly - South,Other Small Contracts,Mears Care,3414.19, 31-Jan-2017
1763,Revenue,CAHD,Home Care - Elderly - North,Other Small Contracts,Mears Care,2749.36, 31-Jan-2017
1764,Revenue,CAHD,Home Care - Elderly - South,Day Care / Social Activities,Mears Care,201.94, 31-Jan-2017
1765,Revenue,CAHD,Home Care - Elderly - South,Other Small Contracts,Mears Care,3549.39, 31-Jan-2017
1766,Revenue,CAHD,Home Care - Elderly - North,Other Small Contracts,Mears Care,3306.39, 31-Jan-2017
1767,Revenue,CAHD,Extra Care Housing,Private & Voluntary Home Care,Mears Care,50253.00, 27-Jan-2017
1768,Revenue,CAHD,Alexandra Way,Equipment Maintenance,Medaco,1290.00, 13-Jan-2017
1769,Revenue,CAHD,Home Care - Elderly - South,Other Small Contracts,Medacs Home Care,15.76, 05-Jan-2017
1770,Revenue,CAHD,Home Care - Elderly - North,Other Small Contracts,Medacs Home Care,244.28, 05-Jan-2017
1771,Revenue,CAHD,Home Care - Elderly - North,Supported Living,Medacs Home Care,319.14, 05-Jan-2017
1772,Revenue,CAHD,Home Care - Elderly - North,Other Small Contracts,Medacs Home Care,256.10, 30-Jan-2017
1773,Revenue,CAHD,Home Care - Elderly - North,Supported Living,Medacs Home Care,342.78, 30-Jan-2017
1774,Revenue,CAHD,Home Care - Elderly - North,Other Small Contracts,Medacs Home Care,252.16, 30-Jan-2017
1775,Revenue,CAHD,Home Care - Elderly - North,Supported Living,Medacs Home Care,327.02, 30-Jan-2017
1776,Revenue,CAHD,Home Care - Elderly - North,Other Small Contracts,Medacs Home Care,244.28, 30-Jan-2017
1777,Revenue,CAHD,Home Care - Elderly - North,Supported Living,Medacs Home Care,334.90, 30-Jan-2017
1778,Revenue,CAHD,Home Care - Elderly - North,Other Small Contracts,Medacs Home Care,271.86, 24-Jan-2017
1779,Revenue,CAHD,Home Care - Elderly - North,Supported Living,Medacs Home Care,342.78, 24-Jan-2017
1780,Revenue,CAHD,Home Care - Elderly - North,Other Small Contracts,Medacs Home Care,271.86, 30-Jan-2017
1781,Revenue,CAHD,Home Care - Elderly - North,Supported Living,Medacs Home Care,346.72, 30-Jan-2017
1782,Revenue,CAHD,ICES / NRS Contract,Daily Living Equipment,Medequip Assistive Technology Limited,117204.93, 30-Jan-2017
1783,Revenue,CAHD,ICES / NRS Contract,Daily Living Equipment,Medequip Assistive Technology Limited,1313.64, 30-Jan-2017
1784,Revenue,CAHD,CSC - Section 17 0-25,Preventative Assistance,Meridian Business Support Limited,781.60, 05-Jan-2017
1785,Revenue,CAHD,CSC - Section 17 0-25,Preventative Assistance,Meridian Business Support Limited,781.60, 13-Jan-2017
1786,Revenue,CAHD,CSC - Section 17 0-25,Preventative Assistance,Meridian Business Support Limited,781.60, 20-Jan-2017
1787,Revenue,CAHD,CSC - Section 17 0-25,Preventative Assistance,Meridian Business Support Limited,781.60, 27-Jan-2017
1788,Revenue,CAHD,SRRP,"Provisions (Food, etc)",Merlin Housing Society,969.42, 31-Jan-2017
1789,Revenue,CAHD,Tenancy Start Up Scheme,Other Supplies & Services,Merlin Housing Society,553.84, 10-Jan-2017
1790,Revenue,CAHD,Intermediate Care Accommodation,Other Supplies & Services,Merlin Housing Society,553.38, 03-Jan-2017
1791,Revenue,CAHD,Intermediate Care Accommodation,Other Supplies & Services,Merlin Housing Society,691.70, 25-Jan-2017
1792,Revenue,CAHD,Home Care - Elderly - South,Supported Living,Milestones - Unit 10,2131.96, 17-Jan-2017
1793,Revenue,CAHD,Home Care - Elderly - South,Supported Living,Milestones - Unit 10,3681.16, 17-Jan-2017
1794,Revenue,CAHD,Home Care - Elderly - North,Supported Living,Milestones - Unit 10,4362.68, 17-Jan-2017
1795,Revenue,CAHD,Home Care - Elderly - South,Supported Living,Milestones - Unit 10,1371.60, 17-Jan-2017
1796,Revenue,CAHD,Home Care - Elderly - South,Supported Living,Milestones - Unit 10,3681.16, 17-Jan-2017
1797,Revenue,CAHD,Home Care - Elderly - North,Supported Living,Milestones - Unit 10,4131.76, 17-Jan-2017
1798,Revenue,CAHD,Home Care - Elderly - South,Supported Living,Milestones - Unit 10,3693.16, 17-Jan-2017
1799,Revenue,CAHD,Home Care - Elderly - South,Supported Living,Milestones - Unit 10,2349.20, 17-Jan-2017
1800,Revenue,CAHD,Home Care - Elderly - North,Supported Living,Milestones - Unit 10,4131.76, 17-Jan-2017
1801,Revenue,CAHD,Home Care - Elderly - South,Supported Living,Milestones - Unit 10,3934.12, 17-Jan-2017
1802,Revenue,CAHD,Supported Living (S28a) North,Supported Living,Milestones - Unit 10,3652.08, 17-Jan-2017
1803,Revenue,CAHD,Supported Living (S28a) North,Supported Living,Milestones - Unit 10,3652.08, 17-Jan-2017
1804,Revenue,CAHD,Home Care - Elderly - South,Supported Living,Milestones - Unit 10,1268.04, 17-Jan-2017
1805,Revenue,CAHD,Supported Living (S28a) South,Supported Living,Milestones - Unit 10,5580.68, 17-Jan-2017
1806,Revenue,CAHD,Home Care - Elderly - South,Supported Living,Milestones - Unit 10,2262.88, 17-Jan-2017
1807,Revenue,CAHD,Supported Living (S28a) South,Supported Living,Milestones - Unit 10,2262.88, 17-Jan-2017
1808,Revenue,CAHD,Home Care - Elderly - North,Supported Living,Milestones - Unit 10,4362.68, 17-Jan-2017
1809,Revenue,CAHD,Home Care - Elderly - South,Supported Living,Milestones - Unit 10,2131.96, 17-Jan-2017
1810,Revenue,CAHD,Supported Living (S28a) North,Supported Living,Milestones - Unit 10,3664.36, 17-Jan-2017
1811,Revenue,CAHD,Supported Living (S28a) South,Supported Living,Milestones - Unit 10,2262.88, 17-Jan-2017
1812,Revenue,CAHD,Supported Living (S28a) South,Supported Living,Milestones - Unit 10,2262.88, 17-Jan-2017
1813,Revenue,CAHD,Home Care - Elderly - North,Supported Living,Milestones - Unit 10,1374.48, 17-Jan-2017
1814,Revenue,CAHD,Section 117 Placements MH Younger,Permanent Nursing,Milestones - Unit 10,3547.60, 17-Jan-2017
1815,Revenue,CAHD,South Glos Users in South Glos Homes,Permanent Nursing,Milestones - Unit 10,625.00, 17-Jan-2017
1816,Revenue,CAHD,South Glos Users in South Glos Homes,Permanent Nursing,Milestones - Unit 10,625.00, 17-Jan-2017
1817,Revenue,CAHD,MH Purchasing - Younger,Permanent Residential,Milestones - Unit 10,1416.24, 17-Jan-2017
1818,Revenue,CAHD,Bed Purchasing - South,Permanent Residential,Milestones - Unit 10,5314.68, 17-Jan-2017
1819,Revenue,CAHD,Bed Purchasing - South,Permanent Residential,Milestones - Unit 10,5176.32, 17-Jan-2017
1820,Revenue,CAHD,Jointly Funded H&SC Packages,Permanent Residential,Milestones - Unit 10,1681.40, 17-Jan-2017
1821,Revenue,CAHD,Bed Purchasing - South,Permanent Nursing,Milestones - Unit 10,2055.32, 17-Jan-2017
1822,Revenue,CAHD,Bed Purchasing - South,Permanent Residential,Milestones - Unit 10,4202.44, 17-Jan-2017
1823,Revenue,CAHD,Bed purchasing - Elderly S117 - South,Permanent Nursing,Milestones - Unit 10,4929.52, 17-Jan-2017
1824,Revenue,CAHD,Jointly Funded H&SC Packages,Permanent Nursing,Milestones - Unit 10,2886.72, 17-Jan-2017
1825,Revenue,CAHD,South Glos Users in South Glos Homes,Permanent Nursing,Milestones - Unit 10,625.00, 17-Jan-2017
1826,Revenue,CAHD,Bed Purchasing - North,Permanent Residential,Milestones - Unit 10,7259.20, 17-Jan-2017
1827,Revenue,CAHD,South Glos Users in South Glos Homes,Permanent Nursing,Milestones - Unit 10,625.00, 17-Jan-2017
1828,Revenue,CAHD,South Glos Users in South Glos Homes,Permanent Nursing,Milestones - Unit 10,625.00, 17-Jan-2017
